Department family,Entity,Date,Expense type,Expense area,Supplier,Transaction number,Amount
Home Office ,SIA - Security Industry Authority,09/11/2011,Licencing Costs,Licensing ,BT Syntegra ,CSYN01,"795,947.35"
Home Office ,SIA - Security Industry Authority,16/11/2011,Research,Marketing ,Skills For Security ,CSKI01,"39,331.20"
Home Office ,SIA - Security Industry Authority,24/11/2011,Licencing Costs,Licensing ,CRB,CCRB01,"284,960.00"
Home Office,SIA - Security Industry Authority,24/11/2011,Legal Costs ,C&E,Kingsley Napley ,CKIN02,"51,342.00"
Home Office ,ISA - Independent Safeguarding Authority,01/11/2011,Rent,Corporate Services,Acropolis Properties Ltd,RCT0037751,"27,535.50"
Home Office,ISA - Independent Safeguarding Authority,08/11/2011,Forensic Services,Investigations,Forensic Science Service,RCT0037828,"56,967.28"
Home Office ,ISA - Independent Safeguarding Authority,08/11/2011,Rent,Corporate Services,WM Morrison Supermarkets PLC,RCT0037850,"31,500.00"
Home Office,ISA - Independent Safeguarding Authority,08/11/2011,Forensic Services,Investigations,Forensic Science Service,RCT0037827,"44,663.36"
Home Office ,ISA - Independent Safeguarding Authority,16/11/2011,IT Charges,Corporate Services,Steria,RCT0037913,"338,939.00"
Home Office,ISA - Independent Safeguarding Authority,28/11/2011,Rent,Corporate Services,OMD Services Limited,RCT0038011,"599,452.31"
Home Office ,ISA - Independent Safeguarding Authority,28/11/2011,Rent,Corporate Services,Hartnell Taylor Cook LLP,RCT0038030,"39,573.30"
Home Office,ISA - Independent Safeguarding Authority,28/11/2011,Capital - Pioneer House Move,Corporate Services,IMS (Office Fitting & Design) Ltd,RCT0037998,"118,627.20"
Home Office ,ISA - Independent Safeguarding Authority,28/11/2011,Service Charges,Corporate Services,OMD Services Limited,RCT0038011,"121,728.54"
Home Office,Home Office,16/11/2011,Science & Technology,Home Office Science,CCD DESIGN & ERGONOMICS LTD,1001180371,"21,250.00"
Home Office ,Home Office ,11/11/2011,Science & Technology,Home Office Science,CRANFIELD UNIVERSITY,1001178476,"70,000.00"
Home Office,Home Office,15/11/2011,Science & Technology,Home Office Science,THRUVISION SYSTEMS LTD,1001179724,"74,158.00"
Home Office ,Home Office ,15/11/2011,Science & Technology,Home Office Science,UNIVERSITY COLLEGE LONDON,1001179731,"38,346.00"
Home Office,Home Office,21/11/2011,Lab & Scientific Equip (FA).Laboratory & scientific equip.,Home Office Science,MORPHO DETECTION UK LTD,1001182214,"25,834.45"
Home Office ,Home Office ,14/11/2011,Science & Technology,Home Office Science,QINETIQ LTD,1001179071,"12,912.00"
Home Office,Home Office,14/11/2011,Science & Technology,Home Office Science,QINETIQ LTD,1001179071,"30,000.00"
Home Office ,Home Office ,02/11/2011,Science & Technology,Home Office Science,BRITISH STANDARDS INSTITUTION,1001174192,"27,000.00"
Home Office,Home Office,17/11/2011,Science & Technology,Home Office Science,GVA GRIMLEY,1001181132,"35,004.00"
Home Office ,SOCA - Serious Organised Crime Agency,24/10/2011,Premises,Capability & Service Delivery ,KIER BUILDING SERVICES,91000,"84,189.84"
Home Office ,SOCA - Serious Organised Crime Agency,31/10/2011,Transport Costs,Capability & Service Delivery ,ZURICH MUNICIPAL,91957,"405,116.10"
Home Office,SOCA - Serious Organised Crime Agency,04/11/2011,Property Plant & Equipment,Investment Board,BMW ,92546,"34,288.74"
Home Office ,SOCA - Serious Organised Crime Agency,07/11/2011,Premises,Investment Board,LOGICA UK LTD,92604,"90,590.27"
Home Office ,SOCA - Serious Organised Crime Agency,07/11/2011,Property Plant & Equipment,Investment Board,LOGICA UK LTD,92606,"183,859.78"
Home Office ,SOCA - Serious Organised Crime Agency,07/11/2011,Indirect Employee Costs,Capability & Service Delivery ,FORENSIC NAVIGATION SERVICES LTD,92644,"48,000.00"
Home Office,SOCA - Serious Organised Crime Agency,08/11/2011,Property Plant & Equipment,Investment Board,AUDI ,92727,"27,357.83"
Home Office ,SOCA - Serious Organised Crime Agency,08/11/2011,PFI Contract Charges,Investment Board,SERCO,92741,"43,160.50"
Home Office ,SOCA - Serious Organised Crime Agency,08/11/2011,PFI Contract Charges,Investment Board,SERCO,92742,"76,076.40"
Home Office ,SOCA - Serious Organised Crime Agency,08/11/2011,IT Expenses,Operational Delivery ,BT,92761,"42,000.00"
Home Office ,SOCA - Serious Organised Crime Agency,08/11/2011,Forensic Fees,Operational Delivery ,FORENSIC SCIENCE SERVICE,92861,"26,883.35"
Home Office ,SOCA - Serious Organised Crime Agency,08/11/2011,IT Expenses,Operational Delivery ,HOME OFFICE PAY & SUPER'N SERV,92880,"122,038.11"
Home Office ,SOCA - Serious Organised Crime Agency,08/11/2011,Premises,Investment Board,OCS GROUP,92900,"42,529.07"
Home Office ,SOCA - Serious Organised Crime Agency,08/11/2011,IT Expenses,Capability & Service Delivery ,LOGICA UK LTD,92926,"1,986,004.73"
Home Office ,SOCA - Serious Organised Crime Agency,08/11/2011,Premises,Capability & Service Delivery ,OCS GROUP,92951,"180,343.63"
Home Office ,SOCA - Serious Organised Crime Agency,15/11/2011,IT Expenses,Capability & Service Delivery ,NPIA,93517,"25,190.56"
Home Office ,SOCA - Serious Organised Crime Agency,15/11/2011,Property Plant & Equipment,Investment Board,DRIVERS JONAS DELOITTE,93574,"46,286.40"
Home Office ,SOCA - Serious Organised Crime Agency,15/11/2011,IT Expenses,Capability & Service Delivery ,BT,93618,"31,223.03"
Home Office ,SOCA - Serious Organised Crime Agency,15/11/2011,IT Expenses,Capability & Service Delivery ,BT,93624,"61,576.22"
Home Office ,SOCA - Serious Organised Crime Agency,15/11/2011,Operational and Communications Costs,Capability & Service Delivery ,BT,93624,"2,723.59"
Home Office ,SOCA - Serious Organised Crime Agency,15/11/2011,IT Expenses,Capability & Service Delivery ,BT,93625,"31,261.93"
Home Office ,SOCA - Serious Organised Crime Agency,15/11/2011,Operational and Communications Costs,Capability & Service Delivery ,BT,93625,962.22
Home Office ,SOCA - Serious Organised Crime Agency,15/11/2011,Office and General Expenses,Capability & Service Delivery ,OFFICE DEPOT UK LTD,93699,"42,205.06"
Home Office ,SOCA - Serious Organised Crime Agency,15/11/2011,IT Expenses,Capability & Service Delivery ,BT,93714,"98,037.26"
Home Office ,SOCA - Serious Organised Crime Agency,15/11/2011,Operational and Communications Costs,Capability & Service Delivery ,BT,93714,844.80
Home Office ,SOCA - Serious Organised Crime Agency,15/11/2011,Premises,Capability & Service Delivery ,EDF ENERGY DUST FIELD SERVICES,93717,"139,426.96"
Home Office ,SOCA - Serious Organised Crime Agency,15/11/2011,Property Plant & Equipment,Investment Board,WATES INTERIORS LTD,93725,"780,000.00"
Home Office ,SOCA - Serious Organised Crime Agency,15/11/2011,IT Expenses,Capability & Service Delivery ,CABLE & WIRELESS COMMS.,93756,"79,519.25"
Home Office ,SOCA - Serious Organised Crime Agency,16/11/2011,Premises,Capability & Service Delivery ,REVENUE FINANCE BANKING SERVIC,93869,"60,988.81"
Home Office ,SOCA - Serious Organised Crime Agency,16/11/2011,Premises,Capability & Service Delivery ,REVENUE FINANCE BANKING SERVIC,93870,"38,359.70"
Home Office ,SOCA - Serious Organised Crime Agency,16/11/2011,Premises,Capability & Service Delivery ,REVENUE FINANCE BANKING SERVIC,94004,"65,769.16"
Home Office ,SOCA - Serious Organised Crime Agency,16/11/2011,Premises,Capability & Service Delivery ,REVENUE FINANCE BANKING SERVIC,94005,"36,768.65"
Home Office ,SOCA - Serious Organised Crime Agency,17/11/2011,IT Expenses,Project,BT,94042,"79,065.00"
Home Office ,SOCA - Serious Organised Crime Agency,17/11/2011,Property Plant & Equipment,Investment Board,LOGICA UK LTD,94053,"355,707.47"
Home Office ,SOCA - Serious Organised Crime Agency,17/11/2011,Office and General Expenses,Capability & Service Delivery ,ROYAL MAIL,94073,"35,709.58"
Home Office ,SOCA - Serious Organised Crime Agency,18/11/2011,IT Expenses,Capability & Service Delivery ,FCO SERVICES,94171,"539,804.40"
Home Office ,SOCA - Serious Organised Crime Agency,21/11/2011,Contingent Labour,Capability & Service Delivery ,ADECCO ALFRED MARKS,94275,"67,584.26"
Home Office ,SOCA - Serious Organised Crime Agency,22/11/2011,Premises,Capability & Service Delivery ,SCOTTISH POLICE SERVICES AUTHORITY,94383,"55,163.50"
Home Office ,SOCA - Serious Organised Crime Agency,22/11/2011,PFI Contract Charges,Capability & Service Delivery ,SERCO,94384,"95,925.60"
Home Office,Home Office,01/11/2011,Grant,PFD,SERIOUS FRAUD OFFICE (G),3000043693,"1,969,222.22"
Home Office,Home Office,10/11/2011,"Advertising, Media and Marketing",Communications,COI COMMUNICATIONS,3000043737,"337,499.96"
Home Office,Home Office,16/11/2011,"Advertising, Media and Marketing",Communications,COI COMMUNICATIONS,3000043766,"359,955.18"
Home Office,Home Office,18/11/2011,"Editorial, Design & Graphics.Advertising-non recruit - ADMN",Communications,MOTHER LONDON LTD,1001181710,"24,292.08"
Home Office,Home Office,18/11/2011,"Editorial, Design & Graphics.Advertising agency services.",Communications,RAINEY KELLY CAMPBELL ROALFE/Y&R,1001181726,"111,751.51"
Home Office,Home Office,07/11/2011,"IT, TelecommsHardware.Server - ADMN",Communications,SAVVIS UK LTD,1001176306,"31,906.54"
Home Office,Home Office,09/11/2011,"IT, TelecommsHardware.Server - ADMN",Communications,SAVVIS UK LTD,1001177666,"31,906.54"
Home Office,Home Office,11/11/2011,Professional & Admin Services.Personnel Recruit Serv - ADMN,Group HR,FCO SERVICES,3000043747,"48,001.00"
Home Office,Home Office,28/11/2011,Professional & Admin Services.DWP MyCSP Pension admin fee,Group HR,DEPARTMENT FOR WORK & PENSIONS (DWP),3000043822,"129,441.00"
Home Office,Home Office,09/11/2011,Professional & Admin Services.DWP MyCSP Pension admin fee,Group HR,DEPARTMENT FOR WORK & PENSIONS (DWP),1001177609,"129,441.00"
Home Office,CRB - Criminal Records Bureau,14/11/2011,Police costs per check,Police Data Source,Cambridgeshire Police Auth,16659  1,"37,894.78"
Home Office,CRB - Criminal Records Bureau,22/11/2011,Police costs per check,Police Data Source,Cheshire Police Authority,16682  7,"43,566.93"
Home Office,CRB - Criminal Records Bureau,22/11/2011,Police costs per check,Police Data Source,Derbyshire Police Authority,16682  10,"48,120.46"
Home Office,CRB - Criminal Records Bureau,14/11/2011,Police costs per check,Police Data Source,Devon & Cornwall Police Author,16659  6,"34,151.56"
Home Office,CRB - Criminal Records Bureau,22/11/2011,Police costs per check,Police Data Source,Essex Police Authority Revenue,16682  14,"125,084.84"
Home Office,CRB - Criminal Records Bureau,22/11/2011,Police costs per check,Police Data Source,Greater Manchester Police,16682  17,"83,410.91"
Home Office,CRB - Criminal Records Bureau,22/11/2011,Police costs per check,Police Data Source,Hampshire Police Authority,16682  19,"53,016.06"
Home Office,CRB - Criminal Records Bureau,14/11/2011,Police costs per check,Police Data Source,Humberside Police Authority,16659  8,"46,234.72"
Home Office,CRB - Criminal Records Bureau,14/11/2011,Police costs per check,Police Data Source,Lancashire Police Authority,16659  9,"45,778.27"
Home Office,CRB - Criminal Records Bureau,22/11/2011,Police costs per check,Police Data Source,Leicestershire Police Authorit,16682  22,"33,518.88"
Home Office,CRB - Criminal Records Bureau,14/11/2011,Police costs per check,Police Data Source,Lincolnshire Police Authority,16659  10,"25,492.03"
Home Office,CRB - Criminal Records Bureau,22/11/2011,Police costs per check,Police Data Source,Merseyside Police Authority,16682  23,"57,640.77"
Home Office,CRB - Criminal Records Bureau,03/11/2011,Police costs per check,Police Data Source,The Metropolitan Police,16632  7,"553,235.56"
Home Office,CRB - Criminal Records Bureau,22/11/2011,Police costs per check,Police Data Source,The Metropolitan Police,16682  24,"550,548.86"
Home Office,CRB - Criminal Records Bureau,14/11/2011,Police costs per check,Police Data Source,Northants Police Authority,16659  13,"25,753.69"
Home Office,CRB - Criminal Records Bureau,14/11/2011,Police costs per check,Police Data Source,North Wales Police Funding Acc,16659  15,"29,332.44"
Home Office,CRB - Criminal Records Bureau,22/11/2011,Police costs per check,Police Data Source,NPIA,16682  29,"197,841.28"
Home Office,CRB - Criminal Records Bureau,14/11/2011,Police costs per check,Police Data Source,Avon & Somerset Police,16659  19,"56,391.61"
Home Office,CRB - Criminal Records Bureau,22/11/2011,Police costs per check,Police Data Source,Avon & Somerset Police,16682  30,"54,421.48"
Home Office,CRB - Criminal Records Bureau,14/11/2011,Police costs per check,Police Data Source,South Yorkshire Police,16659  20,"33,791.16"
Home Office,CRB - Criminal Records Bureau,14/11/2011,Police costs per check,Police Data Source,Thames Valley Police Authority,16659  21,"72,970.58"
Home Office,CRB - Criminal Records Bureau,14/11/2011,Police costs per check,Police Data Source,West Yorkshire Police,16659  23,"126,720.14"
Home Office,CRB - Criminal Records Bureau,16/11/2011,Public Private Partnership contract / agreement,Finance,Capita Business Services Ltd,16660  12,"366,238.37"
Home Office,CRB - Criminal Records Bureau,16/11/2011,Public Private Partnership contract / agreement,Finance,Capita Business Services Ltd,16660  51,"1,115,686.51"
Home Office,CRB - Criminal Records Bureau,16/11/2011,Public Private Partnership contract / agreement,Finance,Capita Business Services Ltd,16660  63,"8,455,235.05"
Home Office,CRB - Criminal Records Bureau,16/11/2011,Public Private Partnership contract / agreement,Finance,Capita Business Services Ltd,16660  100,"851,662.13"
Home Office,CRB - Criminal Records Bureau,16/11/2011,Public Private Partnership contract / agreement,Finance,Capita Business Services Ltd,16660  112,"435,258.85"
Home Office,CRB - Criminal Records Bureau,16/11/2011,Public Private Partnership contract / agreement,Finance,Capita Business Services Ltd,16660  114,"1,431,058.77"
Home Office,CRB - Criminal Records Bureau,16/11/2011,Public Private Partnership contract / agreement,Finance,Capita Business Services Ltd,16660  125,"188,268.00"
Home Office,CRB - Criminal Records Bureau,23/11/2011,Payroll,Pay costs,MoJ,16695  1,"1,174,070.27"
Home Office,CRB - Criminal Records Bureau,24/11/2011,Payroll,Pay costs,MoJ,16721  4,"146,024.98"
Home Office,CRB - Criminal Records Bureau,03/11/2011,IT running Costs,Finance Overheads,Home Office,16632  4,"544,987.45"
Home Office,UKBA - UK Border Agency,21/11/2011,"Transport, Storage & Mail Serv.Visa stock",UKBA - UK Border Agency,3M SECURITY PRINTING & SYSTEMS LTD,1001182141,"59,143.07"
Home Office,UKBA - UK Border Agency,21/11/2011,"Transport, Storage & Mail Serv.Visa stock",UKBA - UK Border Agency,3M SECURITY PRINTING & SYSTEMS LTD,1001182141,"61,060.58"
Home Office,UKBA - UK Border Agency,10/11/2011,"Transport, Storage & Mail Serv.Visa stock",UKBA - UK Border Agency,3M SECURITY PRINTING & SYSTEMS LTD,1001177968,"132,000.00"
Home Office,UKBA - UK Border Agency,28/11/2011,"Transport, Storage & Mail Serv.Visa stock",UKBA - UK Border Agency,3M SECURITY PRINTING & SYSTEMS LTD,1001184874,"8,173.44"
Home Office,UKBA - UK Border Agency,28/11/2011,"Transport, Storage & Mail Serv.Visa stock",UKBA - UK Border Agency,3M SECURITY PRINTING & SYSTEMS LTD,1001184874,"21,534.66"
Home Office,UKBA - UK Border Agency,15/11/2011,Grant,UKBA - UK Border Agency,ACCENT ON TRAINING LTD (G),1001180117,"86,380.61"
Home Office,UKBA - UK Border Agency,15/11/2011,Professional & Admin Services.Business admin services - PROG,UKBA - UK Border Agency,ADVANTAGE TECHNICAL RESOURCING,1001179599,"20,355.84"
Home Office,UKBA - UK Border Agency,15/11/2011,Professional & Admin Services.Business admin services - PROG,UKBA - UK Border Agency,ADVANTAGE TECHNICAL RESOURCING,1001179599,"28,235.52"
Home Office,UKBA - UK Border Agency,15/11/2011,Professional & Admin Services.Business admin services - PROG,UKBA - UK Border Agency,ADVANTAGE TECHNICAL RESOURCING,1001179599,"47,278.08"
Home Office,UKBA - UK Border Agency,29/11/2011,Professional & Admin Services.Business admin services - PROG,UKBA - UK Border Agency,ADVANTAGE TECHNICAL RESOURCING,1001185393,"39,398.40"
Home Office,UKBA - UK Border Agency,29/11/2011,Asylum Provision.Asylum accom Sec 95,UKBA - UK Border Agency,ANGEL GROUP,1001185398,"109,996.91"
Home Office,UKBA - UK Border Agency,29/11/2011,Asylum Provision.Asylum accom Sect4 Accom,UKBA - UK Border Agency,ANGEL GROUP,1001185398,"35,711.08"
Home Office,UKBA - UK Border Agency,02/11/2011,Law Enforcement & safety Equip.Surveillance & Det Equip- PROG,UKBA - UK Border Agency,ARQIVA LTD,1001174181,"50,225.58"
Home Office,UKBA - UK Border Agency,21/11/2011,"Law Enforcement & safety Equip.Haulage, Storage & Disp (HSD)",UKBA - UK Border Agency,ASSOCIATED BRITISH PORTS,1001182148,"222,526.00"
Home Office,UKBA - UK Border Agency,08/11/2011,"IT, TelecommsSoftware (COTS).SysSoftwareSupp & Maint-PROG",UKBA - UK Border Agency,ATOS IT SERVICES UK LTD,1001176878,"58,418.00"
Home Office,UKBA - UK Border Agency,04/11/2011,IT & Telecoms Components.Computer Equip (FA),UKBA - UK Border Agency,ATOS IT SERVICES UK LTD,1001175745,"65,721.00"
Home Office,UKBA - UK Border Agency,15/11/2011,IT & Telecoms Components.Computer Equip (FA),UKBA - UK Border Agency,ATOS IT SERVICES UK LTD,1001179609,"98,980.00"
Home Office,UKBA - UK Border Agency,17/11/2011,"Science, Technical & Research.Computer services - PROG",UKBA - UK Border Agency,ATOS IT SERVICES UK LTD,1001181106,"263,652.22"
Home Office,UKBA - UK Border Agency,15/11/2011,IT & Telecoms Components.Computer Equip (FA),UKBA - UK Border Agency,ATOS IT SERVICES UK LTD,1001179609,"194,034.00"
Home Office,UKBA - UK Border Agency,15/11/2011,IT & Telecoms Components.Computer Equip (FA),UKBA - UK Border Agency,ATOS IT SERVICES UK LTD,1001179609,"89,373.00"
Home Office,UKBA - UK Border Agency,15/11/2011,IT & Telecoms Components.Computer Equip (FA),UKBA - UK Border Agency,ATOS IT SERVICES UK LTD,1001179609,"49,422.12"
Home Office,UKBA - UK Border Agency,02/11/2011,IT & Telecoms Components.Computer Equip (FA),UKBA - UK Border Agency,ATOS IT SERVICES UK LTD,1001174183,"71,504.24"
Home Office,UKBA - UK Border Agency,08/11/2011,"IT, TelecommsSoftware (COTS).SysSoftwareSupp & Maint-PROG",UKBA - UK Border Agency,ATOS IT SERVICES UK LTD,1001176878,"84,623.00"
Home Office,UKBA - UK Border Agency,17/11/2011,"Science, Technical & Research.Computer services - PROG",UKBA - UK Border Agency,ATOS IT SERVICES UK LTD,1001181106,"36,596.27"
Home Office,UKBA - UK Border Agency,15/11/2011,IT & Telecoms Components.Computer Equip (FA),UKBA - UK Border Agency,ATOS IT SERVICES UK LTD,1001179609,"194,034.00"
Home Office,UKBA - UK Border Agency,14/11/2011,"IT, Broadcasting & Telecomms.Computer Equip & Access - PROG",UKBA - UK Border Agency,ATOS IT SERVICES UK LTD,1001179025,"33,269.00"
Home Office,UKBA - UK Border Agency,07/11/2011,"IT,TelecommsMan ServiceHosting.Support - PROG",UKBA - UK Border Agency,ATOS IT SERVICES UK LTD,1001176247,"75,663.04"
Home Office,UKBA - UK Border Agency,07/11/2011,"Science, Technical & Research.Computer services - PROG",UKBA - UK Border Agency,ATOS IT SERVICES UK LTD,1001176247,"39,170.00"
Home Office,UKBA - UK Border Agency,08/11/2011,"IT, TelecommsManaged Service.Support (General) - PROG",UKBA - UK Border Agency,ATOS IT SERVICES UK LTD,1001176878,"75,564.00"
Home Office,UKBA - UK Border Agency,23/11/2011,"IT, TelecommsManaged Service.Support (General) - PROG",UKBA - UK Border Agency,ATOS IT SERVICES UK LTD,1001183338,"212,857.00"
Home Office,UKBA - UK Border Agency,18/11/2011,"IT, Broadcasting & Telecomms.IT Run Costs other -Prog",UKBA - UK Border Agency,ATOS IT SERVICES UK LTD,1001181653,"310,460.98"
Home Office,UKBA - UK Border Agency,18/11/2011,"IT, Broadcasting & Telecomms.IT Run Costs other -Prog",UKBA - UK Border Agency,ATOS IT SERVICES UK LTD,1001181653,"32,829.57"
Home Office,UKBA - UK Border Agency,22/11/2011,IT & Telecoms Components.Standard Software (FA),UKBA - UK Border Agency,ATOS IT SERVICES UK LTD,1001182636,"31,488.00"
Home Office,UKBA - UK Border Agency,23/11/2011,"IT, Broadcasting & Telecomms.IT Run Costs other -Prog",UKBA - UK Border Agency,ATOS IT SERVICES UK LTD,1001183338,"29,386.00"
Home Office,UKBA - UK Border Agency,22/11/2011,IT & Telecoms Components.Computer Equip (FA),UKBA - UK Border Agency,ATOS IT SERVICES UK LTD,1001182636,"49,633.39"
Home Office,UKBA - UK Border Agency,22/11/2011,IT & Telecoms Components.Computer Equip (FA),UKBA - UK Border Agency,ATOS IT SERVICES UK LTD,1001182636,"82,605.99"
Home Office,UKBA - UK Border Agency,22/11/2011,"Science, Technical & Research.Computer services - PROG",UKBA - UK Border Agency,ATOS IT SERVICES UK LTD,1001182636,"796,405.16"
Home Office,UKBA - UK Border Agency,24/11/2011,"Science, Technical & Research.Computer services - PROG",UKBA - UK Border Agency,ATOS IT SERVICES UK LTD,1001183850,"42,212.54"
Home Office,UKBA - UK Border Agency,22/11/2011,"Science, Technical & Research.Computer services - PROG",UKBA - UK Border Agency,ATOS IT SERVICES UK LTD,1001182636,"86,960.28"
Home Office,UKBA - UK Border Agency,22/11/2011,IT & Telecoms Components.Computer Equip (FA),UKBA - UK Border Agency,ATOS IT SERVICES UK LTD,1001182636,"51,005.67"
Home Office,UKBA - UK Border Agency,29/11/2011,"Science, Technical & Research.Computer services - PROG",UKBA - UK Border Agency,ATOS IT SERVICES UK LTD,1001185401,"176,238.48"
Home Office,UKBA - UK Border Agency,25/11/2011,"IT,TelecommsManaged ServiceAMS.Support - ADMN",UKBA - UK Border Agency,ATOS IT SERVICES UK LTD,1001184438,"26,069.17"
Home Office,UKBA - UK Border Agency,29/11/2011,IT & Telecoms Components.Standard Software (FA),UKBA - UK Border Agency,ATOS IT SERVICES UK LTD,1001185401,"32,287.00"
Home Office,UKBA - UK Border Agency,30/11/2011,"IT, Broadcasting & Telecomms. IT Run Cost Info Support-PROG",UKBA - UK Border Agency,ATOS IT SERVICES UK LTD,1001186185,"43,127.95"
Home Office,UKBA - UK Border Agency,30/11/2011,"Science, Technical & Research.Computer services - PROG",UKBA - UK Border Agency,ATOS IT SERVICES UK LTD,1001186185,"29,086.47"
Home Office,UKBA - UK Border Agency,25/11/2011,IT & Telecoms Components.Computer Equip,UKBA - UK Border Agency,ATOS IT SOLUTIONS & SERVICES LTD,1001184439,"43,351.30"
Home Office,UKBA - UK Border Agency,25/11/2011,IT & Telecoms Components.Computer Equip,UKBA - UK Border Agency,ATOS IT SOLUTIONS & SERVICES LTD,1001184439,"205,912.33"
Home Office,UKBA - UK Border Agency,30/11/2011,"Transport, Storage & Mail Serv.Parking fees - PROG",UKBA - UK Border Agency,BAA BUSINESS SUPPORT CENTRE LTD,1001186186,"316,629.12"
Home Office,UKBA - UK Border Agency,22/11/2011,Grant,UKBA - UK Border Agency,BERKSHIRE EAST PCT (G),3000043791,"73,736.04"
Home Office,UKBA - UK Border Agency,16/11/2011,CEREMONYPAYMENTS,UKBA - UK Border Agency,BIRMINGHAM CITY COUNCIL,1001180341,"35,360.00"
Home Office,UKBA - UK Border Agency,16/11/2011,Grant,UKBA - UK Border Agency,BRADFORD COUNCIL(G),1001180878,"27,000.00"
Home Office,UKBA - UK Border Agency,16/11/2011,Grant,UKBA - UK Border Agency,BRIGHTON & HOVE COUNCIL (G),1001180879,"44,774.00"
Home Office,UKBA - UK Border Agency,24/11/2011,Grant,UKBA - UK Border Agency,BRISTOL CITY COUNCIL 1 (G),1001184196,"34,070.00"
Home Office,UKBA - UK Border Agency,16/11/2011,Grant,UKBA - UK Border Agency,BUCKINGHAMSHIRE COUNTY COUNCIL 1 (G),1001180880,"35,733.00"
Home Office,UKBA - UK Border Agency,29/11/2011,Grant,UKBA - UK Border Agency,BUCKINGHAMSHIRE COUNTY COUNCIL 1 (G),1001185939,"25,699.00"
Home Office,UKBA - UK Border Agency,02/11/2011,Grant,UKBA - UK Border Agency,BURNLEY TELEMATICS & TELEWORKING CENTRE LTD (G),1001175036,"25,014.00"
Home Office,UKBA - UK Border Agency,16/11/2011,Grant,UKBA - UK Border Agency,BURY MBC (G),1001180881,"38,416.00"
Home Office,UKBA - UK Border Agency,18/11/2011,Management & Admin Serv. Fees Legal Represent-ADMN,UKBA - UK Border Agency,CABINET OFFICE,3000043778,"42,000.00"
Home Office,UKBA - UK Border Agency,24/11/2011,Grant,UKBA - UK Border Agency,CAMBRIDGESHIRE COUNTY COUNCIL (G),1001184198,"31,260.00"
Home Office,UKBA - UK Border Agency,29/11/2011,Grant,UKBA - UK Border Agency,CAMBRIDGESHIRE COUNTY COUNCIL (G),1001185940,"31,166.00"
Home Office,UKBA - UK Border Agency,23/11/2011,Asylum Provision.Asylum accom Sec 95,UKBA - UK Border Agency,CARDIFF COUNTY COUNCIL,1001183354,"258,457.50"
Home Office,UKBA - UK Border Agency,23/11/2011,Asylum Provision.Asylum accom Sect4 Accom,UKBA - UK Border Agency,CARDIFF COUNTY COUNCIL,1001183354,"17,259.50"
Home Office,UKBA - UK Border Agency,24/11/2011,Grant,UKBA - UK Border Agency,CARDIFF COUNTY COUNCIL 1 (G),1001184199,"116,810.00"
Home Office,UKBA - UK Border Agency,07/11/2011,Asylum Provision.Asylum accom Sec 95,UKBA - UK Border Agency,CITY AND COUNTY OF SWANSEA,1001176259,"74,406.64"
Home Office,UKBA - UK Border Agency,29/11/2011,Asylum Provision.Asylum accom Sec 95,UKBA - UK Border Agency,CITY AND COUNTY OF SWANSEA,1001185424,"75,099.42"
Home Office,UKBA - UK Border Agency,04/11/2011,Grant,UKBA - UK Border Agency,CITY COLLEGE NOTTINGHAM (G),1001175857,"43,809.82"
Home Office,UKBA - UK Border Agency,16/11/2011,Grant,UKBA - UK Border Agency,CITY OF WAKEFIELD METROPOLITAN DISTRICT COUNCIL (G),1001180884,"30,915.00"
Home Office,UKBA - UK Border Agency,21/11/2011,Asylum Provision.Asylum accom Sec 95,UKBA - UK Border Agency,CLEARSPRINGS MANAGEMENT LTD,1001182165,"126,504.00"
Home Office,UKBA - UK Border Agency,21/11/2011,Asylum Provision.Asylum accom Sect4 Accom,UKBA - UK Border Agency,CLEARSPRINGS MANAGEMENT LTD,1001182165,"34,938.24"
Home Office,UKBA - UK Border Agency,25/11/2011,Asylum Provision.Asylum accom Sec 95,UKBA - UK Border Agency,CLEARSPRINGS MANAGEMENT LTD,1001184451,"615,950.90"
Home Office,UKBA - UK Border Agency,25/11/2011,Asylum Provision.Asylum accom Sect 98,UKBA - UK Border Agency,CLEARSPRINGS MANAGEMENT LTD,1001184451,"46,793.28"
Home Office,UKBA - UK Border Agency,25/11/2011,Asylum Provision.Asylum accom Sect4 Accom,UKBA - UK Border Agency,CLEARSPRINGS MANAGEMENT LTD,1001184451,"218,172.63"
Home Office,UKBA - UK Border Agency,21/11/2011,Asylum Provision.Asylum accom Sec 95,UKBA - UK Border Agency,CLEARSPRINGS MANAGEMENT LTD,1001182165,"138,219.20"
Home Office,UKBA - UK Border Agency,21/11/2011,Asylum Provision.Asylum accom Sect4 Accom,UKBA - UK Border Agency,CLEARSPRINGS MANAGEMENT LTD,1001182165,"28,486.11"
Home Office,UKBA - UK Border Agency,21/11/2011,Asylum Provision.Asylum accom Sec 95,UKBA - UK Border Agency,CLEARSPRINGS MANAGEMENT LTD,1001182165,"156,510.37"
Home Office,UKBA - UK Border Agency,21/11/2011,Asylum Provision.Asylum accom Sect4 Accom,UKBA - UK Border Agency,CLEARSPRINGS MANAGEMENT LTD,1001182165,"48,630.20"
Home Office,UKBA - UK Border Agency,21/11/2011,Asylum Provision.Asylum accom Sec 95,UKBA - UK Border Agency,CLEARSPRINGS MANAGEMENT LTD,1001182165,"201,390.02"
Home Office,UKBA - UK Border Agency,21/11/2011,Asylum Provision.Asylum accom Sect 98,UKBA - UK Border Agency,CLEARSPRINGS MANAGEMENT LTD,1001182165,"62,399.76"
Home Office,UKBA - UK Border Agency,21/11/2011,Asylum Provision.Asylum accom Sect4 Accom,UKBA - UK Border Agency,CLEARSPRINGS MANAGEMENT LTD,1001182165,"53,182.32"
Home Office,UKBA - UK Border Agency,24/11/2011,Grant,UKBA - UK Border Agency,COMMUNITY SUPPORT PLUS (G),1001184202,"139,471.22"
Home Office,UKBA - UK Border Agency,22/11/2011,Management & Admin Serv.Overseas Posting Costs-PROG,UKBA - UK Border Agency,CROWN RELOCATIONS,1001182659,"51,376.84"
Home Office,UKBA - UK Border Agency,28/11/2011,Professional & Admin Services. Visa Processing Services,UKBA - UK Border Agency,CSC COMPUTER SCIENCES CORPORATION,1001184893,"1,253,950.59"
Home Office,UKBA - UK Border Agency,28/11/2011,Professional & Admin Services. Visa Processing Services,UKBA - UK Border Agency,CSC COMPUTER SCIENCES CORPORATION,1001184893,"151,003.90"
Home Office,UKBA - UK Border Agency,23/11/2011,"Vehicles, Ships, Airplanes.Vessel Maintenance - PROG",UKBA - UK Border Agency,DAMEN SHIPYARDS GORINCHEM,7000006364,"65,226.52"
Home Office,UKBA - UK Border Agency,23/11/2011,"Vehicles, Ships, Airplanes.Vessel Maintenance - PROG",UKBA - UK Border Agency,DAMEN SHIPYARDS GORINCHEM,7000006364,"63,633.56"
Home Office,UKBA - UK Border Agency,15/11/2011,Other Government Department,UKBA - UK Border Agency,DEPARTMENT FOR WORK & PENSIONS (DWP),3000043761,"78,985.00"
Home Office,UKBA - UK Border Agency,09/11/2011,"Messenger, Portering and Reception Services",UKBA - UK Border Agency,EAMUS CORK SOLUTIONS,7000006320,"194,526.26"
Home Office,UKBA - UK Border Agency,30/11/2011,Grant,UKBA - UK Border Agency,EAST OF ENGLAND LOC GOV CONSOR (G),1001186624,"49,999.88"
Home Office,UKBA - UK Border Agency,29/11/2011,Grant,UKBA - UK Border Agency,EAST SUSSEX COUNTY COUNCIL 1 (G),1001185942,"26,734.00"
Home Office,UKBA - UK Border Agency,07/11/2011,Professional & Admin Services.Business admin services - PROG,UKBA - UK Border Agency,ERNST AND YOUNG LLP,1001176270,"64,107.00"
Home Office,UKBA - UK Border Agency,02/11/2011,Professional & Admin Services.Business admin services - PROG,UKBA - UK Border Agency,ERNST AND YOUNG LLP,1001174219,"-26,231.13"
Home Office,UKBA - UK Border Agency,29/11/2011,Professional & Admin Services.Business admin services - PROG,UKBA - UK Border Agency,ERNST AND YOUNG LLP,1001185435,"29,554.20"
Home Office,UKBA - UK Border Agency,16/11/2011,Professional & Admin Services.Business admin services - PROG,UKBA - UK Border Agency,ERNST AND YOUNG LLP,1001180407,"92,497.50"
Home Office,UKBA - UK Border Agency,11/11/2011,Professional & Admin Services.Business admin services - PROG,UKBA - UK Border Agency,ERNST AND YOUNG LLP,1001178491,"35,212.50"
Home Office,UKBA - UK Border Agency,15/11/2011,"Legal Serv, Civil Liable Serv.Adv Legal Costs - PROG",UKBA - UK Border Agency,FAIRFAX SOLICITORS,1001179650,"27,394.85"
Home Office,UKBA - UK Border Agency,21/11/2011,"Transport, Storage & Mail Serv.Mailing Mail Del Serv - PROG",UKBA - UK Border Agency,FCO SERVICES,3000043786,"94,496.88"
Home Office,UKBA - UK Border Agency,10/11/2011,"Transport, Storage & Mail Serv.Mailing Mail Del Serv - PROG",UKBA - UK Border Agency,FCO SERVICES,3000043738,"40,194.60"
Home Office,UKBA - UK Border Agency,04/11/2011,"IT, TelecommsManaged Service.Support (General) - ADMN",UKBA - UK Border Agency,FCO SERVICES,3000043710,"72,379.94"
Home Office,UKBA - UK Border Agency,07/11/2011,"IT, TelecommsHardware.Server - ADMN",UKBA - UK Border Agency,FCO SERVICES,3000043719,"447,300.00"
Home Office,UKBA - UK Border Agency,10/11/2011,"IT,TelecommsManaged ServiceAMS.Support - ADMN",UKBA - UK Border Agency,FCO SERVICES,3000043738,"495,000.00"
Home Office,UKBA - UK Border Agency,02/11/2011,"Transport, Storage & Mail Serv.Mailing Mail Del Serv - ADMN",UKBA - UK Border Agency,FRANCOTYP-POSTALIA LIMITED,1001174223,"40,000.00"
Home Office,UKBA - UK Border Agency,02/11/2011,IT & Telecoms Components.Computer Equip (FA),UKBA - UK Border Agency,FUJITSU SERVICES (ALCEDO) LTD,1001174224,"282,691.43"
Home Office,UKBA - UK Border Agency,16/11/2011,"Science, Technical & Research.Computer services - PROG",UKBA - UK Border Agency,FUJITSU SERVICES (ALCEDO) LTD,6200020052,"29,178.16"
Home Office,UKBA - UK Border Agency,16/11/2011,"Science, Technical & Research.Computer services - PROG",UKBA - UK Border Agency,FUJITSU SERVICES (ALCEDO) LTD,6200020052,"20,031.61"
Home Office,UKBA - UK Border Agency,02/11/2011,IT & Telecoms Components.Computer Equip (FA),UKBA - UK Border Agency,FUJITSU SERVICES (ALCEDO) LTD,1001174224,"458,590.31"
Home Office,UKBA - UK Border Agency,07/11/2011,"Science, Technical & Research.Computer services - PROG",UKBA - UK Border Agency,FUJITSU SERVICES (ALCEDO) LTD,1001176272,"31,825.04"
Home Office,UKBA - UK Border Agency,09/11/2011,IT & Telecoms Components.Standard Software (FA),UKBA - UK Border Agency,FUJITSU SERVICES (ALCEDO) LTD,1001177621,"267,533.64"
Home Office,UKBA - UK Border Agency,09/11/2011,IT & Telecoms Components.Standard Software (FA),UKBA - UK Border Agency,FUJITSU SERVICES (ALCEDO) LTD,1001177621,"266,342.40"
Home Office,UKBA - UK Border Agency,07/11/2011,"IT, TelecommsSoftware (COTS).Operating SysSupp &Maint-PROG",UKBA - UK Border Agency,FUJITSU SERVICES (ALCEDO) LTD,1001176272,"45,963.78"
Home Office,UKBA - UK Border Agency,16/11/2011,"Science, Technical & Research.Computer services - PROG",UKBA - UK Border Agency,FUJITSU SERVICES (ALCEDO) LTD,6200020052,"-21,959.72"
Home Office,UKBA - UK Border Agency,16/11/2011,"Science, Technical & Research.Computer services - PROG",UKBA - UK Border Agency,FUJITSU SERVICES (ALCEDO) LTD,6200020052,"-15,076.47"
Home Office,UKBA - UK Border Agency,21/11/2011,"Science, Technical & Research.Computer services - PROG",UKBA - UK Border Agency,FUJITSU SERVICES (ALCEDO) LTD,1001182182,"-7,217.44"
Home Office,UKBA - UK Border Agency,21/11/2011,"Science, Technical & Research.Computer services - PROG",UKBA - UK Border Agency,FUJITSU SERVICES (ALCEDO) LTD,1001182182,"-4,955.14"
Home Office,UKBA - UK Border Agency,25/11/2011,"IT, Broadcasting & Telecomms.IT Run Costs other -Prog",UKBA - UK Border Agency,FUJITSU SERVICES (ALCEDO) LTD,1001184465,"169,443.24"
Home Office,UKBA - UK Border Agency,30/11/2011,"IT, Broadcasting & Telecomms.IT Run Costs other -Prog",UKBA - UK Border Agency,FUJITSU SERVICES LTD,1001186220,"4,929.14"
Home Office,UKBA - UK Border Agency,30/11/2011,"IT, Broadcasting & Telecomms.IT Run Costs other -Prog",UKBA - UK Border Agency,FUJITSU SERVICES LTD,1001186220,"22,303.60"
Home Office,UKBA - UK Border Agency,30/11/2011,"IT, Broadcasting & Telecomms.IT Run Costs other -Prog",UKBA - UK Border Agency,FUJITSU SERVICES LTD,1001186220,"21,298.57"
Home Office,UKBA - UK Border Agency,14/11/2011,"IT, Broadcasting & Telecomms.IT Run Costs other -Prog",UKBA - UK Border Agency,FUJITSU SERVICES LTD,1001179045,"34,466.28"
Home Office,UKBA - UK Border Agency,28/11/2011,IT & Telecoms Components.Standard Software (FA),UKBA - UK Border Agency,FUJITSU SERVICES LTD,1001184899,"72,528.00"
Home Office,UKBA - UK Border Agency,25/11/2011,Politics & Civic Affairs.Refugee repatriation.serv,UKBA - UK Border Agency,G4S CARE & JUSTICE SERVICES (UK) LTD,1001184467,"282,654.85"
Home Office,UKBA - UK Border Agency,28/11/2011,Politics & Civic Affairs.Refugee repatriation.serv,UKBA - UK Border Agency,G4S CARE & JUSTICE SERVICES (UK) LTD,1001184900,"277,403.12"
Home Office,UKBA - UK Border Agency,11/11/2011,"Law Enforcement & safety Equip.Haulage, Storage & Disp (HSD)",UKBA - UK Border Agency,G4S CASH SERVICES (UK) LIMITED,1001178497,"21,951.86"
Home Office,UKBA - UK Border Agency,24/11/2011,Grant,UKBA - UK Border Agency,GLASGOW CITY COUNCIL 1 (G),1001184208,"97,942.00"
Home Office,UKBA - UK Border Agency,24/11/2011,Grant,UKBA - UK Border Agency,GLOUCESTERSHIRE COUNTY COUNCIL 1 (G),1001184209,"64,462.00"
Home Office,UKBA - UK Border Agency,17/11/2011,"Transport, Storage & Mail Serv.Mailing Mail Del Serv - ADMN",UKBA - UK Border Agency,GOVERNMENT CAR AND DESPATCH AGENCY (GCDA),3000043775,"21,095.19"
Home Office,UKBA - UK Border Agency,18/11/2011,"Transport, Storage & Mail Serv.Mailing Mail Del Serv - PROG",UKBA - UK Border Agency,GOVERNMENT CAR AND DESPATCH AGENCY (GCDA),3000043780,"10,805.93"
Home Office,UKBA - UK Border Agency,18/11/2011,"Transport, Storage & Mail Serv.Mailing Mail Del Serv - PROG",UKBA - UK Border Agency,GOVERNMENT CAR AND DESPATCH AGENCY (GCDA),3000043780,282.96
Home Office,UKBA - UK Border Agency,18/11/2011,"Transport, Storage & Mail Serv.Mailing Mail Del Serv - PROG",UKBA - UK Border Agency,GOVERNMENT CAR AND DESPATCH AGENCY (GCDA),3000043780,"15,639.30"
Home Office,UKBA - UK Border Agency,18/11/2011,"Transport, Storage & Mail Serv.Mailing Mail Del Serv - PROG",UKBA - UK Border Agency,GOVERNMENT CAR AND DESPATCH AGENCY (GCDA),3000043780,"1,012.00"
Home Office,UKBA - UK Border Agency,16/11/2011,Grant,UKBA - UK Border Agency,HAMPSHIRE COUNTY COUNCIL 1 (G),1001180892,"66,273.00"
Home Office,UKBA - UK Border Agency,21/11/2011,Asylum Provision.Asylum accom Sec 95,UKBA - UK Border Agency,HAPPY HOMES UK LTD,1001182191,"284,426.57"
Home Office,UKBA - UK Border Agency,21/11/2011,Asylum Provision.Asylum accom Sect 98,UKBA - UK Border Agency,HAPPY HOMES UK LTD,1001182191,"124,093.11"
Home Office,UKBA - UK Border Agency,21/11/2011,Asylum Provision.Asylum accom Sect4 Accom,UKBA - UK Border Agency,HAPPY HOMES UK LTD,1001182191,"31,098.33"
Home Office,UKBA - UK Border Agency,08/11/2011,Healthcare Services.Occupational Therapy Serv-ADMN,UKBA - UK Border Agency,HEALTH MANAGEMENT LTD,1001176937,"71,331.33"
Home Office,UKBA - UK Border Agency,14/11/2011,"IT, Broadcasting & Telecomms.IT Run Costs other -Prog",UKBA - UK Border Agency,HM REVENUE & CUSTOMS,3000043758,"1,153,273.34"
Home Office,UKBA - UK Border Agency,14/11/2011,"IT, Broadcasting & Telecomms.IT Run Costs other -Prog",UKBA - UK Border Agency,HM REVENUE & CUSTOMS,3000043758,"1,153,273.34"
Home Office,UKBA - UK Border Agency,14/11/2011,Other Government Department,UKBA - UK Border Agency,HM REVENUE & CUSTOMS,3000043758,0.34
Home Office,UKBA - UK Border Agency,24/11/2011,Grant,UKBA - UK Border Agency,HOUSING ASSOC CHARITABLE TRUST (G),1001184211,"41,002.75"
Home Office,UKBA - UK Border Agency,24/11/2011,"IT, Broadcasting & Telecomms.IT Run Costs other -Prog",UKBA - UK Border Agency,IBM DIRECT UNITED KINGDOM LTD,1001183882,"400,477.20"
Home Office,UKBA - UK Border Agency,30/11/2011,"IT, Broadcasting & Telecomms.IT Run Costs other -Prog",UKBA - UK Border Agency,IBM DIRECT UNITED KINGDOM LTD,1001186231,"3,323,062.00"
Home Office,UKBA - UK Border Agency,11/11/2011,"IT, Broadcasting & Telecomms.IT Run Costs other -Prog",UKBA - UK Border Agency,IBM DIRECT UNITED KINGDOM LTD,1001178500,"41,504.50"
Home Office,UKBA - UK Border Agency,25/11/2011,"IT, Broadcasting & Telecomms.IT Run Costs other -Prog",UKBA - UK Border Agency,IBM DIRECT UNITED KINGDOM LTD,1001184474,"562,587.60"
Home Office,UKBA - UK Border Agency,17/11/2011,"IT, Broadcasting & Telecomms.IT Run Costs other -Prog",UKBA - UK Border Agency,IBM DIRECT UNITED KINGDOM LTD,1001181137,"339,647.82"
Home Office,UKBA - UK Border Agency,11/11/2011,"IT, Broadcasting & Telecomms.IT Run Costs other -Prog",UKBA - UK Border Agency,IBM DIRECT UNITED KINGDOM LTD,1001178500,"368,872.22"
Home Office,UKBA - UK Border Agency,11/11/2011,"IT, Broadcasting & Telecomms.IT Run Costs other -Prog",UKBA - UK Border Agency,IBM DIRECT UNITED KINGDOM LTD,1001178500,"174,132.45"
Home Office,UKBA - UK Border Agency,25/11/2011,"IT, Broadcasting & Telecomms.IT Run Costs other -Prog",UKBA - UK Border Agency,IBM DIRECT UNITED KINGDOM LTD,1001184474,"97,486.33"
Home Office,UKBA - UK Border Agency,25/11/2011,"IT, Broadcasting & Telecomms.IT Run Costs other -Prog",UKBA - UK Border Agency,IBM DIRECT UNITED KINGDOM LTD,1001184474,"81,378.72"
Home Office,UKBA - UK Border Agency,23/11/2011,"IT, Broadcasting & Telecomms.IT Run Costs other -Prog",UKBA - UK Border Agency,IBM DIRECT UNITED KINGDOM LTD,1001183377,"24,843.00"
Home Office,UKBA - UK Border Agency,23/11/2011,"IT, Broadcasting & Telecomms.IT Run Costs other -Prog",UKBA - UK Border Agency,IBM DIRECT UNITED KINGDOM LTD,1001183377,"1,407,048.00"
Home Office,UKBA - UK Border Agency,23/11/2011,"IT, Broadcasting & Telecomms.IT Run Costs other -Prog",UKBA - UK Border Agency,IBM DIRECT UNITED KINGDOM LTD,1001183377,"537,787.00"
Home Office,UKBA - UK Border Agency,23/11/2011,"IT, Broadcasting & Telecomms.IT Run Costs other -Prog",UKBA - UK Border Agency,IBM DIRECT UNITED KINGDOM LTD,1001183377,"1,442,294.00"
Home Office,UKBA - UK Border Agency,23/11/2011,"IT, Broadcasting & Telecomms.IT Run Costs other -Prog",UKBA - UK Border Agency,IBM DIRECT UNITED KINGDOM LTD,1001183377,"2,847,714.00"
Home Office,UKBA - UK Border Agency,23/11/2011,"IT, Broadcasting & Telecomms.IT Run Costs other -Prog",UKBA - UK Border Agency,IBM DIRECT UNITED KINGDOM LTD,1001183377,"721,844.00"
Home Office,UKBA - UK Border Agency,23/11/2011,"IT, Broadcasting & Telecomms.IT Run Costs other -Prog",UKBA - UK Border Agency,IBM DIRECT UNITED KINGDOM LTD,1001183377,"521,811.00"
Home Office,UKBA - UK Border Agency,24/11/2011,"IT, Broadcasting & Telecomms.IT Run Costs other -Prog",UKBA - UK Border Agency,IBM DIRECT UNITED KINGDOM LTD,1001183882,"589,035.60"
Home Office,UKBA - UK Border Agency,09/11/2011,"IT, Broadcasting & Telecomms.IT Run Costs other -Prog",UKBA - UK Border Agency,IBM DIRECT UNITED KINGDOM LTD,6200020045,"-27,713.56"
Home Office,UKBA - UK Border Agency,11/11/2011,"IT, Broadcasting & Telecomms.IT Run Costs other -Prog",UKBA - UK Border Agency,IBM DIRECT UNITED KINGDOM LTD,1001178500,"-27,002.44"
Home Office,UKBA - UK Border Agency,30/11/2011,"IT, Broadcasting & Telecomms.IT Run Costs other -Prog",UKBA - UK Border Agency,IBM DIRECT UNITED KINGDOM LTD,1001186231,"-3,323,062.00"
Home Office,UKBA - UK Border Agency,08/11/2011,"IT, Broadcasting & Telecomms.IT Run Costs other -Prog",UKBA - UK Border Agency,ICTS (UK) LIMITED,1001176940,"26,683.20"
Home Office,UKBA - UK Border Agency,11/11/2011,"IT, Broadcasting & Telecomms.IT Run Costs other -Prog",UKBA - UK Border Agency,ICTS (UK) LIMITED,1001178501,"26,683.20"
Home Office,UKBA - UK Border Agency,03/11/2011,"Transport, Storage & Mail Serv.Fuel & Vehicle Supp Serv- PROG",UKBA - UK Border Agency,INCHCAPE FLEET SOLUTIONS LTD,1001175334,"92,660.25"
Home Office,UKBA - UK Border Agency,03/11/2011,"Transport, Storage & Mail Serv.Fuel & Vehicle Supp Serv- PROG",UKBA - UK Border Agency,INCHCAPE FLEET SOLUTIONS LTD,1001175334,-2.13
Home Office,UKBA - UK Border Agency,11/11/2011,"IT, TelecommsHardware.Server - PROG",UKBA - UK Border Agency,INSIGHT DIRECT (UK) LTD,1001178503,"448,190.64"
Home Office,UKBA - UK Border Agency,28/11/2011,"IT, Broadcasting & Telecomms. IT Run Cost Info Support-PROG",UKBA - UK Border Agency,INSIGHT DIRECT (UK) LTD,1001184913,"838,046.41"
Home Office,UKBA - UK Border Agency,22/11/2011,Grant,UKBA - UK Border Agency,INSPIRE FUTURES LTD(G),1001183140,"69,666.32"
Home Office,UKBA - UK Border Agency,23/11/2011,Other Government Department,UKBA - UK Border Agency,IOM INTERNATIONAL ORGANIZATION FOR MIGRATION,7000006358,"514,841.67"
Home Office,UKBA - UK Border Agency,11/11/2011,"Transport, Storage & Mail Serv.Document Storage Serv - ADMN",UKBA - UK Border Agency,IRON MOUNTAIN (UK) LTD,1001178505,"37,217.45"
Home Office,UKBA - UK Border Agency,11/11/2011,"Transport, Storage & Mail Serv.File (Archive) Storage - ADMN",UKBA - UK Border Agency,IRON MOUNTAIN (UK) LTD,1001178505,"346,544.89"
Home Office,UKBA - UK Border Agency,11/11/2011,"Transport, Storage & Mail Serv.Document Storage Serv - ADMN",UKBA - UK Border Agency,IRON MOUNTAIN (UK) LTD,1001178505,"34,609.25"
Home Office,UKBA - UK Border Agency,11/11/2011,"Transport, Storage & Mail Serv.Document Storage Serv - ADMN",UKBA - UK Border Agency,IRON MOUNTAIN (UK) LTD,1001178505,"66,450.45"
Home Office,UKBA - UK Border Agency,21/11/2011,Asylum Provision.Asylum accom Sec 95,UKBA - UK Border Agency,JOMAST PROPERTY AND FINANCE CO LTD,1001182195,"600,035.81"
Home Office,UKBA - UK Border Agency,21/11/2011,Asylum Provision.Asylum accom Sect4 Accom,UKBA - UK Border Agency,JOMAST PROPERTY AND FINANCE CO LTD,1001182195,"118,415.88"
Home Office,UKBA - UK Border Agency,29/11/2011,Grant,UKBA - UK Border Agency,KENT COUNTY COUNCIL 1 (G),1001185944,"556,441.00"
Home Office,UKBA - UK Border Agency,16/11/2011,Grant,UKBA - UK Border Agency,KINGSTON UPON HULL CITY COUNCIL 2 (G),1001180893,"27,030.00"
Home Office,UKBA - UK Border Agency,02/11/2011,Laboratory & Scientific Equip.Scientific Equip Running Costs,UKBA - UK Border Agency,L3 COMMUNICATIONS (UK) LTD,1001174250,"41,676.55"
Home Office,UKBA - UK Border Agency,24/11/2011,Grant,UKBA - UK Border Agency,LB OF BRENT CHILDRENS DIRECTORATE (G),1001184214,"69,868.00"
Home Office,UKBA - UK Border Agency,16/11/2011,Grant,UKBA - UK Border Agency,LEEDS CITY COUNCIL 1 (G),1001180896,"42,533.00"
Home Office,UKBA - UK Border Agency,22/11/2011,Grant,UKBA - UK Border Agency,LONDON BOROUGH OF BARKING & DAGENHAM (G),1001183142,"27,649.00"
Home Office,UKBA - UK Border Agency,24/11/2011,Grant,UKBA - UK Border Agency,LONDON BOROUGH OF CAMDEN 1 (G),1001184216,"71,383.00"
Home Office,UKBA - UK Border Agency,22/11/2011,Grant,UKBA - UK Border Agency,LONDON BOROUGH OF CROYDON 1 (G),1001183144,"957,791.00"
Home Office,UKBA - UK Border Agency,18/11/2011,Asylum Provision.Asylum Cont Out Serv,UKBA - UK Border Agency,LONDON BOROUGH OF ENFIELD,1001181706,"82,953.65"
Home Office,UKBA - UK Border Agency,24/11/2011,Grant,UKBA - UK Border Agency,LONDON BOROUGH OF GREENWICH 1 (G),1001184217,"32,447.00"
Home Office,UKBA - UK Border Agency,22/11/2011,Grant,UKBA - UK Border Agency,LONDON BOROUGH OF HARINGEY 1 (G),1001183147,"68,311.00"
Home Office,UKBA - UK Border Agency,24/11/2011,Grant,UKBA - UK Border Agency,LONDON BOROUGH OF HARINGEY 1 (G),1001184219,"37,409.00"
Home Office,UKBA - UK Border Agency,24/11/2011,Grant,UKBA - UK Border Agency,LONDON BOROUGH OF HARROW 1 (G),1001184220,"29,879.00"
Home Office,UKBA - UK Border Agency,29/11/2011,Grant,UKBA - UK Border Agency,LONDON BOROUGH OF HARROW 1 (G),1001185946,"29,400.00"
Home Office,UKBA - UK Border Agency,29/11/2011,Grant,UKBA - UK Border Agency,LONDON BOROUGH OF HILLINGDON 1 (G),1001185947,"277,800.00"
Home Office,UKBA - UK Border Agency,29/11/2011,Grant,UKBA - UK Border Agency,LONDON BOROUGH OF HOUNSLOW 1 (G),1001185948,"40,050.00"
Home Office,UKBA - UK Border Agency,24/11/2011,Grant,UKBA - UK Border Agency,LONDON BOROUGH OF ISLINGTON (G),1001184221,"89,377.00"
Home Office,UKBA - UK Border Agency,29/11/2011,Grant,UKBA - UK Border Agency,LONDON BOROUGH OF ISLINGTON (G),1001185949,"151,350.00"
Home Office,UKBA - UK Border Agency,24/11/2011,Grant,UKBA - UK Border Agency,LONDON BOROUGH OF KENSINGTON & CHELSEA (G),1001184222,"44,369.00"
Home Office,UKBA - UK Border Agency,29/11/2011,Grant,UKBA - UK Border Agency,LONDON BOROUGH OF KENSINGTON & CHELSEA (G),1001185950,"31,650.00"
Home Office,UKBA - UK Border Agency,24/11/2011,Grant,UKBA - UK Border Agency,LONDON BOROUGH OF LAMBETH 1 (G),1001184223,"46,354.00"
Home Office,UKBA - UK Border Agency,22/11/2011,Grant,UKBA - UK Border Agency,LONDON BOROUGH OF LEWISHAM 1 (G),1001183148,"26,777.00"
Home Office,UKBA - UK Border Agency,22/11/2011,Grant,UKBA - UK Border Agency,LONDON BOROUGH OF RICHMOND UPON THAMES (G),1001183150,"32,457.00"
Home Office,UKBA - UK Border Agency,29/11/2011,Grant,UKBA - UK Border Agency,LONDON BOROUGH OF RICHMOND UPON THAMES (G),1001185952,"36,150.00"
Home Office,UKBA - UK Border Agency,24/11/2011,Grant,UKBA - UK Border Agency,LONDON BOROUGH OF SOUTHWARK 1 (G),1001184224,"35,247.00"
Home Office,UKBA - UK Border Agency,24/11/2011,Asylum Provision.Asylum accom Sec 95,UKBA - UK Border Agency,MANCHESTER CITY COUNCIL,1001183893,"633,175.31"
Home Office,UKBA - UK Border Agency,24/11/2011,Asylum Provision.Asylum accom Sect4 Accom,UKBA - UK Border Agency,MANCHESTER CITY COUNCIL,1001183893,"8,922.15"
Home Office,UKBA - UK Border Agency,16/11/2011,Grant,UKBA - UK Border Agency,MANCHESTER CITY COUNCIL (G),1001180897,"212,254.00"
Home Office,UKBA - UK Border Agency,22/11/2011,Grant,UKBA - UK Border Agency,METROPOLITAN BOROUGH OF WIRRAL (G),1001183152,"35,020.00"
Home Office,UKBA - UK Border Agency,11/11/2011,Public Order .Jail or prison services.Detention costs,UKBA - UK Border Agency,METROPOLITAN POLICE AUTHORITY,1001178523,"38,979.00"
Home Office,UKBA - UK Border Agency,17/11/2011,Asylum Provision.Asylum accom Sec 95,UKBA - UK Border Agency,METROPOLITAN SUPPORT TRUST (EAST MIDLANDS),1001181146,"172,938.90"
Home Office,UKBA - UK Border Agency,17/11/2011,Asylum Provision.Asylum accom Sect4 Accom,UKBA - UK Border Agency,METROPOLITAN SUPPORT TRUST (EAST MIDLANDS),1001181146,"56,914.20"
Home Office,UKBA - UK Border Agency,03/11/2011,Asylum Provision.Asylum accom Sec 95,UKBA - UK Border Agency,METROPOLITAN SUPPORT TRUST (EAST MIDLANDS),1001175346,"183,109.50"
Home Office,UKBA - UK Border Agency,03/11/2011,Asylum Provision.Asylum accom Sect4 Accom,UKBA - UK Border Agency,METROPOLITAN SUPPORT TRUST (EAST MIDLANDS),1001175346,"53,231.07"
Home Office,UKBA - UK Border Agency,29/11/2011,Asylum Provision.Asylum accom Sec 95,UKBA - UK Border Agency,METROPOLITAN SUPPORT TRUST (EAST MIDLANDS),1001185467,"179,959.76"
Home Office,UKBA - UK Border Agency,29/11/2011,Asylum Provision.Asylum accom Sect4 Accom,UKBA - UK Border Agency,METROPOLITAN SUPPORT TRUST (EAST MIDLANDS),1001185467,"51,116.78"
Home Office,UKBA - UK Border Agency,23/11/2011,"Messenger, Portering and Reception Services",UKBA - UK Border Agency,MM TELEPERFORMANCE LTD T/A TELEPERFORMANCE,1001183392,"51,037.22"
Home Office,UKBA - UK Border Agency,08/11/2011,"Messenger, Portering and Reception Services",UKBA - UK Border Agency,MM TELEPERFORMANCE LTD T/A TELEPERFORMANCE,1001176961,"47,429.81"
Home Office,UKBA - UK Border Agency,08/11/2011,"Messenger, Portering and Reception Services",UKBA - UK Border Agency,MM TELEPERFORMANCE LTD T/A TELEPERFORMANCE,1001176961,"67,968.82"
Home Office,UKBA - UK Border Agency,24/11/2011,Grant,UKBA - UK Border Agency,MONMOUTHSHIRE COUNTY COUNCIL 1 (G),1001184225,"60,837.00"
Home Office,UKBA - UK Border Agency,11/11/2011,IT & Telecommunications.IT & Telecommunications - PROG,UKBA - UK Border Agency,MORPHO UK LTD,1001178526,"97,500.00"
Home Office,UKBA - UK Border Agency,04/11/2011,Management & Admin Serv.Civil Liability Serv - ADMN,UKBA - UK Border Agency,MORRISON & FOERSTER (UK) LLP,1001175803,"40,224.10"
Home Office,UKBA - UK Border Agency,16/11/2011,Grant,UKBA - UK Border Agency,NEWCASTLE CITY COUNCIL (G),1001180898,"32,612.00"
Home Office,UKBA - UK Border Agency,03/11/2011,Grant,UKBA - UK Border Agency,NEWPORT COUNTY BOROUGH COUNCIL 1 (G),1001175674,"30,372.00"
Home Office,UKBA - UK Border Agency,29/11/2011,Grant,UKBA - UK Border Agency,NORFOLK COUNTY COUNCIL 1 (G),1001185954,"53,528.00"
Home Office,UKBA - UK Border Agency,30/11/2011,Asylum Provision.Asylum accom Sec 95,UKBA - UK Border Agency,NORTHERN IRELAND HOUSING EXEC,1001186252,"125,945.55"
Home Office,UKBA - UK Border Agency,30/11/2011,Asylum Provision.Asylum accom Sect4 Accom,UKBA - UK Border Agency,NORTHERN IRELAND HOUSING EXEC,1001186252,"19,785.65"
Home Office,UKBA - UK Border Agency,11/11/2011,"Messenger, Portering and Reception Services",UKBA - UK Border Agency,NPIA (National Policing Improvement Agency),1001178530,"356,400.00"
Home Office,UKBA - UK Border Agency,11/11/2011,"Messenger, Portering and Reception Services",UKBA - UK Border Agency,NPIA (National Policing Improvement Agency),1001178530,"6,000.00"
Home Office,UKBA - UK Border Agency,07/11/2011,Laboratory & Scientific Equip.Scientific Equip Running Costs,UKBA - UK Border Agency,NUCTECH COMPANY LTD,7000006314,"180,000.00"
Home Office,UKBA - UK Border Agency,07/11/2011,"Public Order, Security, Safety.Security Guard Services - PROG",UKBA - UK Border Agency,OCS GROUP UK LTD,1001176297,"128,672.47"
Home Office,UKBA - UK Border Agency,16/11/2011,Grant,UKBA - UK Border Agency,OISC (G),1001180901,"323,120.00"
Home Office,UKBA - UK Border Agency,03/11/2011,Other Government Department,UKBA - UK Border Agency,OSAG - OFFICE OF THE ADVOCATE GENERAL,3000043708,"48,329.52"
Home Office,UKBA - UK Border Agency,16/11/2011,Grant,UKBA - UK Border Agency,OXFORDSHIRE COUNTY COUNCIL 1 (G),1001180902,"107,849.00"
Home Office,UKBA - UK Border Agency,23/11/2011,Management & Admin Serv.Overseas Posting Costs-PROG,UKBA - UK Border Agency,PARIS APARTMENT SERVICES,7000006360,"53,096.11"
Home Office,UKBA - UK Border Agency,29/11/2011,Grant,UKBA - UK Border Agency,PATH YORKSHIRE (G),1001185957,"60,579.00"
Home Office,UKBA - UK Border Agency,24/11/2011,Grant,UKBA - UK Border Agency,PEMBROKESHIRE COUNTY COUNCIL1 (G),1001184229,"35,534.00"
Home Office,UKBA - UK Border Agency,16/11/2011,Grant,UKBA - UK Border Agency,PORTSMOUTH CITY COUNCIL 2 (G),1001180903,"26,371.00"
Home Office,UKBA - UK Border Agency,29/11/2011,Grant,UKBA - UK Border Agency,PORTSMOUTH CITY COUNCIL 2 (G),1001185959,"28,644.00"
Home Office,UKBA - UK Border Agency,17/11/2011,Asylum Provision.Asylum accom Sec 95,UKBA - UK Border Agency,PRIORITY PROPERTIES NORTH WEST,1001181155,"116,823.49"
Home Office,UKBA - UK Border Agency,17/11/2011,Asylum Provision.Asylum accom Sect4 Accom,UKBA - UK Border Agency,PRIORITY PROPERTIES NORTH WEST,1001181155,"31,807.88"
Home Office,UKBA - UK Border Agency,21/11/2011,Asylum Provision.Asylum accom Sec 95,UKBA - UK Border Agency,PRIORITY PROPERTIES NORTH WEST,1001182223,"312,660.13"
Home Office,UKBA - UK Border Agency,21/11/2011,Asylum Provision.Asylum accom Sect4 Accom,UKBA - UK Border Agency,PRIORITY PROPERTIES NORTH WEST,1001182223,"44,178.46"
Home Office,UKBA - UK Border Agency,17/11/2011,Asylum Provision.Asylum accom Sec 95,UKBA - UK Border Agency,PRIORITY PROPERTIES NORTH WEST,1001181155,"342,350.94"
Home Office,UKBA - UK Border Agency,17/11/2011,Asylum Provision.Asylum accom Sect4 Accom,UKBA - UK Border Agency,PRIORITY PROPERTIES NORTH WEST,1001181155,"85,261.04"
Home Office,UKBA - UK Border Agency,21/11/2011,Asylum Provision.Asylum accom Sec 95,UKBA - UK Border Agency,PRIORITY PROPERTIES NORTH WEST,1001182223,"119,657.21"
Home Office,UKBA - UK Border Agency,21/11/2011,Asylum Provision.Asylum accom Sect4 Accom,UKBA - UK Border Agency,PRIORITY PROPERTIES NORTH WEST,1001182223,"30,772.94"
Home Office,UKBA - UK Border Agency,21/11/2011,Grant,UKBA - UK Border Agency,REFUGEE COUNCIL 1 (G),1001182509,"43,585.00"
Home Office,UKBA - UK Border Agency,21/11/2011,Grant,UKBA - UK Border Agency,REFUGEE COUNCIL 1 (G),1001182509,"43,585.00"
Home Office,UKBA - UK Border Agency,29/11/2011,Grant,UKBA - UK Border Agency,ROYAL BOROUGH OF KINGSTON-UPON-THAMES (G),1001185960,"47,759.52"
Home Office,UKBA - UK Border Agency,25/11/2011,Laboratory & Scientific Equip.Scientific Equip Running Costs,UKBA - UK Border Agency,SAIC SOLUTIONS LTD,1001184509,"30,582.00"
Home Office,UKBA - UK Border Agency,15/11/2011,Law Enforcement & safety Equip.Maint&Rep of Plant&Mach�PROG,UKBA - UK Border Agency,SECURITY SERVICES GROUP,3000043764,"34,119.00"
Home Office,UKBA - UK Border Agency,15/11/2011,Law Enforcement & safety Equip.Maint&Rep of Plant&Mach�PROG,UKBA - UK Border Agency,SECURITY SERVICES GROUP,3000043764,"35,161.55"
Home Office,UKBA - UK Border Agency,25/11/2011,Law Enforcement & safety Equip.Maint&Rep of Plant&Mach�PROG,UKBA - UK Border Agency,SECURITY SERVICES GROUP,3000043818,"23,650.40"
Home Office,UKBA - UK Border Agency,18/11/2011,"Public Order, Security Service.Detention Services Contracts",UKBA - UK Border Agency,SERCO  LTD,1001181730,"77,339.90"
Home Office,UKBA - UK Border Agency,16/11/2011,Grant,UKBA - UK Border Agency,SHEFFIELD CITY COUNCIL 1 (G),1001180907,"26,280.00"
Home Office,UKBA - UK Border Agency,16/11/2011,Grant,UKBA - UK Border Agency,SLOUGH BOROUGH COUNCIL (G),1001180908,"89,710.00"
Home Office,UKBA - UK Border Agency,24/11/2011,Grant,UKBA - UK Border Agency,SLOUGH BOROUGH COUNCIL (G),1001184235,"81,307.50"
Home Office,UKBA - UK Border Agency,07/11/2011,Asylum Provision.Asylum serv Sect4Vouchers,UKBA - UK Border Agency,SODEXHO PASS LTD,1001176314,"30,240.62"
Home Office,UKBA - UK Border Agency,07/11/2011,Asylum Provision.Asylum serv Sect4Vouchers,UKBA - UK Border Agency,SODEXHO PASS LTD,1001176314,"231,189.80"
Home Office,UKBA - UK Border Agency,17/11/2011,Asylum Provision.Asylum serv Sect4Vouchers,UKBA - UK Border Agency,SODEXHO PASS LTD,1001181165,"924,961.98"
Home Office,UKBA - UK Border Agency,09/11/2011,Asylum Provision.Asylum serv Sect4Vouchers,UKBA - UK Border Agency,SODEXHO PASS LTD,1001177672,"121,064.22"
Home Office,UKBA - UK Border Agency,15/11/2011,Asylum Provision.Asylum serv Sect4Vouchers,UKBA - UK Border Agency,SODEXHO PASS LTD,1001179710,"919,308.07"
Home Office,UKBA - UK Border Agency,16/11/2011,Asylum Provision.Asylum serv Sect4Vouchers,UKBA - UK Border Agency,SODEXHO PASS LTD,1001180526,"120,785.34"
Home Office,UKBA - UK Border Agency,21/11/2011,Asylum Provision.Asylum serv Sect4Vouchers,UKBA - UK Border Agency,SODEXHO PASS LTD,1001182230,"120,760.26"
Home Office,UKBA - UK Border Agency,21/11/2011,Asylum Provision.Asylum serv Sect4Vouchers,UKBA - UK Border Agency,SODEXHO PASS LTD,1001182230,"930,263.02"
Home Office,UKBA - UK Border Agency,29/11/2011,Asylum Provision.Asylum serv Sect4Vouchers,UKBA - UK Border Agency,SODEXHO PASS LTD,1001185496,"928,292.23"
Home Office,UKBA - UK Border Agency,29/11/2011,Asylum Provision.Asylum serv Sect4Vouchers,UKBA - UK Border Agency,SODEXHO PASS LTD,1001185496,"100,072.95"
Home Office,UKBA - UK Border Agency,22/11/2011,"Science, Technical & Research.Computer services - PROG",UKBA - UK Border Agency,SOFTWARE AG (UK) LTD,1001182743,"65,046.65"
Home Office,UKBA - UK Border Agency,24/11/2011,Grant,UKBA - UK Border Agency,SOLIHULL MBC,1001184236,"259,105.00"
Home Office,UKBA - UK Border Agency,03/11/2011,Grant,UKBA - UK Border Agency,SOUTH WEST REGIONAL CONSORTIUM (G),1001175676,"25,700.00"
Home Office,UKBA - UK Border Agency,11/11/2011,Public Order .Jail or prison services.Detention costs,UKBA - UK Border Agency,SOUTH YORKSHIRE POLICE,1001178547,"28,318.25"
Home Office,UKBA - UK Border Agency,15/11/2011,Public Order .Jail or prison services.Detention costs,UKBA - UK Border Agency,SOUTH YORKSHIRE POLICE,1001179712,"28,778.75"
Home Office,UKBA - UK Border Agency,28/11/2011,IT & Telecoms Components.Computer Equip (FA),UKBA - UK Border Agency,SPECIALIST COMPUTER CENTRES PLC,1001184941,"52,800.00"
Home Office,UKBA - UK Border Agency,17/11/2011,IT & Telecoms Components.Computer Equip (FA),UKBA - UK Border Agency,SPECIALIST COMPUTER CENTRES PLC,1001181168,"93,169.63"
Home Office,UKBA - UK Border Agency,18/11/2011,IT & Telecoms Components.Computer Equip (FA),UKBA - UK Border Agency,SPECIALIST COMPUTER CENTRES PLC,1001181735,"72,600.00"
Home Office,UKBA - UK Border Agency,10/11/2011,IT & Telecoms Components.Computer Equip (FA),UKBA - UK Border Agency,SPECIALIST COMPUTER CENTRES PLC,1001178035,"69,126.83"
Home Office,UKBA - UK Border Agency,10/11/2011,IT & Telecoms Components.Computer Equip (FA),UKBA - UK Border Agency,SPECIALIST COMPUTER CENTRES PLC,1001178035,"61,133.40"
Home Office,UKBA - UK Border Agency,18/11/2011,IT & Telecoms Components.Computer Equip (FA),UKBA - UK Border Agency,SPECIALIST COMPUTER CENTRES PLC,1001181735,"58,564.72"
Home Office,UKBA - UK Border Agency,29/11/2011,Grant,UKBA - UK Border Agency,SURREY COUNTY COUNCIL 1 (G),1001185961,"141,575.00"
Home Office,UKBA - UK Border Agency,02/11/2011,Asylum Provision.Asylum Cont Out Serv,UKBA - UK Border Agency,TAMESIDE METROPOLITAN BOROUGH,1001174314,"30,421.58"
Home Office,UKBA - UK Border Agency,15/11/2011,"Law Enforcement & safety Equip.Haulage, Storage & Disp (HSD)",UKBA - UK Border Agency,THAMESDOWN RECYCLING,1001179717,"33,160.91"
Home Office,UKBA - UK Border Agency,07/11/2011,"Transport, Storage & Mail Serv.Overseas travel - PROG",UKBA - UK Border Agency,THE CHANNEL TUNNEL GROUP LTD,1001176322,"41,828.00"
Home Office,UKBA - UK Border Agency,11/11/2011,"ERF 2009 NIACE, Learning and Refugee Families (LARF), Year 1 Interim 30% Payment",UKBA - UK Border Agency,THE NATIONAL INSTITUTE OF ADULT CONTINUING EDUCATION,1001178861,"32,218.71"
Home Office,UKBA - UK Border Agency,29/11/2011,Grant,UKBA - UK Border Agency,THURROCK COUNCIL 1 (G),1001185963,"70,350.00"
Home Office,UKBA - UK Border Agency,18/11/2011,"Law Enforcement & safety Equip.Haulage, Storage & Disp (HSD)",UKBA - UK Border Agency,TNT UK LTD,1001181744,"258,160.99"
Home Office,UKBA - UK Border Agency,22/11/2011,Grant,UKBA - UK Border Agency,TRAFFORD METROPOLITAN BOROUGH COUNCIL (G),1001183158,"30,317.00"
Home Office,UKBA - UK Border Agency,17/11/2011,Professional & Admin Services.Criminal law services - PROG,UKBA - UK Border Agency,TREASURY SOLICITORS OFFICE,3000043777,"1,190,845.90"
Home Office,UKBA - UK Border Agency,17/11/2011,Professional & Admin Services.Criminal law services - PROG,UKBA - UK Border Agency,TREASURY SOLICITORS OFFICE,3000043777,"234,409.04"
Home Office,UKBA - UK Border Agency,17/11/2011,Professional & Admin Services.Criminal law services - PROG,UKBA - UK Border Agency,TREASURY SOLICITORS OFFICE,3000043777,"96,845.00"
Home Office,UKBA - UK Border Agency,17/11/2011,Professional & Admin Services.Criminal law services - PROG,UKBA - UK Border Agency,TREASURY SOLICITORS OFFICE,3000043777,"94,682.51"
Home Office,UKBA - UK Border Agency,17/11/2011,Professional & Admin Services.Criminal law services - PROG,UKBA - UK Border Agency,TREASURY SOLICITORS OFFICE,3000043777,"33,971.00"
Home Office,UKBA - UK Border Agency,17/11/2011,Professional & Admin Services.Criminal law services - PROG,UKBA - UK Border Agency,TREASURY SOLICITORS OFFICE,3000043777,"11,126.40"
Home Office,UKBA - UK Border Agency,17/11/2011,Professional & Admin Services.Criminal law services - PROG,UKBA - UK Border Agency,TREASURY SOLICITORS OFFICE,3000043777,"21,802.70"
Home Office,UKBA - UK Border Agency,17/11/2011,Professional & Admin Services.Criminal law services - PROG,UKBA - UK Border Agency,TREASURY SOLICITORS OFFICE,3000043777,"2,504.82"
Home Office,UKBA - UK Border Agency,18/11/2011,Professional & Admin Services.Criminal law services - PROG,UKBA - UK Border Agency,TREASURY SOLICITORS OFFICE,3000043782,"234,026.50"
Home Office,UKBA - UK Border Agency,18/11/2011,Professional & Admin Services.Criminal law services - PROG,UKBA - UK Border Agency,TREASURY SOLICITORS OFFICE,3000043782,"120,096.02"
Home Office,UKBA - UK Border Agency,18/11/2011,Professional & Admin Services.Criminal law services - PROG,UKBA - UK Border Agency,TREASURY SOLICITORS OFFICE,3000043782,"87,102.00"
Home Office,UKBA - UK Border Agency,18/11/2011,Professional & Admin Services.Criminal law services - PROG,UKBA - UK Border Agency,TREASURY SOLICITORS OFFICE,3000043782,"34,919.73"
Home Office,UKBA - UK Border Agency,18/11/2011,Professional & Admin Services.Criminal law services - PROG,UKBA - UK Border Agency,TREASURY SOLICITORS OFFICE,3000043782,"33,964.00"
Home Office,UKBA - UK Border Agency,18/11/2011,Professional & Admin Services.Criminal law services - PROG,UKBA - UK Border Agency,TREASURY SOLICITORS OFFICE,3000043782,"32,596.96"
Home Office,UKBA - UK Border Agency,02/11/2011,Professional & Admin Services.Criminal law services - PROG,UKBA - UK Border Agency,TREASURY SOLICITORS OFFICE,3000043700,"226,905.59"
Home Office,UKBA - UK Border Agency,07/11/2011,Professional & Admin Services.Criminal law services - PROG,UKBA - UK Border Agency,TREASURY SOLICITORS OFFICE,3000043725,"111,998.15"
Home Office,UKBA - UK Border Agency,25/11/2011,Professional & Admin Services.Criminal law services - PROG,UKBA - UK Border Agency,TREASURY SOLICITORS OFFICE,3000043821,"201,123.06"
Home Office,UKBA - UK Border Agency,25/11/2011,Professional & Admin Services.Criminal law services - PROG,UKBA - UK Border Agency,TREASURY SOLICITORS OFFICE,3000043821,"210,290.00"
Home Office,UKBA - UK Border Agency,22/11/2011,Professional & Admin Services.Criminal law services - PROG,UKBA - UK Border Agency,TREASURY SOLICITORS OFFICE,3000043797,"84,475.50"
Home Office,UKBA - UK Border Agency,25/11/2011,Professional & Admin Services.Criminal law services - PROG,UKBA - UK Border Agency,TREASURY SOLICITORS OFFICE,3000043821,"305,866.36"
Home Office,UKBA - UK Border Agency,22/11/2011,Asylum Provision.Asylum accom Sec 95,UKBA - UK Border Agency,UNITED PROPERTY MANAGEMENT,1001182754,"271,309.31"
Home Office,UKBA - UK Border Agency,22/11/2011,Asylum Provision.Asylum accom Sect 98,UKBA - UK Border Agency,UNITED PROPERTY MANAGEMENT,1001182754,"67,364.91"
Home Office,UKBA - UK Border Agency,22/11/2011,Asylum Provision.Asylum accom Sect4 Accom,UKBA - UK Border Agency,UNITED PROPERTY MANAGEMENT,1001182754,"77,011.83"
Home Office,UKBA - UK Border Agency,22/11/2011,Asylum Provision.Asylum accom Sec 95,UKBA - UK Border Agency,UNITED PROPERTY MANAGEMENT,1001182754,"419,132.15"
Home Office,UKBA - UK Border Agency,22/11/2011,Asylum Provision.Asylum accom Sect4 Accom,UKBA - UK Border Agency,UNITED PROPERTY MANAGEMENT,1001182754,"50,529.84"
Home Office,UKBA - UK Border Agency,22/11/2011,Asylum Provision.Asylum accom Sec 95,UKBA - UK Border Agency,UNITED PROPERTY MANAGEMENT,1001182754,"137,108.28"
Home Office,UKBA - UK Border Agency,22/11/2011,Asylum Provision.Asylum accom Sect4 Accom,UKBA - UK Border Agency,UNITED PROPERTY MANAGEMENT,1001182754,"24,008.32"
Home Office,UKBA - UK Border Agency,02/11/2011,"Messenger, Portering and Reception Services",UKBA - UK Border Agency,USCIS (DEPT OF HOMELAND SECURITY),7000006310,"929,584.80"
Home Office,UKBA - UK Border Agency,28/11/2011,Professional & Admin Services. Visa Processing Services,UKBA - UK Border Agency,VF WORLDWIDE HOLDINGS LTD,7000006378,"2,635,684.23"
Home Office,UKBA - UK Border Agency,07/11/2011,Animal Material & Supplies. Detect Dogs-Kennel & Misc-PROG,UKBA - UK Border Agency,WAGTAIL UK LTD,1001176332,"92,295.12"
Home Office,UKBA - UK Border Agency,30/11/2011,Animal Material & Supplies. Detect Dogs-Kennel & Misc-PROG,UKBA - UK Border Agency,WAGTAIL UK LTD,1001186292,"92,295.12"
Home Office,UKBA - UK Border Agency,24/11/2011,Grant,UKBA - UK Border Agency,WARWICKSHIRE COUNTY COUNCIL 1 (G),1001184240,"181,600.00"
Home Office,UKBA - UK Border Agency,29/11/2011,Grant,UKBA - UK Border Agency,WARWICKSHIRE COUNTY COUNCIL 1 (G),1001185964,"232,228.00"
Home Office,UKBA - UK Border Agency,24/11/2011,Grant,UKBA - UK Border Agency,WEST SUSSEX COUNTY COUNCIL 1 (G),1001184242,"98,327.00"
Home Office,UKBA - UK Border Agency,29/11/2011,Grant,UKBA - UK Border Agency,WEST SUSSEX COUNTY COUNCIL 1 (G),1001185965,"67,800.00"
Home Office,UKBA - UK Border Agency,24/11/2011,Grant,UKBA - UK Border Agency,WILTSHIRE COUNTY COUNCIL 1 (G),1001184243,"35,988.00"
Home Office,UKBA - UK Border Agency,23/11/2011,Asylum Provision.Asylum accom Sec 95,UKBA - UK Border Agency,YMCA GLASGOW,1001183429,"675,226.68"
Home Office,UKBA - UK Border Agency,23/11/2011,Asylum Provision.Asylum accom Sect 98,UKBA - UK Border Agency,YMCA GLASGOW,1001183429,"66,188.41"
Home Office,UKBA - UK Border Agency,23/11/2011,Asylum Provision.Asylum accom Sect4 Accom,UKBA - UK Border Agency,YMCA GLASGOW,1001183429,"130,179.90"
Home Office,Home Office,11/11/2011,Grant,CPG - Crime & Policing Group,PNB OFFICIAL SIDE SECRETARIAL (G),1001178860,"76,409.00"
Home Office,Home Office,21/11/2011,Other Government Department,CPG - Crime & Policing Group,CENTRAL FINANCE & CONTRACTS UNIT,7000006355,"184,808.11"
Home Office,Home Office,23/11/2011,"IT,TelecomTelephNtworkTelephon.Voice lines and Calls - PROG",CPG - Crime & Policing Group,CABLE & WIRELESS,1001183348,"224,724.00"
Home Office,Home Office,23/11/2011,"IT,TelecomTelephNtworkTelephon.Voice lines and Calls - PROG",CPG - Crime & Policing Group,CABLE & WIRELESS,1001183348,"112,362.00"
Home Office,Home Office,23/11/2011,"IT,TelecomTelephNtworkTelephon.Voice lines and Calls - PROG",CPG - Crime & Policing Group,CABLE & WIRELESS,1001183348,"-112,362.00"
Home Office,Home Office,04/11/2011,Grant,CPG - Crime & Policing Group,SOUTH YORKSHIRE POLICE AUTHORITY 1 (G),1001175858,"554,650.00"
Home Office,Home Office,07/11/2011,Social Research,CPG - Crime & Policing Group,NATIONAL CENTRE FOR SOCIAL RESEARCH,1001176292,"30,000.00"
Home Office,Home Office,02/11/2011,Grant,CPG - Crime & Policing Group,AVON & SOMERSET POLICE AUTHORITY 1 (G),1001175034,"10,077,352.00"
Home Office,Home Office,02/11/2011,Grant,CPG - Crime & Policing Group,AVON & SOMERSET POLICE AUTHORITY 1 (G),1001175034,"465,155.50"
Home Office,Home Office,02/11/2011,Grant,CPG - Crime & Policing Group,BEDFORDSHIRE POLICE AUTHORITY 1 (G),1001175035,"3,659,509.00"
Home Office,Home Office,02/11/2011,Grant,CPG - Crime & Policing Group,BEDFORDSHIRE POLICE AUTHORITY 1 (G),1001175035,"194,411.50"
Home Office,Home Office,02/11/2011,Grant,CPG - Crime & Policing Group,CAMBRIDGESHIRE POLICE AUTHORITY 1 (G),1001175037,"4,478,210.00"
Home Office,Home Office,02/11/2011,Grant,CPG - Crime & Policing Group,CAMBRIDGESHIRE POLICE AUTHORITY 1 (G),1001175037,"234,366.00"
Home Office,Home Office,02/11/2011,Grant,CPG - Crime & Policing Group,CHAMBERLAIN OF LONDON (G),1001175038,"2,637,391.00"
Home Office,Home Office,02/11/2011,Grant,CPG - Crime & Policing Group,CHAMBERLAIN OF LONDON (G),1001175038,"168,204.50"
Home Office,Home Office,02/11/2011,Grant,CPG - Crime & Policing Group,CHESHIRE POLICE AUTHORITY 2 (G),1001175039,"5,792,834.00"
Home Office,Home Office,02/11/2011,Grant,CPG - Crime & Policing Group,CHESHIRE POLICE AUTHORITY 2 (G),1001175039,"299,640.50"
Home Office,Home Office,02/11/2011,Grant,CPG - Crime & Policing Group,CLEVELAND POLICE AUTHORITY 1 (G),1001175040,"4,279,609.00"
Home Office,Home Office,02/11/2011,Grant,CPG - Crime & Policing Group,CLEVELAND POLICE AUTHORITY 1 (G),1001175040,"238,220.75"
Home Office,Home Office,02/11/2011,Grant,CPG - Crime & Policing Group,CUMBRIA POLICE AUTHORITY 1 (G),1001175041,"2,754,604.00"
Home Office,Home Office,02/11/2011,Grant,CPG - Crime & Policing Group,CUMBRIA POLICE AUTHORITY 1 (G),1001175041,"168,413.25"
Home Office,Home Office,02/11/2011,Grant,CPG - Crime & Policing Group,DERBYSHIRE POLICE AUTHORITY 1 (G),1001175042,"5,846,241.00"
Home Office,Home Office,02/11/2011,Grant,CPG - Crime & Policing Group,DERBYSHIRE POLICE AUTHORITY 1 (G),1001175042,"288,811.25"
Home Office,Home Office,02/11/2011,Grant,CPG - Crime & Policing Group,DEVON & CORNWALL POLICE AUTHORITY 1 (G),1001175043,"9,911,628.00"
Home Office,Home Office,02/11/2011,Grant,CPG - Crime & Policing Group,DEVON & CORNWALL POLICE AUTHORITY 1 (G),1001175043,"511,081.75"
Home Office,Home Office,02/11/2011,Grant,CPG - Crime & Policing Group,DORSET POLICE AUTHORITY 1 (G),1001175044,"3,822,155.00"
Home Office,Home Office,02/11/2011,Grant,CPG - Crime & Policing Group,DORSET POLICE AUTHORITY 1 (G),1001175044,"190,916.50"
Home Office,Home Office,02/11/2011,Grant,CPG - Crime & Policing Group,DURHAM POLICE AUTHORITY 1 (G),1001175045,"3,982,069.00"
Home Office,Home Office,02/11/2011,Grant,CPG - Crime & Policing Group,DURHAM POLICE AUTHORITY 1 (G),1001175045,"229,858.25"
Home Office,Home Office,02/11/2011,Grant,CPG - Crime & Policing Group,DYFED POWYS POLICE AUTHORITY 1 (G),1001175046,"3,400,650.00"
Home Office,Home Office,02/11/2011,Grant,CPG - Crime & Policing Group,DYFED POWYS POLICE AUTHORITY 1 (G),1001175046,"147,087.75"
Home Office,Home Office,02/11/2011,Grant,CPG - Crime & Policing Group,ESSEX POLICE AUTHORITY (G),1001175047,"9,800,828.00"
Home Office,Home Office,02/11/2011,Grant,CPG - Crime & Policing Group,ESSEX POLICE AUTHORITY (G),1001175047,"433,001.00"
Home Office,Home Office,02/11/2011,Grant,CPG - Crime & Policing Group,GLOUCESTERSHIRE POLICE AUTHORITY (G),1001175048,"3,254,375.00"
Home Office,Home Office,02/11/2011,Grant,CPG - Crime & Policing Group,GLOUCESTERSHIRE POLICE AUTHORITY (G),1001175048,"171,772.25"
Home Office,Home Office,02/11/2011,Grant,CPG - Crime & Policing Group,GREATER LONDON AUTHORITY (G),1001175049,"93,977,997.00"
Home Office,Home Office,02/11/2011,Grant,CPG - Crime & Policing Group,GREATER LONDON AUTHORITY (G),1001175049,"5,630,355.25"
Home Office,Home Office,02/11/2011,Grant,CPG - Crime & Policing Group,GREATER MANCHESTER POLICE AUTHORITY (G),1001175050,"20,705,963.00"
Home Office,Home Office,02/11/2011,Grant,CPG - Crime & Policing Group,GREATER MANCHESTER POLICE AUTHORITY (G),1001175050,"1,074,356.75"
Home Office,Home Office,02/11/2011,Grant,CPG - Crime & Policing Group,GWENT POLICE AUTHORITY 1 (G),1001175051,"4,012,840.00"
Home Office,Home Office,02/11/2011,Grant,CPG - Crime & Policing Group,GWENT POLICE AUTHORITY 1 (G),1001175051,"207,970.75"
Home Office,Home Office,02/11/2011,Grant,CPG - Crime & Policing Group,HAMPSHIRE POLICE AUTHORITY 1 (G),1001175052,"11,497,255.00"
Home Office,Home Office,02/11/2011,Grant,CPG - Crime & Policing Group,HAMPSHIRE POLICE AUTHORITY 1 (G),1001175052,"536,465.25"
Home Office,Home Office,02/11/2011,Grant,CPG - Crime & Policing Group,HERTFORDSHIRE POLICE AUTHORITY 1 (G),1001175053,"6,623,331.00"
Home Office,Home Office,02/11/2011,Grant,CPG - Crime & Policing Group,HERTFORDSHIRE POLICE AUTHORITY 1 (G),1001175053,"271,844.50"
Home Office,Home Office,02/11/2011,Grant,CPG - Crime & Policing Group,HUMBERSIDE POLICE AUTHORITY 1 (G),1001175054,"6,232,921.00"
Home Office,Home Office,02/11/2011,Grant,CPG - Crime & Policing Group,HUMBERSIDE POLICE AUTHORITY 1 (G),1001175054,"323,070.25"
Home Office,Home Office,02/11/2011,Grant,CPG - Crime & Policing Group,KENT POLICE AUTHORITY 1 (G),1001175055,"9,823,144.00"
Home Office,Home Office,02/11/2011,Grant,CPG - Crime & Policing Group,KENT POLICE AUTHORITY 1 (G),1001175055,"495,498.25"
Home Office,Home Office,02/11/2011,Grant,CPG - Crime & Policing Group,LANCASHIRE POLICE AUTHORITY 1 (G),1001175057,"9,528,222.00"
Home Office,Home Office,02/11/2011,Grant,CPG - Crime & Policing Group,LANCASHIRE POLICE AUTHORITY 1 (G),1001175057,"507,880.00"
Home Office,Home Office,02/11/2011,Grant,CPG - Crime & Policing Group,LEICESTERSHIRE POLICE AUTHORITY (G),1001175058,"6,036,080.00"
Home Office,Home Office,02/11/2011,Grant,CPG - Crime & Policing Group,LEICESTERSHIRE POLICE AUTHORITY (G),1001175058,"315,420.25"
Home Office,Home Office,02/11/2011,Grant,CPG - Crime & Policing Group,LINCOLNSHIRE POLICE AUTHORITY 1 (G),1001175059,"3,571,904.00"
Home Office,Home Office,02/11/2011,Grant,CPG - Crime & Policing Group,LINCOLNSHIRE POLICE AUTHORITY 1 (G),1001175059,"179,473.75"
Home Office,Home Office,02/11/2011,Grant,CPG - Crime & Policing Group,MERSEYSIDE POLICE AUTHORITY 1 (G),1001175062,"11,480,388.00"
Home Office,Home Office,02/11/2011,Grant,CPG - Crime & Policing Group,MERSEYSIDE POLICE AUTHORITY 1 (G),1001175062,"629,055.75"
Home Office,Home Office,02/11/2011,Grant,CPG - Crime & Policing Group,NEW WEST MERCIA POLICE AUTHORITY (G),1001175063,"6,178,620.00"
Home Office,Home Office,02/11/2011,Grant,CPG - Crime & Policing Group,NEW WEST MERCIA POLICE AUTHORITY (G),1001175063,"338,099.75"
Home Office,Home Office,02/11/2011,Grant,CPG - Crime & Policing Group,NORFOLK POLICE AUTHORITY 1 (G),1001175064,"4,805,069.00"
Home Office,Home Office,02/11/2011,Grant,CPG - Crime & Policing Group,NORFOLK POLICE AUTHORITY 1 (G),1001175064,"247,591.25"
Home Office,Home Office,02/11/2011,Grant,CPG - Crime & Policing Group,NORTH WALES POLICE AUTHORITY (G),1001175065,"4,677,883.00"
Home Office,Home Office,02/11/2011,Grant,CPG - Crime & Policing Group,NORTH WALES POLICE AUTHORITY (G),1001175065,"213,928.00"
Home Office,Home Office,02/11/2011,Grant,CPG - Crime & Policing Group,NORTH YORKSHIRE POLICE AUTHORITY (G),1001175066,"3,937,104.00"
Home Office,Home Office,02/11/2011,Grant,CPG - Crime & Policing Group,NORTH YORKSHIRE POLICE AUTHORITY (G),1001175066,"199,553.00"
Home Office,Home Office,02/11/2011,Grant,CPG - Crime & Policing Group,NORTHAMPTONSHIRE POLICE 1 (G),1001175067,"4,046,674.00"
Home Office,Home Office,02/11/2011,Grant,CPG - Crime & Policing Group,NORTHAMPTONSHIRE POLICE 1 (G),1001175067,"196,292.25"
Home Office,Home Office,02/11/2011,Grant,CPG - Crime & Policing Group,NORTHUMBRIA POLICE (G),1001175068,"10,357,098.00"
Home Office,Home Office,02/11/2011,Grant,CPG - Crime & Policing Group,NORTHUMBRIA POLICE (G),1001175068,"584,698.75"
Home Office,Home Office,02/11/2011,Grant,CPG - Crime & Policing Group,NOTTINGHAMSHIRE POLICE AUTHORITY 2 (G),1001175069,"7,237,470.00"
Home Office,Home Office,02/11/2011,Grant,CPG - Crime & Policing Group,NOTTINGHAMSHIRE POLICE AUTHORITY 2 (G),1001175069,"343,532.50"
Home Office,Home Office,02/11/2011,Grant,CPG - Crime & Policing Group,SOUTH WALES POLICE AUTHORITY 1 (G),1001175070,"8,387,288.00"
Home Office,Home Office,02/11/2011,Grant,CPG - Crime & Policing Group,SOUTH WALES POLICE AUTHORITY 1 (G),1001175070,"451,150.25"
Home Office,Home Office,02/11/2011,Grant,CPG - Crime & Policing Group,SOUTH YORKSHIRE POLICE AUTHORITY 1 (G),1001175071,"9,230,816.00"
Home Office,Home Office,02/11/2011,Grant,CPG - Crime & Policing Group,SOUTH YORKSHIRE POLICE AUTHORITY 1 (G),1001175071,"495,887.25"
Home Office,Home Office,02/11/2011,Grant,CPG - Crime & Policing Group,STAFFORDSHIRE POLICE AUTHORITY (G),1001175072,"6,180,975.00"
Home Office,Home Office,02/11/2011,Grant,CPG - Crime & Policing Group,STAFFORDSHIRE POLICE AUTHORITY (G),1001175072,"316,029.00"
Home Office,Home Office,02/11/2011,Grant,CPG - Crime & Policing Group,SUFFOLK POLICE AUTHORITY (G),1001175073,"3,825,493.00"
Home Office,Home Office,02/11/2011,Grant,CPG - Crime & Policing Group,SUFFOLK POLICE AUTHORITY (G),1001175073,"203,367.00"
Home Office,Home Office,02/11/2011,Grant,CPG - Crime & Policing Group,SURREY POLICE AUTHORITY 1 (G),1001175074,"5,835,740.00"
Home Office,Home Office,02/11/2011,Grant,CPG - Crime & Policing Group,SURREY POLICE AUTHORITY 1 (G),1001175074,"283,814.50"
Home Office,Home Office,02/11/2011,Grant,CPG - Crime & Policing Group,SUSSEX POLICE AUTHORITY 1 (G),1001175075,"9,081,460.00"
Home Office,Home Office,02/11/2011,Grant,CPG - Crime & Policing Group,SUSSEX POLICE AUTHORITY 1 (G),1001175075,"419,328.75"
Home Office,Home Office,02/11/2011,Grant,CPG - Crime & Policing Group,THAMES VALLEY POLICE (G),1001175077,"13,179,571.00"
Home Office,Home Office,02/11/2011,Grant,CPG - Crime & Policing Group,THAMES VALLEY POLICE (G),1001175077,"684,147.25"
Home Office,Home Office,02/11/2011,Grant,CPG - Crime & Policing Group,WARWICKSHIRE POLICE AUTHORITY 1 (G),1001175078,"2,932,142.00"
Home Office,Home Office,02/11/2011,Grant,CPG - Crime & Policing Group,WARWICKSHIRE POLICE AUTHORITY 1 (G),1001175078,"196,737.75"
Home Office,Home Office,02/11/2011,Grant,CPG - Crime & Policing Group,WEST MIDLANDS POLICE AUTHORITY 1 (G),1001175079,"22,740,680.00"
Home Office,Home Office,02/11/2011,Grant,CPG - Crime & Policing Group,WEST MIDLANDS POLICE AUTHORITY 1 (G),1001175079,"1,139,472.25"
Home Office,Home Office,02/11/2011,Grant,CPG - Crime & Policing Group,WEST YORKSHIRE POLICE (G),1001175080,"16,054,480.00"
Home Office,Home Office,02/11/2011,Grant,CPG - Crime & Policing Group,WEST YORKSHIRE POLICE (G),1001175080,"835,806.50"
Home Office,Home Office,02/11/2011,Grant,CPG - Crime & Policing Group,WILTSHIRE CONSTABULARY (G),1001175081,"3,468,252.00"
Home Office,Home Office,02/11/2011,Grant,CPG - Crime & Policing Group,WILTSHIRE CONSTABULARY (G),1001175081,"188,232.50"
Home Office,Home Office,18/11/2011,Grant,CPG - Crime & Policing Group,CO-ORDINATED ACTION AGAINST DOMESTIC ABUSE (G),1001181751,"325,000.00"
Home Office,Home Office,28/11/2011,"Legal Serv, Civil Liable Serv.Adv Legal Costs - PROG",CPG - Crime & Policing Group,GREATER MANCHESTER POLICE,1001184905,"27,500.00"
Home Office,Home Office,17/11/2011,Grant,CPG - Crime & Policing Group,REFUGE (G),1001181446,"62,500.00"
Home Office,Home Office,15/11/2011,Grant,CPG - Crime & Policing Group,WILTSHIRE CONSTABULARY (G),1001180122,"92,673.65"
Home Office,Home Office,07/11/2011,Grant,CPG - Crime & Policing Group,PRINCES TRUST (G),1001176791,"75,000.00"
Home Office,Home Office,01/11/2011,Grant,CPG - Crime & Policing Group,TRIBAL EDUCATION LTD (G),1001174169,"499,635.12"
Home Office,Home Office,07/11/2011,Grant,CPG - Crime & Policing Group,WEST MIDLANDS POLICE AUTHORITY 1 (G),1001176793,"250,000.00"
Home Office,Home Office,04/11/2011,"IT, Broadcasting & Telecomms.IT Running Cost - Maint - PROG",CPG - Crime & Policing Group,SAVVIS UK LTD,1001175832,"26,807.56"
Home Office,Home Office,09/11/2011,"IT, Broadcasting & Telecomms.IT Running Cost - Maint - PROG",CPG - Crime & Policing Group,SAVVIS UK LTD,1001177666,"26,807.56"
Home Office,Home Office,01/11/2011,Public Administration Services.ContOut RC Services-other-ADMN,CPG - Crime & Policing Group,CATCH22,6200019273,"99,725.00"
Home Office,Home Office,09/11/2011,Public Administration Services.ContOut RC Services-other-ADMN,CPG - Crime & Policing Group,CATCH22,6200020043,"34,350.00"
Home Office,Home Office,30/11/2011,"Science, Technical & Research.Testing",CPG - Crime & Policing Group,CONCATENO UK LTD,1001186204,"60,065.28"
Home Office,Home Office,25/11/2011,"Messenger, Portering and Reception Services",CPG - Crime & Policing Group,CONCATENO UK LTD,1001184454,"267,612.00"
Home Office,Home Office,02/11/2011,Grant,CPG - Crime & Policing Group,KNOWSLEY MBC (G),1001175056,"39,202.50"
Home Office,Home Office,02/11/2011,Grant,CPG - Crime & Policing Group,LONDON BOROUGH OF HOUNSLOW 1 (G),1001175060,"127,360.00"
Home Office,Home Office,02/11/2011,Grant,CPG - Crime & Policing Group,LONDON BOROUGH OF ISLINGTON (G),1001175061,"218,536.00"
Home Office,Home Office,03/11/2011,Grant,CPG - Crime & Policing Group,NORTH LINCOLNSHIRE PCT (G),3000043706,"101,992.50"
Home Office,Home Office,03/11/2011,Grant,CPG - Crime & Policing Group,NOTTINGHAMSHIRE COUNTY TEACHING PCT (G),3000043707,"343,896.00"
Home Office,Home Office,24/11/2011,"Building, Construction Service.Building, Construction Service - PROG",CPG - Crime & Policing Group,"KELLOGG, BROWN AND ROOT LTD",1001183886,"38,681.16"
Home Office,Home Office,09/11/2011,Management & Admin Serv.Marketing services - PROG,CPG - Crime & Policing Group,QUEENS UNIVERSITY BELFAST (THE),1001177661,"31,495.00"
Home Office,Home Office,03/11/2011,"IT, Broadcasting & Telecomms.IT Running Cost - Maint - PROG",CPG - Crime & Policing Group,WORDWAVE INTERNATIONAL LTD,1001175381,"43,617.34"
Home Office,Home Office,29/11/2011,Grant,CPG - Crime & Policing Group,INDEPENDENT POLICE COMPLAINTS COMISSION (G),1001185943,"2,500,000.00"
Home Office,Home Office,29/11/2011,Grant,CPG - Crime & Policing Group,NPIA (G),1001185955,"21,000,000.00"
Home Office,Home Office,23/11/2011,"Advertising, Media and Marketing",CPG - Crime & Policing Group,COI COMMUNICATIONS,3000043798,"26,275.84"
Home Office,Home Office,22/11/2011,Management & Admin Serv.Civil Liability Serv - ADMN,CPG - Crime & Policing Group,LINKLATERS LLP,1001182699,347.14
Home Office,Home Office,22/11/2011,Management & Admin Serv.Civil Liability Serv - ADMN,CPG - Crime & Policing Group,LINKLATERS LLP,1001182699,"42,745.92"
Home Office,Home Office,21/11/2011,Management & Admin Serv.Civil Liability Serv - ADMN,CPG - Crime & Policing Group,LINKLATERS LLP,1001182204,"61,896.00"
Home Office,Home Office,21/11/2011,Management & Admin Serv.Civil Liability Serv - ADMN,CPG - Crime & Policing Group,LINKLATERS LLP,1001182204,"1,691.04"
Home Office,Home Office,14/11/2011,Professional & Admin Services.Consultancy - Advice - ADMN,CPG - Crime & Policing Group,PRICE WATERHOUSE COOPERS LLP,1001179068,"129,578.40"
Home Office,Home Office,14/11/2011,Professional & Admin Services.Consultancy - Advice - ADMN,CPG - Crime & Policing Group,PRICE WATERHOUSE COOPERS LLP,1001179068,199.20
Home Office,Home Office,14/11/2011,Professional & Admin Services.Consultancy - Advice - ADMN,CPG - Crime & Policing Group,PRICE WATERHOUSE COOPERS LLP,1001179068,"185,202.00"
Home Office,Home Office,14/11/2011,Professional & Admin Services.Consultancy - Advice - ADMN,CPG - Crime & Policing Group,PRICE WATERHOUSE COOPERS LLP,1001179068,568.80
Home Office,Home Office,04/11/2011,Grant,CPG - Crime & Policing Group,COMMUNITIES & LOCAL GOVERNMENT (G),3000043709,"4,735,973.00"
Home Office,Home Office,21/11/2011,Grant,CPG - Crime & Policing Group,CLINKS (G),1001182508,"125,000.00"
Home Office,Home Office,21/11/2011,Management & Admin Serv.Management Support Serv - PROG,CPG - Crime & Policing Group,COMMUNITY DEV FOUNDATION,1001182167,"60,000.00"
Home Office,Home Office,16/11/2011,Grant,CPG - Crime & Policing Group,SOCA (G),1001180909,"34,000,000.00"
Home Office,Home Office,17/11/2011,Grant,CPG - Crime & Policing Group,EAST HERTFORDSHIRE DC (G),1001181445,"157,741.64"
Home Office,Home Office,08/11/2011,Grant,CPG - Crime & Policing Group,NORTHAMPTONSHIRE POLICE 1 (G),1001177385,"59,257.66"
Home Office,Home Office,28/11/2011,"Legal Serv, Civil Liable Serv.Adv Legal Costs - PROG",CPG - Crime & Policing Group,USMS ASSETS FORFEITURE FUND,7000006381,"287,939.07"
Home Office,Home Office,10/11/2011,Grant,"Strategy, Immigration and International Group",HAMPSHIRE POLICE AUTHORITY 1 (G),1001178289,"421,267.55"
Home Office,Home Office,08/11/2011,Grant,"Strategy, Immigration and International Group",ISA (G),1001177383,"972,955.00"
Home Office,Home Office,28/11/2011,"Science, Technical & Research.Computer services - ADMN","Strategy, Immigration and International Group",LOGICA UK LTD,1001184921,"50,871.60"
Home Office,Home Office,28/11/2011,"Science, Technical & Research.Computer services - ADMN","Strategy, Immigration and International Group",LOGICA UK LTD,1001184921,"50,871.60"
Home Office,Home Office,28/11/2011,"Science, Technical & Research.Computer services - ADMN","Strategy, Immigration and International Group",LOGICA UK LTD,1001184921,"50,871.60"
Home Office,Home Office,28/11/2011,"Science, Technical & Research.Computer services - ADMN","Strategy, Immigration and International Group",LOGICA UK LTD,1001184921,"50,871.60"
Home Office,Home Office,28/11/2011,"Science, Technical & Research.Computer services - ADMN","Strategy, Immigration and International Group",LOGICA UK LTD,1001184921,"50,871.60"
Home Office,Home Office,28/11/2011,"Science, Technical & Research.Computer services - ADMN","Strategy, Immigration and International Group",LOGICA UK LTD,1001184921,"50,871.60"
Home Office,Home Office,28/11/2011,"Science, Technical & Research.Computer services - ADMN","Strategy, Immigration and International Group",LOGICA UK LTD,1001184921,"50,871.60"
Home Office,Home Office,28/11/2011,"Science, Technical & Research.Computer services - ADMN","Strategy, Immigration and International Group",LOGICA UK LTD,1001184921,"112,782.82"
Home Office,Home Office,28/11/2011,"Science, Technical & Research.Computer services - ADMN","Strategy, Immigration and International Group",LOGICA UK LTD,1001184921,"50,871.60"
Home Office,Home Office,16/11/2011,Management & Admin Serv.Civil Liability Serv - PROG,"Strategy, Immigration and International Group",PETERS & PETERS SOLICITORS LLP,1001180496,"35,097.17"
Home Office,Home Office,28/11/2011,Grant,OSCT - Office of Security and Counter-Terrorism,ACPO (G),1001185254,"94,339.88"
Home Office,Home Office,28/11/2011,Grant,OSCT - Office of Security and Counter-Terrorism,ACPO (G),1001185254,"60,565.36"
Home Office,Home Office,10/11/2011,Other Government Department,OSCT - Office of Security and Counter-Terrorism,CABINET OFFICE,3000043736,"182,407.00"
Home Office,Home Office,02/11/2011,"Messenger, Portering and Reception Services",OSCT - Office of Security and Counter-Terrorism,CT CENTRE (MOD) T/A DSTL,1001174209,"494,266.51"
Home Office,Home Office,23/11/2011,"Messenger, Portering and Reception Services",OSCT - Office of Security and Counter-Terrorism,CT CENTRE (MOD) T/A DSTL,1001183362,"39,544.56"
Home Office,Home Office,23/11/2011,"Messenger, Portering and Reception Services",OSCT - Office of Security and Counter-Terrorism,CT CENTRE (MOD) T/A DSTL,1001183362,"4,389.44"
Home Office,Home Office,28/11/2011,Grant,OSCT - Office of Security and Counter-Terrorism,DORSET POLICE AUTHORITY 1 (G),1001185255,"99,500.00"
Home Office,Home Office,28/11/2011,Grant,OSCT - Office of Security and Counter-Terrorism,DORSET POLICE AUTHORITY 1 (G),1001185255,"151,360.00"
Home Office,Home Office,21/11/2011,Professional & Admin Services.Consultant - Imp & Del - ADMN,OSCT - Office of Security and Counter-Terrorism,KPMG LLP,1001182201,"29,726.40"
Home Office,Home Office,30/11/2011,Professional & Admin Services.Consultant - Imp & Del - ADMN,OSCT - Office of Security and Counter-Terrorism,KPMG LLP,1001186235,"32,008.80"
Home Office,Home Office,15/11/2011,Grant,OSCT - Office of Security and Counter-Terrorism,LONDON ORGANISING COMMITTEE OF THE OLYMPIC GAMES AND PARALYMPIC GAMES (G),1001180118,"6,414,695.84"
Home Office,Home Office,10/11/2011,Professional & Admin Services.Seconded in Staff costs.ADMN,OSCT - Office of Security and Counter-Terrorism,METROPOLITAN POLICE AUTHORITY,1001178014,"4,115.09"
Home Office,Home Office,10/11/2011,Professional & Admin Services.Seconded in Staff costs.ADMN,OSCT - Office of Security and Counter-Terrorism,METROPOLITAN POLICE AUTHORITY,1001178014,"9,292.36"
Home Office,Home Office,10/11/2011,Professional & Admin Services.Seconded in Staff costs.ADMN,OSCT - Office of Security and Counter-Terrorism,METROPOLITAN POLICE AUTHORITY,1001178014,"5,350.85"
Home Office,Home Office,10/11/2011,Professional & Admin Services.Seconded in Staff costs.ADMN,OSCT - Office of Security and Counter-Terrorism,METROPOLITAN POLICE AUTHORITY,1001178014,"9,655.64"
Home Office,Home Office,10/11/2011,Professional & Admin Services.Seconded in Staff costs.ADMN,OSCT - Office of Security and Counter-Terrorism,METROPOLITAN POLICE AUTHORITY,1001178014,"4,956.74"
Home Office,Home Office,10/11/2011,Professional & Admin Services.Seconded in Staff costs.ADMN,OSCT - Office of Security and Counter-Terrorism,METROPOLITAN POLICE AUTHORITY,1001178014,"3,786.13"
Home Office,Home Office,10/11/2011,Professional & Admin Services.Seconded in Staff costs.ADMN,OSCT - Office of Security and Counter-Terrorism,METROPOLITAN POLICE AUTHORITY,1001178014,"8,624.93"
Home Office,Home Office,10/11/2011,Professional & Admin Services.Seconded in Staff costs.ADMN,OSCT - Office of Security and Counter-Terrorism,METROPOLITAN POLICE AUTHORITY,1001178014,"6,643.40"
Home Office,Home Office,10/11/2011,Professional & Admin Services.Seconded in Staff costs.ADMN,OSCT - Office of Security and Counter-Terrorism,METROPOLITAN POLICE AUTHORITY,1001178014,"4,256.81"
Home Office,Home Office,10/11/2011,Professional & Admin Services.Seconded in Staff costs.ADMN,OSCT - Office of Security and Counter-Terrorism,METROPOLITAN POLICE AUTHORITY,1001178014,"7,439.52"
Home Office,Home Office,10/11/2011,Professional & Admin Services.Seconded in Staff costs.ADMN,OSCT - Office of Security and Counter-Terrorism,METROPOLITAN POLICE AUTHORITY,1001178014,"6,100.50"
Home Office,Home Office,10/11/2011,Professional & Admin Services.Seconded in Staff costs.ADMN,OSCT - Office of Security and Counter-Terrorism,METROPOLITAN POLICE AUTHORITY,1001178014,"5,278.38"
Home Office,Home Office,10/11/2011,Professional & Admin Services.Seconded in Staff costs.ADMN,OSCT - Office of Security and Counter-Terrorism,METROPOLITAN POLICE AUTHORITY,1001178014,"6,483.68"
Home Office,Home Office,10/11/2011,Professional & Admin Services.Seconded in Staff costs.ADMN,OSCT - Office of Security and Counter-Terrorism,METROPOLITAN POLICE AUTHORITY,1001178014,"6,419.70"
Home Office,Home Office,28/11/2011,Grant,OSCT - Office of Security and Counter-Terrorism,METROPOLITAN POLICE AUTHORITY  (G),1001185258,"489,834.00"
Home Office,Home Office,15/11/2011,Grant,OSCT - Office of Security and Counter-Terrorism,METROPOLITAN POLICE AUTHORITY  (G),1001180119,"741,608.00"
Home Office,Home Office,28/11/2011,Grant,OSCT - Office of Security and Counter-Terrorism,METROPOLITAN POLICE AUTHORITY  (G),1001185258,"93,739.00"
Home Office,Home Office,29/11/2011,Professional & Admin Services.Seconded in Staff costs.ADMN,OSCT - Office of Security and Counter-Terrorism,MINISTRY OF DEFENCE,3000043829,"34,373.74"
Home Office,Home Office,08/11/2011,Healthcare Services.Healthcare Services - PROG,OSCT - Office of Security and Counter-Terrorism,MOREDUN RESEARCH INSTITUTE,1001176962,"55,199.23"
Home Office,Home Office,09/11/2011,Professional & Admin Services.Seconded in Staff costs.ADMN,OSCT - Office of Security and Counter-Terrorism,NATIONAL AUDIT OFFICE,3000043733,"28,143.48"
Home Office,Home Office,02/11/2011,Professional & Admin Services.Seconded in Staff costs.ADMN,OSCT - Office of Security and Counter-Terrorism,OLYMPIC DELIVERY AUTHORITY,1001174273,"26,319.56"
Home Office,Home Office,02/11/2011,Professional & Admin Services.Consultant - Imp & Del - PROG,OSCT - Office of Security and Counter-Terrorism,SYSTEMS CONSULTANTS SERVICES LTD,1001174313,"160,157.50"
Home Office,Home Office,02/11/2011,Professional & Admin Services.Seconded in Staff costs - PROG,OSCT - Office of Security and Counter-Terrorism,THAMES VALLEY POLICE AUTHORITY,1001174315,"27,343.54"
Home Office,Home Office,30/11/2011,Professional & Admin Services.Facilities Man Serv - ADMN,SSD - Shared Services Directorates,AMEY COMMUNITY,1001186172,"340,794.91"
Home Office,Home Office,30/11/2011,Professional & Admin Services.Facilities Man Serv - ADMN,SSD - Shared Services Directorates,AMEY COMMUNITY,1001186172,"825,943.35"
Home Office,Home Office,30/11/2011,Professional & Admin Services.Facilities Man Serv - ADMN,SSD - Shared Services Directorates,AMEY COMMUNITY,1001186172,"328,113.70"
Home Office,Home Office,30/11/2011,Professional & Admin Services.Facilities Man Serv - ADMN,SSD - Shared Services Directorates,AMEY COMMUNITY,1001186172,"-27,490.08"
Home Office,Home Office,30/11/2011,Professional & Admin Services.Facilities Man Serv - ADMN,SSD - Shared Services Directorates,AMEY COMMUNITY,1001186172,"25,387.20"
Home Office,Home Office,02/11/2011,Professional & Admin Services.Facilities Man Serv - ADMN,SSD - Shared Services Directorates,AMEY COMMUNITY,1001174177,"171,605.89"
Home Office,Home Office,16/11/2011,Professional & Admin Services.Facilities Man Serv - ADMN,SSD - Shared Services Directorates,AMEY COMMUNITY,1001180326,"91,512.09"
Home Office,Home Office,24/11/2011,Professional & Admin Services.Facilities Man Serv - ADMN,SSD - Shared Services Directorates,AMEY COMMUNITY,1001183844,"96,512.70"
Home Office,Home Office,16/11/2011,Professional & Admin Services.Facilities Man Serv - ADMN,SSD - Shared Services Directorates,AMEY COMMUNITY,1001180327,"188,615.52"
Home Office,Home Office,24/11/2011,Professional & Admin Services.Facilities Man Serv - ADMN,SSD - Shared Services Directorates,AMEY COMMUNITY,1001183845,"35,651.68"
Home Office,Home Office,18/11/2011,Professional & Admin Services.Facilities Man Serv - ADMN,SSD - Shared Services Directorates,AMEY COMMUNITY,1001181650,"205,328.72"
Home Office,Home Office,14/11/2011,Management & Admin Serv.Temp IT N/w Specialists - ADMN,SSD - Shared Services Directorates,AMTEC CONSULTING GROUP,1001179023,"27,331.20"
Home Office,Home Office,14/11/2011,Management & Admin Serv.Temp IT N/w Specialists - ADMN,SSD - Shared Services Directorates,AMTEC CONSULTING GROUP,1001179023,521.40
Home Office,Home Office,25/11/2011,"Building, Construction Service.Planned Interior finish-ADMN",SSD - Shared Services Directorates,ANNES GATE PROPERTY PLC,1001184436,"59,697.86"
Home Office,Home Office,25/11/2011,"Building, Construction Service.Planned Interior finish-ADMN",SSD - Shared Services Directorates,ANNES GATE PROPERTY PLC,1001184436,"3,257,783.68"
Home Office,Home Office,25/11/2011,Professional & Admin Services.Consultant - Imp & Del - PROG,SSD - Shared Services Directorates,ATKINS LTD,1001184437,"25,212.96"
Home Office,Home Office,04/11/2011,"Building, Construction Service.Building ConstructionServ-ADMN",SSD - Shared Services Directorates,ATKINS LTD,1001175744,"81,147.36"
Home Office,Home Office,10/11/2011,Professional & Admin Services.Facilities Man Serv - ADMN,SSD - Shared Services Directorates,ATKINS LTD,1001177977,"175,062.91"
Home Office,Home Office,04/11/2011,"IT, TelecommsHardware Desktop.Support and Maintenance - ADMN",SSD - Shared Services Directorates,ATOS IT SERVICES UK LTD,1001175745,"38,957.73"
Home Office,Home Office,04/11/2011,"IT, Broadcasting & Telecomms. IT Run Cost Info Support-PROG",SSD - Shared Services Directorates,ATOS IT SERVICES UK LTD,1001175745,"61,923.84"
Home Office,Home Office,04/11/2011,"IT, Broadcasting & Telecomms. IT Run Cost Info Support-PROG",SSD - Shared Services Directorates,ATOS IT SERVICES UK LTD,1001175745,"6,729.45"
Home Office,Home Office,04/11/2011,"IT, Broadcasting & Telecomms. IT Run Cost Info Support-PROG",SSD - Shared Services Directorates,ATOS IT SERVICES UK LTD,1001175745,"104,763.94"
Home Office,Home Office,04/11/2011,"IT, Broadcasting & Telecomms. IT Run Cost Info Support-PROG",SSD - Shared Services Directorates,ATOS IT SERVICES UK LTD,1001175745,580.39
Home Office,Home Office,04/11/2011,"IT, Broadcasting & Telecomms.IT Run Costs other -Prog",SSD - Shared Services Directorates,ATOS IT SERVICES UK LTD,1001175745,236.18
Home Office,Home Office,17/11/2011,"IT, TelecommsHardware Desktop.Support and Maintenance - PROG",SSD - Shared Services Directorates,ATOS IT SERVICES UK LTD,1001181106,"656,328.35"
Home Office,Home Office,17/11/2011,"IT, TelecommsHardware Desktop.Support and Maintenance - PROG",SSD - Shared Services Directorates,ATOS IT SERVICES UK LTD,1001181106,"492,231.00"
Home Office,Home Office,17/11/2011,"IT, TelecommsHardware Desktop.Support and Maintenance - PROG",SSD - Shared Services Directorates,ATOS IT SERVICES UK LTD,1001181106,"112,369.46"
Home Office,Home Office,02/11/2011,"IT, TelecommsHardware Desktop.Support and Maintenance - PROG",SSD - Shared Services Directorates,ATOS IT SERVICES UK LTD,1001174183,"25,320.96"
Home Office,Home Office,23/11/2011,"IT,TelecommsMan ServiceHosting.Support - ADMN",SSD - Shared Services Directorates,ATOS IT SERVICES UK LTD,1001183338,"191,667.00"
Home Office,Home Office,23/11/2011,"IT, Broadcasting & Telecomms. IT Run Cost Info Support-PROG",SSD - Shared Services Directorates,ATOS IT SERVICES UK LTD,1001183338,"3,851.96"
Home Office,Home Office,23/11/2011,"IT, Broadcasting & Telecomms. IT Run Cost Info Support-PROG",SSD - Shared Services Directorates,ATOS IT SERVICES UK LTD,1001183338,"8,832.46"
Home Office,Home Office,23/11/2011,"IT, Broadcasting & Telecomms. IT Run Cost Info Support-PROG",SSD - Shared Services Directorates,ATOS IT SERVICES UK LTD,1001183338,419.61
Home Office,Home Office,23/11/2011,"IT, TelecommsHardware Desktop.Support and Maintenance - PROG",SSD - Shared Services Directorates,ATOS IT SERVICES UK LTD,1001183338,333.03
Home Office,Home Office,23/11/2011,"IT, TelecommsHardware Desktop.Support and Maintenance - PROG",SSD - Shared Services Directorates,ATOS IT SERVICES UK LTD,1001183338,"91,652.04"
Home Office,Home Office,23/11/2011,"IT, TelecommsHardware Desktop.Support and Maintenance - PROG",SSD - Shared Services Directorates,ATOS IT SERVICES UK LTD,1001183338,"6,514.40"
Home Office,Home Office,23/11/2011,"IT, TelecommsHardware Desktop.Support and Maintenance - PROG",SSD - Shared Services Directorates,ATOS IT SERVICES UK LTD,1001183338,"53,903.12"
Home Office,Home Office,10/11/2011,"IT, TelecommsHardware Desktop.Support and Maintenance - PROG",SSD - Shared Services Directorates,ATOS IT SERVICES UK LTD,1001177978,"22,036.84"
Home Office,Home Office,23/11/2011,"IT, TelecommsHardware Desktop.Support and Maintenance - PROG",SSD - Shared Services Directorates,ATOS IT SERVICES UK LTD,1001183338,"625,877.03"
Home Office,Home Office,23/11/2011,"IT, TelecommsHardware Desktop.Support and Maintenance - PROG",SSD - Shared Services Directorates,ATOS IT SERVICES UK LTD,1001183338,"454,203.00"
Home Office,Home Office,23/11/2011,"IT, TelecommsHardware Desktop.Support and Maintenance - PROG",SSD - Shared Services Directorates,ATOS IT SERVICES UK LTD,1001183338,"108,364.25"
Home Office,Home Office,10/11/2011,Utilities.Pay Phone Provider Serv - PROG,SSD - Shared Services Directorates,BRITISH TELECOMMUNICATIONS LTD,1001177981,"97,563.04"
Home Office,Home Office,10/11/2011,Telecoms,SSD - Shared Services Directorates,BRITISH TELECOMMUNICATIONS LTD,1001177981,-3.76
Home Office,Home Office,04/11/2011,"IT, Broadcasting & Telecomms.IT Running Cost - Maint - PROG",SSD - Shared Services Directorates,BRITISH TELECOMMUNICATIONS LTD,1001175751,"27,964.60"
Home Office,Home Office,09/11/2011,"Science, Technical & Research.Computer services - ADMN",SSD - Shared Services Directorates,CABLE & WIRELESS,6200020042,"-327,939.70"
Home Office,Home Office,16/11/2011,"Science, Technical & Research.Computer services - ADMN",SSD - Shared Services Directorates,CABLE & WIRELESS,6200020049,"-11,366.46"
Home Office,Home Office,18/11/2011,"Science, Technical & Research.Computer services - ADMN",SSD - Shared Services Directorates,CABLE & WIRELESS,1001181662,"-74,830.64"
Home Office,Home Office,22/11/2011,"Science, Technical & Research.Computer services - ADMN",SSD - Shared Services Directorates,CABLE & WIRELESS,1001182650,"393,220.80"
Home Office,Home Office,18/11/2011,IT & Telecommunications.IT & Telecommunications - PROG,SSD - Shared Services Directorates,CABLE & WIRELESS,1001181662,"-84,207.60"
Home Office,Home Office,09/11/2011,IT & Telecommunications.IT & Telecommunications - PROG,SSD - Shared Services Directorates,CABLE & WIRELESS,6200020042,"240,109.60"
Home Office,Home Office,09/11/2011,IT & Telecommunications.IT & Telecommunications - PROG,SSD - Shared Services Directorates,CABLE & WIRELESS,6200020042,"85,428.00"
Home Office,Home Office,14/11/2011,"Transport, Storage & Mail Serv.Mailing Mail Del Serv - ADMN",SSD - Shared Services Directorates,CENTRAL DESPATCH,1001179034,"35,593.00"
Home Office,Home Office,18/11/2011,Rent & Rates,SSD - Shared Services Directorates,DTZ DEBENHAM TIE LEUNG LTD,1001181674,"1,071,238.86"
Home Office,Home Office,11/11/2011,"Messenger, Portering and Reception Services",SSD - Shared Services Directorates,DTZ DEBENHAM TIE LEUNG LTD,1001178483,"36,456.77"
Home Office,Home Office,22/11/2011,"Messenger, Portering and Reception Services",SSD - Shared Services Directorates,DTZ DEBENHAM TIE LEUNG LTD,1001182666,"53,440.10"
Home Office,Home Office,03/11/2011,Rent & Rates,SSD - Shared Services Directorates,DTZ DEBENHAM TIE LEUNG LTD,1001175314,"417,177.15"
Home Office,Home Office,11/11/2011,Rent & Rates,SSD - Shared Services Directorates,DTZ DEBENHAM TIE LEUNG LTD,1001178481,"35,772.13"
Home Office,Home Office,17/11/2011,Rent & Rates,SSD - Shared Services Directorates,DTZ DEBENHAM TIE LEUNG LTD,1001181124,"1,646,846.22"
Home Office,Home Office,24/11/2011,Rent & Rates,SSD - Shared Services Directorates,DTZ DEBENHAM TIE LEUNG LTD,1001183867,"174,351.06"
Home Office,Home Office,11/11/2011,Public Administration Services.ContOut RC Services-other-ADMN,SSD - Shared Services Directorates,DTZ DEBENHAM TIE LEUNG LTD,1001178483,"28,800.00"
Home Office,Home Office,03/11/2011,Rent & Rates,SSD - Shared Services Directorates,DTZ DEBENHAM TIE LEUNG LTD,1001175315,"63,280.59"
Home Office,Home Office,11/11/2011,Rent & Rates,SSD - Shared Services Directorates,DTZ DEBENHAM TIE LEUNG LTD,1001178482,"173,981.38"
Home Office,Home Office,17/11/2011,Rent & Rates,SSD - Shared Services Directorates,DTZ DEBENHAM TIE LEUNG LTD,1001181125,"2,249,799.54"
Home Office,Home Office,24/11/2011,Rent & Rates,SSD - Shared Services Directorates,DTZ DEBENHAM TIE LEUNG LTD,1001183868,"179,362.64"
Home Office,Home Office,15/11/2011,Utilities.Electric utilities - ADMN,SSD - Shared Services Directorates,EDF ENERGY,1001179645,"94,450.38"
Home Office,Home Office,07/11/2011,"IT, TelecommsHardware Desktop.Support and Maintenance - ADMN",SSD - Shared Services Directorates,FUJITSU SERVICES (ALCEDO) LTD,1001176272,"752,000.00"
Home Office,Home Office,25/11/2011,"IT, TelecommsHardware Desktop.Support and Maintenance - ADMN",SSD - Shared Services Directorates,FUJITSU SERVICES (ALCEDO) LTD,1001184465,"794,779.64"
Home Office,Home Office,25/11/2011,"IT, TelecommsHardware Desktop.Support and Maintenance - ADMN",SSD - Shared Services Directorates,FUJITSU SERVICES (ALCEDO) LTD,1001184465,"440,210.05"
Home Office,Home Office,25/11/2011,"IT, TelecommsHardware Desktop.Support and Maintenance - ADMN",SSD - Shared Services Directorates,FUJITSU SERVICES (ALCEDO) LTD,1001184465,"603,186.75"
Home Office,Home Office,25/11/2011,"IT, TelecommsHardware Desktop.Support and Maintenance - ADMN",SSD - Shared Services Directorates,FUJITSU SERVICES (ALCEDO) LTD,1001184465,"30,801.58"
Home Office,Home Office,25/11/2011,"IT, TelecommsHardware Desktop.Support and Maintenance - ADMN",SSD - Shared Services Directorates,FUJITSU SERVICES (ALCEDO) LTD,1001184465,"106,740.88"
Home Office,Home Office,25/11/2011,"IT, TelecommsHardware Desktop.Support and Maintenance - ADMN",SSD - Shared Services Directorates,FUJITSU SERVICES (ALCEDO) LTD,1001184465,"85,766.15"
Home Office,Home Office,25/11/2011,"IT, TelecommsHardware Desktop.Support and Maintenance - ADMN",SSD - Shared Services Directorates,FUJITSU SERVICES (ALCEDO) LTD,1001184465,"396,539.06"
Home Office,Home Office,25/11/2011,"IT, TelecommsHardware Desktop.Support and Maintenance - ADMN",SSD - Shared Services Directorates,FUJITSU SERVICES (ALCEDO) LTD,1001184465,"324,149.34"
Home Office,Home Office,25/11/2011,"IT, TelecommsHardware.Desktop - ADMN",SSD - Shared Services Directorates,FUJITSU SERVICES (ALCEDO) LTD,1001184465,"188,832.82"
Home Office,Home Office,25/11/2011,"IT, Broadcasting & Telecomms.Sirius - Telephony",SSD - Shared Services Directorates,FUJITSU SERVICES (ALCEDO) LTD,1001184465,"307,594.06"
Home Office,Home Office,25/11/2011,"IT, TelecommsHardware Desktop.Support and Maintenance - ADMN",SSD - Shared Services Directorates,FUJITSU SERVICES (ALCEDO) LTD,1001184465,"-101,237.14"
Home Office,Home Office,25/11/2011,"IT, TelecommsHardware.Desktop - ADMN",SSD - Shared Services Directorates,FUJITSU SERVICES (ALCEDO) LTD,1001184465,"-6,514.40"
Home Office,Home Office,25/11/2011,"IT, TelecommsHardware Desktop.Support and Maintenance - ADMN",SSD - Shared Services Directorates,FUJITSU SERVICES (ALCEDO) LTD,1001184465,"-312,745.43"
Home Office,Home Office,07/11/2011,"IT, TelecommsHardware Desktop.Support and Maintenance - PROG",SSD - Shared Services Directorates,FUJITSU SERVICES (ALCEDO) LTD,1001176272,"23,664.06"
Home Office,Home Office,07/11/2011,"IT, TelecommsSoftware (COTS).ERP - ADMN",SSD - Shared Services Directorates,FUJITSU SERVICES (ALCEDO) LTD,1001176272,"24,712.60"
Home Office,Home Office,07/11/2011,"IT, TelecommsSoftware (COTS).ERP - ADMN",SSD - Shared Services Directorates,FUJITSU SERVICES (ALCEDO) LTD,1001176272,"8,712.11"
Home Office,Home Office,07/11/2011,"IT, TelecommsSoftware (COTS).ERP - ADMN",SSD - Shared Services Directorates,FUJITSU SERVICES (ALCEDO) LTD,1001176272,"19,233.08"
Home Office,Home Office,07/11/2011,"IT, TelecommsSoftware (COTS).ERP - ADMN",SSD - Shared Services Directorates,FUJITSU SERVICES (ALCEDO) LTD,1001176272,"4,356.05"
Home Office,Home Office,07/11/2011,"IT, TelecommsSoftware (COTS).ERP - ADMN",SSD - Shared Services Directorates,FUJITSU SERVICES (ALCEDO) LTD,1001176272,"27,507.22"
Home Office,Home Office,07/11/2011,"IT, TelecommsSoftware (COTS).Database - ADMN",SSD - Shared Services Directorates,FUJITSU SERVICES (ALCEDO) LTD,1001176272,"23,090.99"
Home Office,Home Office,07/11/2011,"IT, TelecommsManaged Service.Support (General) - ADMN",SSD - Shared Services Directorates,FUJITSU SERVICES (ALCEDO) LTD,1001176272,"53,662.00"
Home Office,Home Office,07/11/2011,"IT, Broadcasting & Telecomms.IT Run Costs other -Prog",SSD - Shared Services Directorates,FUJITSU SERVICES (ALCEDO) LTD,1001176272,"35,387.00"
Home Office,Home Office,25/11/2011,"IT, TelecommsManaged Service.Support (General) - ADMN",SSD - Shared Services Directorates,FUJITSU SERVICES LTD,1001184466,"565,192.69"
Home Office,Home Office,01/11/2011,Other Government Department,SSD - Shared Services Directorates,HM PRISON SERVICE,3000043688,"42,889.71"
Home Office,Home Office,30/11/2011,Management & Admin Serv.Corp & Bus Org Structure- ADMN,SSD - Shared Services Directorates,IBM DIRECT UNITED KINGDOM LTD,1001186231,"118,502.40"
Home Office,Home Office,15/11/2011,"IT, Broadcasting & Telecomms.IT Run Costs other -Prog",SSD - Shared Services Directorates,IDENTITY & PASSPORTS SERVICE,1001179667,"188,030.00"
Home Office,Home Office,23/11/2011,"IT, Broadcasting & Telecomms.IT Run Costs other -Prog",SSD - Shared Services Directorates,IDENTITY & PASSPORTS SERVICE,1001183378,"195,557.40"
Home Office,Home Office,23/11/2011,"IT, Broadcasting & Telecomms.IT Run Costs other -Prog",SSD - Shared Services Directorates,IDENTITY & PASSPORTS SERVICE,1001183378,"215,228.40"
Home Office,Home Office,22/11/2011,Professional & Admin Services.Facilities Man Serv - ADMN,SSD - Shared Services Directorates,INTERSERVE CONSTRUCTION LTD,1001182691,"106,680.00"
Home Office,Home Office,16/11/2011,Professional & Admin Services.Facilities Man Serv - ADMN,SSD - Shared Services Directorates,INTERSERVE FACILITIES MANAGEMENT,1001180435,"620,907.09"
Home Office,Home Office,16/11/2011,Professional & Admin Services.Facilities Man Serv - ADMN,SSD - Shared Services Directorates,INTERSERVE FACILITIES MANAGEMENT,1001180435,"459,051.37"
Home Office,Home Office,16/11/2011,Professional & Admin Services.Facilities Man Serv - ADMN,SSD - Shared Services Directorates,INTERSERVE FACILITIES MANAGEMENT,1001180435,"659,997.73"
Home Office,Home Office,16/11/2011,Professional & Admin Services.Facilities Man Serv - ADMN,SSD - Shared Services Directorates,INTERSERVE FACILITIES MANAGEMENT,1001180435,"90,026.51"
Home Office,Home Office,16/11/2011,Professional & Admin Services.Facilities Man Serv - ADMN,SSD - Shared Services Directorates,INTERSERVE FACILITIES MANAGEMENT,1001180435,"648,248.70"
Home Office,Home Office,16/11/2011,Professional & Admin Services.Facilities Man Serv - ADMN,SSD - Shared Services Directorates,INTERSERVE FACILITIES MANAGEMENT,1001180435,"486,892.99"
Home Office,Home Office,16/11/2011,Professional & Admin Services.Facilities Man Serv - ADMN,SSD - Shared Services Directorates,INTERSERVE FACILITIES MANAGEMENT,1001180435,"681,139.35"
Home Office,Home Office,16/11/2011,Professional & Admin Services.Facilities Man Serv - ADMN,SSD - Shared Services Directorates,INTERSERVE FACILITIES MANAGEMENT,1001180435,"234,146.17"
Home Office,Home Office,16/11/2011,Professional & Admin Services.Facilities Man Serv - ADMN,SSD - Shared Services Directorates,INTERSERVE FACILITIES MANAGEMENT,1001180435,"95,652.99"
Home Office,Home Office,16/11/2011,Professional & Admin Services.Facilities Man Serv - ADMN,SSD - Shared Services Directorates,INTERSERVE FACILITIES MANAGEMENT,1001180435,"84,887.50"
Home Office,Home Office,02/11/2011,Professional & Admin Services.Facilities Man Serv - ADMN,SSD - Shared Services Directorates,INTERSERVE FACILITIES MANAGEMENT,1001174245,"38,839.27"
Home Office,Home Office,07/11/2011,Professional & Admin Services.Facilities Man Serv - ADMN,SSD - Shared Services Directorates,INTERSERVE FACILITIES MANAGEMENT,1001176281,"43,378.66"
Home Office,Home Office,14/11/2011,Professional & Admin Services.Facilities Man Serv - ADMN,SSD - Shared Services Directorates,INTERSERVE FACILITIES MANAGEMENT,1001179050,"31,772.75"
Home Office,Home Office,18/11/2011,Professional & Admin Services.Facilities Man Serv - ADMN,SSD - Shared Services Directorates,INTERSERVE FACILITIES MANAGEMENT,1001181696,"46,377.49"
Home Office,Home Office,30/11/2011,Professional & Admin Services.Facilities Man Serv - ADMN,SSD - Shared Services Directorates,INTERSERVE FACILITIES MANAGEMENT,1001186233,"45,700.90"
Home Office,Home Office,29/11/2011,Professional & Admin Services.Facilities Man Serv - ADMN,SSD - Shared Services Directorates,INTERSERVE FACILITIES MANAGEMENT,1001185452,"48,445.67"
Home Office,Home Office,02/11/2011,Professional & Admin Services.Facilities Man Serv - ADMN,SSD - Shared Services Directorates,INTERSERVE FACILITIES MANAGEMENT,1001174244,"34,166.99"
Home Office,Home Office,08/11/2011,"Building, Construction Service.General building construction.",SSD - Shared Services Directorates,LIFTEC LIFTS LTD,1001176953,"46,097.10"
Home Office,Home Office,07/11/2011,"IT, Broadcasting & Telecomms.IT Run Cost � Info Support",SSD - Shared Services Directorates,SAVVIS UK LTD,1001176306,"4,980.41"
Home Office,Home Office,07/11/2011,"IT, Broadcasting & Telecomms.IT Run Cost � Info Support",SSD - Shared Services Directorates,SAVVIS UK LTD,1001176306,"6,600.00"
Home Office,Home Office,07/11/2011,"IT, Broadcasting & Telecomms.IT Run Cost � Info Support",SSD - Shared Services Directorates,SAVVIS UK LTD,1001176306,"19,436.54"
Home Office,Home Office,07/11/2011,"IT, Broadcasting & Telecomms.IT Run Cost � Info Support",SSD - Shared Services Directorates,SAVVIS UK LTD,1001176306,"55,268.40"
Home Office,Home Office,07/11/2011,"IT, Broadcasting & Telecomms.IT Run Cost � Info Support",SSD - Shared Services Directorates,SAVVIS UK LTD,1001176306,"14,776.51"
Home Office,Home Office,07/11/2011,"IT, Broadcasting & Telecomms.IT Run Cost � Info Support",SSD - Shared Services Directorates,SAVVIS UK LTD,1001176306,"12,014.30"
Home Office,Home Office,07/11/2011,"IT, Broadcasting & Telecomms.IT Run Cost � Info Support",SSD - Shared Services Directorates,SAVVIS UK LTD,1001176306,"13,110.00"
Home Office,Home Office,07/11/2011,"IT, Broadcasting & Telecomms.IT Run Cost � Info Support",SSD - Shared Services Directorates,SAVVIS UK LTD,1001176306,"16,667.33"
Home Office,Home Office,07/11/2011,"IT, Broadcasting & Telecomms.IT Run Cost � Info Support",SSD - Shared Services Directorates,SAVVIS UK LTD,1001176306,"2,636.03"
Home Office,Home Office,14/11/2011,"IT, TelecommsHardware Desktop.Support and Maintenance - ADMN",SSD - Shared Services Directorates,SAVVIS UK LTD,1001179074,"1,869.00"
Home Office,Home Office,14/11/2011,"IT, Broadcasting & Telecomms.IT Run Cost � Info Support",SSD - Shared Services Directorates,SAVVIS UK LTD,1001179074,"36,939.43"
Home Office,Home Office,07/11/2011,"IT, Broadcasting & Telecomms.IT Run Cost � Info Support",SSD - Shared Services Directorates,SAVVIS UK LTD,1001176306,"16,671.67"
Home Office,Home Office,07/11/2011,"IT, Broadcasting & Telecomms.IT Run Cost � Info Support",SSD - Shared Services Directorates,SAVVIS UK LTD,1001176306,"2,969.20"
Home Office,Home Office,07/11/2011,"IT, Broadcasting & Telecomms.IT Run Cost � Info Support",SSD - Shared Services Directorates,SAVVIS UK LTD,1001176306,"1,982.70"
Home Office,Home Office,07/11/2011,"IT, Broadcasting & Telecomms.IT Run Cost � Info Support",SSD - Shared Services Directorates,SAVVIS UK LTD,1001176306,"35,038.99"
Home Office,Home Office,30/11/2011,"IT, TelecommsHardware Server.Support and Maintenance - ADMN",SSD - Shared Services Directorates,SAVVIS UK LTD,1001186267,"29,400.00"
Home Office,Home Office,22/11/2011,"IT, Broadcasting & Telecomms.IT Run Cost � Info Support",SSD - Shared Services Directorates,SAVVIS UK LTD,1001182738,"36,939.43"
Home Office,Home Office,15/11/2011,"IT, Broadcasting & Telecomms.IT Run Cost � Info Support",SSD - Shared Services Directorates,SAVVIS UK LTD,1001179705,"4,980.41"
Home Office,Home Office,15/11/2011,"IT, Broadcasting & Telecomms.IT Run Cost � Info Support",SSD - Shared Services Directorates,SAVVIS UK LTD,1001179705,"6,600.00"
Home Office,Home Office,15/11/2011,"IT, Broadcasting & Telecomms.IT Run Cost � Info Support",SSD - Shared Services Directorates,SAVVIS UK LTD,1001179705,"19,436.54"
Home Office,Home Office,15/11/2011,"IT, Broadcasting & Telecomms.IT Run Cost � Info Support",SSD - Shared Services Directorates,SAVVIS UK LTD,1001179705,"55,268.40"
Home Office,Home Office,15/11/2011,"IT, Broadcasting & Telecomms.IT Run Cost � Info Support",SSD - Shared Services Directorates,SAVVIS UK LTD,1001179705,"14,776.51"
Home Office,Home Office,15/11/2011,"IT, Broadcasting & Telecomms.IT Run Cost � Info Support",SSD - Shared Services Directorates,SAVVIS UK LTD,1001179705,"12,014.30"
Home Office,Home Office,15/11/2011,"IT, Broadcasting & Telecomms.IT Run Cost � Info Support",SSD - Shared Services Directorates,SAVVIS UK LTD,1001179705,"13,110.00"
Home Office,Home Office,15/11/2011,"IT, Broadcasting & Telecomms.IT Run Cost � Info Support",SSD - Shared Services Directorates,SAVVIS UK LTD,1001179705,"16,667.33"
Home Office,Home Office,15/11/2011,"IT, Broadcasting & Telecomms.IT Run Cost � Info Support",SSD - Shared Services Directorates,SAVVIS UK LTD,1001179705,"2,636.03"
Home Office,Home Office,15/11/2011,"IT, Broadcasting & Telecomms.IT Run Cost � Info Support",SSD - Shared Services Directorates,SAVVIS UK LTD,1001179705,"16,671.67"
Home Office,Home Office,15/11/2011,"IT, Broadcasting & Telecomms.IT Run Cost � Info Support",SSD - Shared Services Directorates,SAVVIS UK LTD,1001179705,"2,969.20"
Home Office,Home Office,15/11/2011,"IT, Broadcasting & Telecomms.IT Run Cost � Info Support",SSD - Shared Services Directorates,SAVVIS UK LTD,1001179705,"1,982.70"
Home Office,Home Office,15/11/2011,"IT, Broadcasting & Telecomms.IT Run Cost � Info Support",SSD - Shared Services Directorates,SAVVIS UK LTD,1001179705,"35,038.99"
Home Office,Home Office,14/11/2011,"IT, Broadcasting & Telecomms. IT Run Cost Info Support-PROG",SSD - Shared Services Directorates,SERCO  LTD,1001179076,"5,058.00"
Home Office,Home Office,14/11/2011,"IT, Broadcasting & Telecomms. IT Run Cost Info Support-PROG",SSD - Shared Services Directorates,SERCO  LTD,1001179076,"1,377.25"
Home Office,Home Office,14/11/2011,"IT, Broadcasting & Telecomms. IT Run Cost Info Support-PROG",SSD - Shared Services Directorates,SERCO  LTD,1001179076,"67,646.33"
Home Office,Home Office,14/11/2011,"IT, Broadcasting & Telecomms. IT Run Cost Info Support-PROG",SSD - Shared Services Directorates,SERCO  LTD,1001179076,"26,783.17"
Home Office,Home Office,14/11/2011,"IT, Broadcasting & Telecomms. IT Run Cost Info Support-PROG",SSD - Shared Services Directorates,SERCO  LTD,1001179076,"221,581.00"
Home Office,Home Office,14/11/2011,"IT, Broadcasting & Telecomms. IT Run Cost Info Support-PROG",SSD - Shared Services Directorates,SERCO  LTD,1001179076,"142,710.75"
Home Office,Home Office,14/11/2011,"IT, Broadcasting & Telecomms. IT Run Cost Info Support-PROG",SSD - Shared Services Directorates,SERCO  LTD,1001179076,"58,305.50"
Home Office,Home Office,23/11/2011,"Building, Construction Service.General building construction.",SSD - Shared Services Directorates,SPECIALIST COMPUTER CENTRES PLC,1001183413,"80,060.40"
Home Office,Home Office,11/11/2011,"Transport, Storage & Mail Serv.File (Archive) Storage - ADMN",SSD - Shared Services Directorates,TNT UK LTD,1001178553,"25,599.55"
Home Office,Home Office,02/11/2011,Management & Admin Serv.Temp IT N/w Specialists - ADMN,SSD - Shared Services Directorates,TRIBAL CONSULTING LTD,1001174324,"70,024.50"
Home Office,Home Office,29/11/2011,"Building, Construction Service.Interior finishing - PROG",SSD - Shared Services Directorates,WATES CONSTRUCTION LTD,1001185515,"98,880.00"
Home Office,Home Office,15/11/2011,"Transport, Storage & Mail Serv.Fuel & Vehicle Supp Serv- ADMN",PFD*,ARVAL UK LTD,1001179606,"172,010.44"
Home Office,Home Office,15/11/2011,"Transport, Storage & Mail Serv.Fuel & Vehicle Supp Serv- ADMN",PFD*,ARVAL UK LTD,1001179606,-99.53
Home Office,Home Office,11/11/2011,"Transport, Storage & Mail Serv.Fuel & Vehicle Supp Serv- ADMN",PFD*,ARVAL UK LTD,1001178457,"172,619.82"
Home Office,Home Office,29/11/2011,Asylum Services.Public Expense Removals,PFD*,CARLSON WAGONLIT TRAVEL,1001185418,"78,430.10"
Home Office,Home Office,14/11/2011,Asylum Services.Public Expense Removals,PFD*,CARLSON WAGONLIT TRAVEL,1001179033,"150,500.00"
Home Office,Home Office,10/11/2011,Asylum Services.Public Expense Removals,PFD*,CARLSON WAGONLIT TRAVEL,1001177987,"314,900.00"
Home Office,Home Office,18/11/2011,Asylum Services.Public Expense Removals,PFD*,CARLSON WAGONLIT TRAVEL,1001181665,"238,251.00"
Home Office,Home Office,18/11/2011,Asylum Services.Public Expense Removals,PFD*,CARLSON WAGONLIT TRAVEL,1001181665,"25,130.00"
Home Office,Home Office,29/11/2011,Asylum Services.Public Expense Removals,PFD*,CARLSON WAGONLIT TRAVEL,1001185418,"314,900.00"
Home Office,Home Office,30/11/2011,Asylum Services.Public Expense Removals,PFD*,CARLSON WAGONLIT TRAVEL,1001186197,"36,636.00"
Home Office,Home Office,02/11/2011,Asylum Services.Public Expense Removals,PFD*,CARLSON WAGONLIT TRAVEL,1001174198,"-56,573.55"
Home Office,Home Office,10/11/2011,Asylum Services.Public Expense Removals,PFD*,CARLSON WAGONLIT TRAVEL,1001177987,"113,335.11"
Home Office,Home Office,02/11/2011,Asylum Services.Public Expense Removals,PFD*,CARLSON WAGONLIT TRAVEL,1001174198,"36,142.35"
Home Office,Home Office,02/11/2011,Asylum Services.Public Expense Removals,PFD*,CARLSON WAGONLIT TRAVEL,1001174198,"111,644.87"
Home Office,Home Office,02/11/2011,Asylum Services.Public Expense Removals,PFD*,CARLSON WAGONLIT TRAVEL,1001174198,"72,056.08"
Home Office,Home Office,07/11/2011,Asylum Services.Public Expense Removals,PFD*,CARLSON WAGONLIT TRAVEL,1001176257,"203,400.22"
Home Office,Home Office,07/11/2011,Asylum Services.Public Expense Removals,PFD*,CARLSON WAGONLIT TRAVEL,1001176257,"115,369.36"
Home Office,Home Office,08/11/2011,Asylum Services.Public Expense Removals,PFD*,CARLSON WAGONLIT TRAVEL,1001176901,"106,198.19"
Home Office,Home Office,07/11/2011,Asylum Services.Public Expense Removals,PFD*,CARLSON WAGONLIT TRAVEL,1001176257,"147,192.83"
Home Office,Home Office,10/11/2011,Asylum Services.Public Expense Removals,PFD*,CARLSON WAGONLIT TRAVEL,1001177987,"139,189.90"
Home Office,Home Office,14/11/2011,Asylum Services.Public Expense Removals,PFD*,CARLSON WAGONLIT TRAVEL,1001179033,"184,756.94"
Home Office,Home Office,18/11/2011,Asylum Services.Public Expense Removals,PFD*,CARLSON WAGONLIT TRAVEL,1001181665,"50,672.27"
Home Office,Home Office,15/11/2011,Asylum Services.Public Expense Removals,PFD*,CARLSON WAGONLIT TRAVEL,1001179624,"40,306.42"
Home Office,Home Office,18/11/2011,Asylum Services.Public Expense Removals,PFD*,CARLSON WAGONLIT TRAVEL,1001181665,"173,990.92"
Home Office,Home Office,18/11/2011,Asylum Services.Public Expense Removals,PFD*,CARLSON WAGONLIT TRAVEL,1001181665,"145,087.37"
Home Office,Home Office,21/11/2011,Asylum Services.Public Expense Removals,PFD*,CARLSON WAGONLIT TRAVEL,1001182163,"33,934.30"
Home Office,Home Office,23/11/2011,Asylum Services.Public Expense Removals,PFD*,CARLSON WAGONLIT TRAVEL,1001183355,"66,473.48"
Home Office,Home Office,25/11/2011,Asylum Services.Public Expense Removals,PFD*,CARLSON WAGONLIT TRAVEL,1001184448,"98,340.48"
Home Office,Home Office,25/11/2011,Asylum Services.Public Expense Removals,PFD*,CARLSON WAGONLIT TRAVEL,1001184448,"187,324.72"
Home Office,Home Office,29/11/2011,Asylum Services.Public Expense Removals,PFD*,CARLSON WAGONLIT TRAVEL,1001185418,"-115,273.11"
Home Office,Home Office,29/11/2011,Asylum Services.Public Expense Removals,PFD*,CARLSON WAGONLIT TRAVEL,1001185418,"58,080.24"
Home Office,Home Office,03/11/2011,Asylum Services.Public Expense Removals,PFD*,CARLSON WAGONLIT TRAVEL,1001175302,"85,899.51"
Home Office,Home Office,10/11/2011,Asylum Services.Public Expense Removals,PFD*,CARLSON WAGONLIT TRAVEL,1001177987,"116,936.70"
Home Office,Home Office,16/11/2011,Asylum Services.Public Expense Removals,PFD*,CARLSON WAGONLIT TRAVEL,1001180369,"125,488.57"
Home Office,Home Office,23/11/2011,Asylum Services.Public Expense Removals,PFD*,CARLSON WAGONLIT TRAVEL,1001183355,"136,403.20"
Home Office,Home Office,29/11/2011,Asylum Services.Public Expense Removals,PFD*,CARLSON WAGONLIT TRAVEL,1001185418,"105,265.17"
Home Office,Home Office,10/11/2011,Conferences & Events,PFD*,NYS CORPORATE LTD,1001178019,"44,646.05"
Home Office,Home Office,04/11/2011,GPC Card,PFD*,BARCLAYS BANK,1001175749,"561,309.24"
Home Office,IPCC - Independent Police Complaints Commission,01/11/2011,Rent,IPCC - Independent Police Complaints Commission,Acropolis Properties Ltd,RCT0037751,"27,535.50"
Home Office,IPCC - Independent Police Complaints Commission,08/11/2011,Forensic Services,IPCC - Independent Police Complaints Commission,Forensic Science Service,RCT0037828,"56,967.28"
Home Office,IPCC - Independent Police Complaints Commission,08/11/2011,Rent,IPCC - Independent Police Complaints Commission,WM Morrison Supermarkets PLC,RCT0037850,"31,500.00"
Home Office,IPCC - Independent Police Complaints Commission,08/11/2011,Forensic Services,IPCC - Independent Police Complaints Commission,Forensic Science Service,RCT0037827,"44,663.36"
Home Office,IPCC - Independent Police Complaints Commission,16/11/2011,IT Charges,IPCC - Independent Police Complaints Commission,Steria,RCT0037913,"338,939.00"
Home Office,IPCC - Independent Police Complaints Commission,28/11/2011,Rent,IPCC - Independent Police Complaints Commission,OMD Services Limited,RCT0038011,"599,452.31"
Home Office,IPCC - Independent Police Complaints Commission,28/11/2011,Rent,IPCC - Independent Police Complaints Commission,Hartnell Taylor Cook LLP,RCT0038030,"39,573.30"
Home Office,IPCC - Independent Police Complaints Commission,28/11/2011,Office Move,IPCC - Independent Police Complaints Commission,IMS (Office Fitting & Design) Ltd,RCT0037998,"118,627.20"
Home Office,IPCC - Independent Police Complaints Commission,28/11/2011,Service Charges,IPCC - Independent Police Complaints Commission,OMD Services Limited,RCT0038011,"121,728.54"
Home Office,NPIA - National Policing Improvement Agency,28/11/2011,NPIA Subs to professional bodies,CEO Directorate,Specialist Computer Centres PLC,5100059658,"27,062.55"
Home Office,NPIA - National Policing Improvement Agency,16/11/2011,IT Managed Services,Information & Communications Technology & Science Directorate,Specialist Computer Centres PLC,5100057626,"22,051.42"
Home Office,NPIA - National Policing Improvement Agency,28/11/2011,IT Hardware,Information & Communications Technology & Science Directorate,Cable & Wireless Communications,5100058185,300.00
Home Office,NPIA - National Policing Improvement Agency,14/11/2011,IT Information Support,Information & Communications Technology & Science Directorate,Siemens Enterprise Comm Ltd,5100058225,"38,080.00"
Home Office,NPIA - National Policing Improvement Agency,10/11/2011,IT Information Support,Information & Communications Technology & Science Directorate,Siemens Enterprise Comm Ltd,5100058229,"250,000.00"
Home Office,NPIA - National Policing Improvement Agency,03/11/2011,IT Managed Services,Information & Communications Technology & Science Directorate,Cogent Inc,5100058642,"60,640.00"
Home Office,NPIA - National Policing Improvement Agency,03/11/2011,IT Managed Services,Information & Communications Technology & Science Directorate,Cogent Inc,5100058643,"24,635.00"
Home Office,NPIA - National Policing Improvement Agency,03/11/2011,IT Managed Services,Information & Communications Technology & Science Directorate,Cogent Inc,5100058643,124.00
Home Office,NPIA - National Policing Improvement Agency,03/11/2011,IT Managed Services,Information & Communications Technology & Science Directorate,Cogent Inc,5100058644,"47,375.00"
Home Office,NPIA - National Policing Improvement Agency,03/11/2011,IT Managed Services,Information & Communications Technology & Science Directorate,Cogent Inc,5100058645,"1,904.80"
Home Office,NPIA - National Policing Improvement Agency,03/11/2011,IT Managed Services,Information & Communications Technology & Science Directorate,Cogent Inc,5100058645,"81,485.00"
Home Office,NPIA - National Policing Improvement Agency,04/11/2011,Other consultancy,Information & Communications Technology & Science Directorate,Logica CMG UK Ltd,5100058724,"45,027.04"
Home Office,NPIA - National Policing Improvement Agency,10/11/2011,Telephone charges,Information & Communications Technology & Science Directorate,Cable & Wireless Communications,5100058854,"52,725.00"
Home Office,NPIA - National Policing Improvement Agency,02/11/2011,IT Managed Services,Information & Communications Technology & Science Directorate,Cable & Wireless Communications,5100058873,"23,587.50"
Home Office,NPIA - National Policing Improvement Agency,09/11/2011,IT Managed Services,Information & Communications Technology & Science Directorate,Logica CMG UK Ltd,5100058924,"518,361.82"
Home Office,NPIA - National Policing Improvement Agency,04/11/2011,IT Hardware,Information & Communications Technology & Science Directorate,Logica CMG UK Ltd,5100059083,"220,502.00"
Home Office,NPIA - National Policing Improvement Agency,04/11/2011,IT Hardware,Information & Communications Technology & Science Directorate,Logica CMG UK Ltd,5100059084,"53,143.67"
Home Office,NPIA - National Policing Improvement Agency,04/11/2011,IT Hardware,Information & Communications Technology & Science Directorate,Logica CMG UK Ltd,5100059084,"24,302.00"
Home Office,NPIA - National Policing Improvement Agency,04/11/2011,IT Hardware,Information & Communications Technology & Science Directorate,Logica CMG UK Ltd,5100059084,22.36
Home Office,NPIA - National Policing Improvement Agency,04/11/2011,Other consultancy,Information & Communications Technology & Science Directorate,Logica CMG UK Ltd,5100059117,"-45,027.04"
Home Office,NPIA - National Policing Improvement Agency,04/11/2011,IT Managed Services,Information & Communications Technology & Science Directorate,Logica CMG UK Ltd,5100059118,"45,027.04"
Home Office,NPIA - National Policing Improvement Agency,10/11/2011,IT Managed Services,Information & Communications Technology & Science Directorate,IPL Information Processing Ltd.,5100059062,"25,655.00"
Home Office,NPIA - National Policing Improvement Agency,10/11/2011,IT Managed Services,Information & Communications Technology & Science Directorate,IPL Information Processing Ltd.,5100059062,-30.00
Home Office,NPIA - National Policing Improvement Agency,16/11/2011,IT software,Information & Communications Technology & Science Directorate,Cable & Wireless Communications,5100059210,"-52,287.12"
Home Office,NPIA - National Policing Improvement Agency,10/11/2011,IT Information Support,Information & Communications Technology & Science Directorate,Siemens Enterprise Comm Ltd,5100059226,"-250,000.00"
Home Office,NPIA - National Policing Improvement Agency,09/11/2011,IT Managed Services,Information & Communications Technology & Science Directorate,Logica CMG UK Ltd,5100059227,"-518,361.82"
Home Office,NPIA - National Policing Improvement Agency,10/11/2011,IT Managed Services,Information & Communications Technology & Science Directorate,Logica CMG UK Ltd,5100059228,"514,525.82"
Home Office,NPIA - National Policing Improvement Agency,10/11/2011,IT Managed Services,Information & Communications Technology & Science Directorate,Logica CMG UK Ltd,5100059228,"3,836.00"
Home Office,NPIA - National Policing Improvement Agency,28/11/2011,Telephone charges,Information & Communications Technology & Science Directorate,BT Plc,1900063709,"28,458.77"
Home Office,NPIA - National Policing Improvement Agency,28/11/2011,IT software,Information & Communications Technology & Science Directorate,Cable & Wireless Communications,5100057983,"1,930.00"
Home Office,NPIA - National Policing Improvement Agency,28/11/2011,IT software,Information & Communications Technology & Science Directorate,Cable & Wireless Communications,5100057983,38.60
Home Office,NPIA - National Policing Improvement Agency,28/11/2011,IT software,Information & Communications Technology & Science Directorate,Cable & Wireless Communications,5100057983,"1,270.00"
Home Office,NPIA - National Policing Improvement Agency,28/11/2011,IT software,Information & Communications Technology & Science Directorate,Cable & Wireless Communications,5100057983,25.40
Home Office,NPIA - National Policing Improvement Agency,28/11/2011,IT software,Information & Communications Technology & Science Directorate,Cable & Wireless Communications,5100057983,"30,008.06"
Home Office,NPIA - National Policing Improvement Agency,28/11/2011,IT software,Information & Communications Technology & Science Directorate,Cable & Wireless Communications,5100057983,600.16
Home Office,NPIA - National Policing Improvement Agency,28/11/2011,IT software,Information & Communications Technology & Science Directorate,Cable & Wireless Communications,5100057983,"3,731.28"
Home Office,NPIA - National Policing Improvement Agency,28/11/2011,IT software,Information & Communications Technology & Science Directorate,Cable & Wireless Communications,5100057983,74.63
Home Office,NPIA - National Policing Improvement Agency,28/11/2011,IT software,Information & Communications Technology & Science Directorate,Cable & Wireless Communications,5100057983,"14,543.28"
Home Office,NPIA - National Policing Improvement Agency,28/11/2011,IT software,Information & Communications Technology & Science Directorate,Cable & Wireless Communications,5100057983,290.87
Home Office,NPIA - National Policing Improvement Agency,28/11/2011,IT software,Information & Communications Technology & Science Directorate,Cable & Wireless Communications,5100057983,283.45
Home Office,NPIA - National Policing Improvement Agency,28/11/2011,IT software,Information & Communications Technology & Science Directorate,Cable & Wireless Communications,5100057983,5.67
Home Office,NPIA - National Policing Improvement Agency,28/11/2011,IT software,Information & Communications Technology & Science Directorate,Cable & Wireless Communications,5100057983,"1,166.00"
Home Office,NPIA - National Policing Improvement Agency,28/11/2011,IT software,Information & Communications Technology & Science Directorate,Cable & Wireless Communications,5100057983,23.32
Home Office,NPIA - National Policing Improvement Agency,28/11/2011,IT software,Information & Communications Technology & Science Directorate,Cable & Wireless Communications,5100057983,583.00
Home Office,NPIA - National Policing Improvement Agency,28/11/2011,IT software,Information & Communications Technology & Science Directorate,Cable & Wireless Communications,5100057983,11.66
Home Office,NPIA - National Policing Improvement Agency,28/11/2011,IT software,Information & Communications Technology & Science Directorate,Cable & Wireless Communications,5100057983,800.00
Home Office,NPIA - National Policing Improvement Agency,28/11/2011,IT software,Information & Communications Technology & Science Directorate,Cable & Wireless Communications,5100057983,16.00
Home Office,NPIA - National Policing Improvement Agency,28/11/2011,IT software,Information & Communications Technology & Science Directorate,Cable & Wireless Communications,5100057983,800.00
Home Office,NPIA - National Policing Improvement Agency,28/11/2011,IT software,Information & Communications Technology & Science Directorate,Cable & Wireless Communications,5100057983,16.00
Home Office,NPIA - National Policing Improvement Agency,28/11/2011,IT software,Information & Communications Technology & Science Directorate,Cable & Wireless Communications,5100057983,"5,000.00"
Home Office,NPIA - National Policing Improvement Agency,28/11/2011,IT software,Information & Communications Technology & Science Directorate,Cable & Wireless Communications,5100057983,100.00
Home Office,NPIA - National Policing Improvement Agency,28/11/2011,IT software,Information & Communications Technology & Science Directorate,Cable & Wireless Communications,5100057983,"7,000.00"
Home Office,NPIA - National Policing Improvement Agency,28/11/2011,IT software,Information & Communications Technology & Science Directorate,Cable & Wireless Communications,5100057983,140.00
Home Office,NPIA - National Policing Improvement Agency,28/11/2011,IT software,Information & Communications Technology & Science Directorate,Cable & Wireless Communications,5100057983,"1,600.00"
Home Office,NPIA - National Policing Improvement Agency,28/11/2011,IT software,Information & Communications Technology & Science Directorate,Cable & Wireless Communications,5100057983,32.00
Home Office,NPIA - National Policing Improvement Agency,28/11/2011,IT software,Information & Communications Technology & Science Directorate,Cable & Wireless Communications,5100057983,"5,000.00"
Home Office,NPIA - National Policing Improvement Agency,28/11/2011,IT software,Information & Communications Technology & Science Directorate,Cable & Wireless Communications,5100057983,100.00
Home Office,NPIA - National Policing Improvement Agency,28/11/2011,IT software,Information & Communications Technology & Science Directorate,Cable & Wireless Communications,5100057983,"7,000.00"
Home Office,NPIA - National Policing Improvement Agency,28/11/2011,IT software,Information & Communications Technology & Science Directorate,Cable & Wireless Communications,5100057983,140.00
Home Office,NPIA - National Policing Improvement Agency,28/11/2011,IT software,Information & Communications Technology & Science Directorate,Cable & Wireless Communications,5100057983,"12,000.00"
Home Office,NPIA - National Policing Improvement Agency,28/11/2011,IT software,Information & Communications Technology & Science Directorate,Cable & Wireless Communications,5100057983,240.00
Home Office,NPIA - National Policing Improvement Agency,28/11/2011,IT software,Information & Communications Technology & Science Directorate,Cable & Wireless Communications,5100057983,"5,000.00"
Home Office,NPIA - National Policing Improvement Agency,28/11/2011,IT software,Information & Communications Technology & Science Directorate,Cable & Wireless Communications,5100057983,100.00
Home Office,NPIA - National Policing Improvement Agency,28/11/2011,IT software,Information & Communications Technology & Science Directorate,Cable & Wireless Communications,5100057983,"10,000.00"
Home Office,NPIA - National Policing Improvement Agency,28/11/2011,IT software,Information & Communications Technology & Science Directorate,Cable & Wireless Communications,5100057983,200.00
Home Office,NPIA - National Policing Improvement Agency,28/11/2011,IT software,Information & Communications Technology & Science Directorate,Cable & Wireless Communications,5100057983,"12,291.15"
Home Office,NPIA - National Policing Improvement Agency,28/11/2011,IT software,Information & Communications Technology & Science Directorate,Cable & Wireless Communications,5100057983,245.82
Home Office,NPIA - National Policing Improvement Agency,28/11/2011,IT software,Information & Communications Technology & Science Directorate,Cable & Wireless Communications,5100057983,"16,500.00"
Home Office,NPIA - National Policing Improvement Agency,28/11/2011,IT software,Information & Communications Technology & Science Directorate,Cable & Wireless Communications,5100057983,330.00
Home Office,NPIA - National Policing Improvement Agency,28/11/2011,IT software,Information & Communications Technology & Science Directorate,Cable & Wireless Communications,5100057983,"12,000.00"
Home Office,NPIA - National Policing Improvement Agency,28/11/2011,IT software,Information & Communications Technology & Science Directorate,Cable & Wireless Communications,5100057983,240.00
Home Office,NPIA - National Policing Improvement Agency,28/11/2011,IT software,Information & Communications Technology & Science Directorate,Cable & Wireless Communications,5100057983,809.00
Home Office,NPIA - National Policing Improvement Agency,28/11/2011,IT software,Information & Communications Technology & Science Directorate,Cable & Wireless Communications,5100057983,16.18
Home Office,NPIA - National Policing Improvement Agency,28/11/2011,IT software,Information & Communications Technology & Science Directorate,Cable & Wireless Communications,5100057983,"2,995.00"
Home Office,NPIA - National Policing Improvement Agency,28/11/2011,IT software,Information & Communications Technology & Science Directorate,Cable & Wireless Communications,5100057983,59.90
Home Office,NPIA - National Policing Improvement Agency,28/11/2011,IT software,Information & Communications Technology & Science Directorate,Cable & Wireless Communications,5100057983,"16,195.00"
Home Office,NPIA - National Policing Improvement Agency,28/11/2011,IT software,Information & Communications Technology & Science Directorate,Cable & Wireless Communications,5100057983,323.89
Home Office,NPIA - National Policing Improvement Agency,28/11/2011,IT Managed Services,Information & Communications Technology & Science Directorate,Logica CMG UK Ltd,5100059665,"40,698.02"
Home Office,NPIA - National Policing Improvement Agency,25/11/2011,IT software,Information & Communications Technology & Science Directorate,Specialist Computer Centres PLC,5100059723,"25,000.00"
Home Office,NPIA - National Policing Improvement Agency,25/11/2011,IT software,Information & Communications Technology & Science Directorate,Specialist Computer Centres PLC,5100059723,"10,000.00"
Home Office,NPIA - National Policing Improvement Agency,25/11/2011,IT software,Information & Communications Technology & Science Directorate,Specialist Computer Centres PLC,5100059723,"6,000.00"
Home Office,NPIA - National Policing Improvement Agency,25/11/2011,IT software,Information & Communications Technology & Science Directorate,Specialist Computer Centres PLC,5100059723,"5,000.00"
Home Office,NPIA - National Policing Improvement Agency,25/11/2011,IT software,Information & Communications Technology & Science Directorate,Specialist Computer Centres PLC,5100059724,"-25,000.00"
Home Office,NPIA - National Policing Improvement Agency,25/11/2011,IT software,Information & Communications Technology & Science Directorate,Specialist Computer Centres PLC,5100059724,"-10,000.00"
Home Office,NPIA - National Policing Improvement Agency,25/11/2011,IT software,Information & Communications Technology & Science Directorate,Specialist Computer Centres PLC,5100059724,"-6,000.00"
Home Office,NPIA - National Policing Improvement Agency,25/11/2011,IT software,Information & Communications Technology & Science Directorate,Specialist Computer Centres PLC,5100059724,"-5,000.00"
Home Office,NPIA - National Policing Improvement Agency,28/11/2011,IT Hardware,Operations Directorate,Cable & Wireless Communications,5100058185,"7,147.18"
Home Office,NPIA - National Policing Improvement Agency,28/11/2011,IT Managed Services,Operations Directorate,Cable & Wireless Communications,5100058185,"2,000.00"
Home Office,NPIA - National Policing Improvement Agency,28/11/2011,IT Managed Services,Operations Directorate,Cable & Wireless Communications,5100058185,"1,100.00"
Home Office,NPIA - National Policing Improvement Agency,28/11/2011,IT software,Operations Directorate,Cable & Wireless Communications,5100058185,"8,166.00"
Home Office,NPIA - National Policing Improvement Agency,28/11/2011,IT software,Operations Directorate,Cable & Wireless Communications,5100058185,"8,166.00"
Home Office,NPIA - National Policing Improvement Agency,28/11/2011,IT software,Operations Directorate,Cable & Wireless Communications,5100058185,"8,166.00"
Home Office,NPIA - National Policing Improvement Agency,28/11/2011,IT software,Operations Directorate,Cable & Wireless Communications,5100058185,"8,166.00"
Home Office,NPIA - National Policing Improvement Agency,28/11/2011,IT software,Operations Directorate,Cable & Wireless Communications,5100058185,"8,166.00"
Home Office,NPIA - National Policing Improvement Agency,28/11/2011,IT software,Operations Directorate,Cable & Wireless Communications,5100058185,"8,166.00"
Home Office,NPIA - National Policing Improvement Agency,02/11/2011,IT Managed Services,Operations Directorate,Airwave Solutions Ltd,5100058355,"191,999.60"
Home Office,NPIA - National Policing Improvement Agency,02/11/2011,IT Managed Services,Operations Directorate,Airwave Solutions Ltd,5100058815,"177,652.10"
Home Office,NPIA - National Policing Improvement Agency,10/11/2011,IT Information Support,Operations Directorate,Cable & Wireless Communications,5100058853,187.50
Home Office,NPIA - National Policing Improvement Agency,10/11/2011,IT Information Support,Operations Directorate,Cable & Wireless Communications,5100058853,"1,900.00"
Home Office,NPIA - National Policing Improvement Agency,10/11/2011,IT Information Support,Operations Directorate,Cable & Wireless Communications,5100058853,"6,989.00"
Home Office,NPIA - National Policing Improvement Agency,10/11/2011,IT Information Support,Operations Directorate,Cable & Wireless Communications,5100058853,"2,250.00"
Home Office,NPIA - National Policing Improvement Agency,10/11/2011,IT Information Support,Operations Directorate,Cable & Wireless Communications,5100058853,"4,000.00"
Home Office,NPIA - National Policing Improvement Agency,10/11/2011,IT Information Support,Operations Directorate,Cable & Wireless Communications,5100058853,"3,515.00"
Home Office,NPIA - National Policing Improvement Agency,10/11/2011,IT Information Support,Operations Directorate,Cable & Wireless Communications,5100058853,"3,840.00"
Home Office,NPIA - National Policing Improvement Agency,10/11/2011,IT Information Support,Operations Directorate,Cable & Wireless Communications,5100058853,"3,600.00"
Home Office,NPIA - National Policing Improvement Agency,10/11/2011,IT Information Support,Operations Directorate,Cable & Wireless Communications,5100058853,"2,000.00"
Home Office,NPIA - National Policing Improvement Agency,10/11/2011,IT Information Support,Operations Directorate,Cable & Wireless Communications,5100058853,"1,733.00"
Home Office,NPIA - National Policing Improvement Agency,10/11/2011,IT Information Support,Operations Directorate,Cable & Wireless Communications,5100058853,-0.09
Home Office,NPIA - National Policing Improvement Agency,04/11/2011,Airwave Core Service Charge,Operations Directorate,Airwave Solutions Ltd,5100058899,"14,844,329.73"
Home Office,NPIA - National Policing Improvement Agency,04/11/2011,Airwave Core Service Charge,Operations Directorate,Airwave Solutions Ltd,5100058901,"226,057.27"
Home Office,NPIA - National Policing Improvement Agency,04/11/2011,Airwave Core Service Charge,Operations Directorate,Airwave Solutions Ltd,5100058901,-0.05
Home Office,NPIA - National Policing Improvement Agency,02/11/2011,IT software,Operations Directorate,Northgate Information Solutions UK,5100058986,"22,380.00"
Home Office,NPIA - National Policing Improvement Agency,09/11/2011,IT software,Operations Directorate,Capita Secure Information Systems,5100059075,"39,717.00"
Home Office,NPIA - National Policing Improvement Agency,09/11/2011,IT software,Operations Directorate,Capita Secure Information Systems,5100059075,"16,959.00"
Home Office,NPIA - National Policing Improvement Agency,09/11/2011,IT software,Operations Directorate,Capita Secure Information Systems,5100059075,"20,250.00"
Home Office,NPIA - National Policing Improvement Agency,09/11/2011,IT software,Operations Directorate,Capita Secure Information Systems,5100059075,"20,929.00"
Home Office,NPIA - National Policing Improvement Agency,09/11/2011,IT software,Operations Directorate,Capita Secure Information Systems,5100059075,"9,969.00"
Home Office,NPIA - National Policing Improvement Agency,09/11/2011,IT software,Operations Directorate,Capita Secure Information Systems,5100059075,"16,154.00"
Home Office,NPIA - National Policing Improvement Agency,09/11/2011,IT software,Operations Directorate,Capita Secure Information Systems,5100059075,"35,207.00"
Home Office,NPIA - National Policing Improvement Agency,09/11/2011,IT software,Operations Directorate,Capita Secure Information Systems,5100059075,"10,026.00"
Home Office,NPIA - National Policing Improvement Agency,09/11/2011,IT software,Operations Directorate,Capita Secure Information Systems,5100059075,"20,913.00"
Home Office,NPIA - National Policing Improvement Agency,09/11/2011,IT software,Operations Directorate,Capita Secure Information Systems,5100059075,"28,832.00"
Home Office,NPIA - National Policing Improvement Agency,09/11/2011,IT software,Operations Directorate,Capita Secure Information Systems,5100059075,"18,218.00"
Home Office,NPIA - National Policing Improvement Agency,09/11/2011,IT software,Operations Directorate,Capita Secure Information Systems,5100059075,"12,484.00"
Home Office,NPIA - National Policing Improvement Agency,09/11/2011,IT software,Operations Directorate,Capita Secure Information Systems,5100059075,"23,784.00"
Home Office,NPIA - National Policing Improvement Agency,09/11/2011,IT software,Operations Directorate,Capita Secure Information Systems,5100059075,"26,334.00"
Home Office,NPIA - National Policing Improvement Agency,09/11/2011,IT software,Operations Directorate,Capita Secure Information Systems,5100059075,"20,586.00"
Home Office,NPIA - National Policing Improvement Agency,09/11/2011,IT software,Operations Directorate,Capita Secure Information Systems,5100059075,"20,799.00"
Home Office,NPIA - National Policing Improvement Agency,09/11/2011,IT software,Operations Directorate,Capita Secure Information Systems,5100059075,"34,057.00"
Home Office,NPIA - National Policing Improvement Agency,09/11/2011,IT software,Operations Directorate,Capita Secure Information Systems,5100059075,"19,057.00"
Home Office,NPIA - National Policing Improvement Agency,09/11/2011,IT software,Operations Directorate,Capita Secure Information Systems,5100059075,"26,045.00"
Home Office,NPIA - National Policing Improvement Agency,09/11/2011,IT software,Operations Directorate,Capita Secure Information Systems,5100059075,"18,701.00"
Home Office,NPIA - National Policing Improvement Agency,09/11/2011,IT software,Operations Directorate,Capita Secure Information Systems,5100059075,"11,986.00"
Home Office,NPIA - National Policing Improvement Agency,09/11/2011,IT software,Operations Directorate,Capita Secure Information Systems,5100059075,"35,854.00"
Home Office,NPIA - National Policing Improvement Agency,09/11/2011,IT software,Operations Directorate,Capita Secure Information Systems,5100059075,"51,274.00"
Home Office,NPIA - National Policing Improvement Agency,09/11/2011,IT software,Operations Directorate,Capita Secure Information Systems,5100059075,"14,846.00"
Home Office,NPIA - National Policing Improvement Agency,09/11/2011,IT software,Operations Directorate,Capita Secure Information Systems,5100059075,"29,397.00"
Home Office,NPIA - National Policing Improvement Agency,09/11/2011,IT software,Operations Directorate,Capita Secure Information Systems,5100059075,"24,797.96"
Home Office,NPIA - National Policing Improvement Agency,04/11/2011,IT software,Operations Directorate,Northgate Information Solutions UK,5100059090,"48,200.00"
Home Office,NPIA - National Policing Improvement Agency,15/11/2011,IT Managed Services,Operations Directorate,Cable & Wireless Communications,5100058799,"3,500.00"
Home Office,NPIA - National Policing Improvement Agency,15/11/2011,IT Managed Services,Operations Directorate,Cable & Wireless Communications,5100058799,"1,500.00"
Home Office,NPIA - National Policing Improvement Agency,15/11/2011,IT Managed Services,Operations Directorate,Cable & Wireless Communications,5100058799,"1,500.00"
Home Office,NPIA - National Policing Improvement Agency,15/11/2011,IT Managed Services,Operations Directorate,Cable & Wireless Communications,5100058799,"187,500.40"
Home Office,NPIA - National Policing Improvement Agency,15/11/2011,IT Managed Services,Operations Directorate,Cable & Wireless Communications,5100058799,500.00
Home Office,NPIA - National Policing Improvement Agency,23/11/2011,Airwave Core Service Charge,Operations Directorate,Airwave Solutions Ltd,5100059193,"60,699.00"
Home Office,NPIA - National Policing Improvement Agency,23/11/2011,Firewall Service Charge,Operations Directorate,Airwave Solutions Ltd,5100059193,"25,191.07"
Home Office,NPIA - National Policing Improvement Agency,23/11/2011,Airwave Core Service Charge,Operations Directorate,Airwave Solutions Ltd,5100059193,"8,297.08"
Home Office,NPIA - National Policing Improvement Agency,23/11/2011,Stamford Service Charge,Operations Directorate,Airwave Solutions Ltd,5100059193,"77,888.97"
Home Office,NPIA - National Policing Improvement Agency,23/11/2011,Airwave Cluster Hot Standby Service Charge,Operations Directorate,Airwave Solutions Ltd,5100059194,"640,091.29"
Home Office,NPIA - National Policing Improvement Agency,23/11/2011,Airwave Ground Based Network Resilience Serv. Chg,Operations Directorate,Airwave Solutions Ltd,5100059195,"588,667.38"
Home Office,NPIA - National Policing Improvement Agency,23/11/2011,Airwave Core Service Charge,Operations Directorate,Airwave Solutions Ltd,5100059197,"88,775.00"
Home Office,NPIA - National Policing Improvement Agency,14/11/2011,IT Managed Services,Operations Directorate,QINETIQ,5100058988,"64,266.00"
Home Office,NPIA - National Policing Improvement Agency,23/11/2011,Airwave in London Underground Service Charge,Operations Directorate,Airwave Solutions Ltd,5100059293,"368,459.38"
Home Office,NPIA - National Policing Improvement Agency,23/11/2011,IT Managed Services,Operations Directorate,Airwave Solutions Ltd,5100059294,"24,457.59"
Home Office,NPIA - National Policing Improvement Agency,23/11/2011,IT Managed Services,Operations Directorate,Airwave Solutions Ltd,5100059296,"177,652.10"
Home Office,NPIA - National Policing Improvement Agency,15/11/2011,IT Managed Services,Operations Directorate,Cable & Wireless Communications,5100059459,"-3,500.00"
Home Office,NPIA - National Policing Improvement Agency,15/11/2011,IT Managed Services,Operations Directorate,Cable & Wireless Communications,5100059459,"-1,500.00"
Home Office,NPIA - National Policing Improvement Agency,15/11/2011,IT Managed Services,Operations Directorate,Cable & Wireless Communications,5100059459,"-1,500.00"
Home Office,NPIA - National Policing Improvement Agency,15/11/2011,IT Managed Services,Operations Directorate,Cable & Wireless Communications,5100059459,"-187,500.40"
Home Office,NPIA - National Policing Improvement Agency,15/11/2011,IT Managed Services,Operations Directorate,Cable & Wireless Communications,5100059459,-500.00
Home Office,NPIA - National Policing Improvement Agency,18/11/2011,IT Managed Services,Operations Directorate,Cable & Wireless Communications,5100059462,"3,500.00"
Home Office,NPIA - National Policing Improvement Agency,18/11/2011,IT Managed Services,Operations Directorate,Cable & Wireless Communications,5100059462,"1,500.00"
Home Office,NPIA - National Policing Improvement Agency,18/11/2011,IT Managed Services,Operations Directorate,Cable & Wireless Communications,5100059462,"1,500.00"
Home Office,NPIA - National Policing Improvement Agency,18/11/2011,IT Managed Services,Operations Directorate,Cable & Wireless Communications,5100059462,"187,500.50"
Home Office,NPIA - National Policing Improvement Agency,18/11/2011,IT Managed Services,Operations Directorate,Cable & Wireless Communications,5100059462,-0.10
Home Office,NPIA - National Policing Improvement Agency,18/11/2011,IT Managed Services,Operations Directorate,Cable & Wireless Communications,5100059462,500.00
Home Office,NPIA - National Policing Improvement Agency,28/11/2011,IT Hardware,Operations Directorate,Fujitsu (FTS) Limited,5100058076,"41,488.80"
Home Office,NPIA - National Policing Improvement Agency,28/11/2011,IT consultancy,Operations Directorate,Northgate  SIS Ltd (Anite),5100059729,"43,248.00"
Home Office,NPIA - National Policing Improvement Agency,28/11/2011,IT Information Support,Operations Directorate,Steria Ltd,5100059732,"27,231.75"
Home Office,NPIA - National Policing Improvement Agency,07/11/2011,IT Managed Services,People & Development,Cable & Wireless Communications,5100057965,"23,000.00"
Home Office,NPIA - National Policing Improvement Agency,07/11/2011,IT Managed Services,People & Development,Cable & Wireless Communications,5100057965,"75,000.00"
Home Office,NPIA - National Policing Improvement Agency,07/11/2011,IT Managed Services,People & Development,Cable & Wireless Communications,5100057965,"5,000.00"
Home Office,NPIA - National Policing Improvement Agency,07/11/2011,IT Managed Services,People & Development,Cable & Wireless Communications,5100057965,"5,000.00"
Home Office,NPIA - National Policing Improvement Agency,07/11/2011,IT Managed Services,People & Development,Cable & Wireless Communications,5100057965,"10,000.00"
Home Office,NPIA - National Policing Improvement Agency,07/11/2011,IT Managed Services,People & Development,Cable & Wireless Communications,5100057965,"11,529.00"
Home Office,NPIA - National Policing Improvement Agency,07/11/2011,IT Managed Services,People & Development,Cable & Wireless Communications,5100057965,"7,307.02"
Home Office,NPIA - National Policing Improvement Agency,07/11/2011,IT Managed Services,People & Development,Cable & Wireless Communications,5100059123,"-23,000.00"
Home Office,NPIA - National Policing Improvement Agency,03/11/2011,Electricity,Resources Directorate,EDF Energy Exeter,1900063255,"17,228.54"
Home Office,NPIA - National Policing Improvement Agency,03/11/2011,Electricity,Resources Directorate,EDF Energy Exeter,1900063255,"3,592.79"
Home Office,NPIA - National Policing Improvement Agency,03/11/2011,Electricity,Resources Directorate,EDF Energy Exeter,1900063255,"4,484.35"
Home Office,NPIA - National Policing Improvement Agency,03/11/2011,Electricity,Resources Directorate,EDF Energy Exeter,1900063255,"47,735.08"
Home Office,NPIA - National Policing Improvement Agency,10/11/2011,FM Costs,Resources Directorate,Wyboston Lakes Ltd,5100059032,"31,622.55"
Home Office,NPIA - National Policing Improvement Agency,10/11/2011,FM Costs,Resources Directorate,Wyboston Lakes Ltd,5100059036,"56,968.53"
Home Office,NPIA - National Policing Improvement Agency,16/11/2011,Electricity,Resources Directorate,EDF Energy,1900063546,"22,959.11"
Home Office,NPIA - National Policing Improvement Agency,09/11/2011,Land and Buildings maintenance,Resources Directorate,Home Office,5100058839,"40,696.05"
Home Office,NPIA - National Policing Improvement Agency,09/11/2011,Land and Buildings maintenance,Resources Directorate,Home Office,5100058839,"8,139.20"
Home Office,NPIA - National Policing Improvement Agency,09/11/2011,FM Costs,Resources Directorate,Home Office,5100058839,"9,021.96"
Home Office,NPIA - National Policing Improvement Agency,09/11/2011,FM Costs,Resources Directorate,Home Office,5100058839,180.44
Home Office,NPIA - National Policing Improvement Agency,09/11/2011,FM Costs,Resources Directorate,Home Office,5100058839,"2,416.81"
Home Office,NPIA - National Policing Improvement Agency,09/11/2011,Land and Buildings maintenance,Resources Directorate,Home Office,5100058839,"2,991.21"
Home Office,NPIA - National Policing Improvement Agency,09/11/2011,Land and Buildings maintenance,Resources Directorate,Home Office,5100058839,59.82
Home Office,NPIA - National Policing Improvement Agency,09/11/2011,FM Costs,Resources Directorate,Home Office,5100058839,"9,367.45"
Home Office,NPIA - National Policing Improvement Agency,09/11/2011,FM Costs,Resources Directorate,Home Office,5100058839,187.35
Home Office,NPIA - National Policing Improvement Agency,09/11/2011,FM Costs,Resources Directorate,Home Office,5100058877,"87,212.63"
Home Office,NPIA - National Policing Improvement Agency,09/11/2011,FM Costs,Resources Directorate,Home Office,5100058877,"1,744.25"
Home Office,NPIA - National Policing Improvement Agency,09/11/2011,FM Costs,Resources Directorate,Home Office,5100058877,728.86
Home Office,NPIA - National Policing Improvement Agency,09/11/2011,FM Costs,Resources Directorate,Home Office,5100058877,14.58
Home Office,NPIA - National Policing Improvement Agency,09/11/2011,FM Costs,Resources Directorate,Home Office,5100058877,"1,926.00"
Home Office,NPIA - National Policing Improvement Agency,09/11/2011,FM Costs,Resources Directorate,Home Office,5100058877,38.52
Home Office,NPIA - National Policing Improvement Agency,09/11/2011,FM Costs,Resources Directorate,Home Office,5100058877,"82,144.00"
Home Office,NPIA - National Policing Improvement Agency,09/11/2011,FM Costs,Resources Directorate,Home Office,5100058877,"1,642.88"
Home Office,NPIA - National Policing Improvement Agency,09/11/2011,FM Costs,Resources Directorate,Home Office,5100058877,"2,744.00"
Home Office,NPIA - National Policing Improvement Agency,09/11/2011,FM Costs,Resources Directorate,Home Office,5100058877,54.88
Home Office,NPIA - National Policing Improvement Agency,09/11/2011,FM Costs,Resources Directorate,Home Office,5100058877,"226,556.52"
Home Office,NPIA - National Policing Improvement Agency,09/11/2011,FM Costs,Resources Directorate,Home Office,5100058877,"4,531.13"
Home Office,NPIA - National Policing Improvement Agency,09/11/2011,FM Costs,Resources Directorate,Home Office,5100058877,"7,590.00"
Home Office,NPIA - National Policing Improvement Agency,09/11/2011,FM Costs,Resources Directorate,Home Office,5100058877,151.80
Home Office,NPIA - National Policing Improvement Agency,09/11/2011,FM Costs,Resources Directorate,Home Office,5100058877,"92,562.00"
Home Office,NPIA - National Policing Improvement Agency,09/11/2011,FM Costs,Resources Directorate,Home Office,5100058877,"1,851.24"
Home Office,NPIA - National Policing Improvement Agency,09/11/2011,FM Costs,Resources Directorate,Home Office,5100058877,"3,092.00"
Home Office,NPIA - National Policing Improvement Agency,09/11/2011,FM Costs,Resources Directorate,Home Office,5100058877,61.84
Home Office,NPIA - National Policing Improvement Agency,09/11/2011,FM Costs,Resources Directorate,Home Office,5100058877,"321,428.00"
Home Office,NPIA - National Policing Improvement Agency,09/11/2011,FM Costs,Resources Directorate,Home Office,5100058877,"6,428.56"
Home Office,NPIA - National Policing Improvement Agency,09/11/2011,FM Costs,Resources Directorate,Home Office,5100058877,"6,686.00"
Home Office,NPIA - National Policing Improvement Agency,09/11/2011,FM Costs,Resources Directorate,Home Office,5100058877,133.72
Home Office,NPIA - National Policing Improvement Agency,09/11/2011,FM Costs,Resources Directorate,Home Office,5100058877,"18,786.94"
Home Office,NPIA - National Policing Improvement Agency,09/11/2011,FM Costs,Resources Directorate,Home Office,5100058877,381.54
Home Office,NPIA - National Policing Improvement Agency,09/11/2011,FM Costs,Resources Directorate,Home Office,5100058877,224.94
Home Office,NPIA - National Policing Improvement Agency,09/11/2011,FM Costs,Resources Directorate,Home Office,5100058877,4.50
Home Office,NPIA - National Policing Improvement Agency,09/11/2011,FM Costs,Resources Directorate,Home Office,5100058877,"2,091.00"
Home Office,NPIA - National Policing Improvement Agency,09/11/2011,FM Costs,Resources Directorate,Home Office,5100058877,41.82
Home Office,NPIA - National Policing Improvement Agency,09/11/2011,FM Costs,Resources Directorate,Home Office,5100058877,56.00
Home Office,NPIA - National Policing Improvement Agency,09/11/2011,FM Costs,Resources Directorate,Home Office,5100058877,1.19
Home Office,NPIA - National Policing Improvement Agency,09/11/2011,FM Costs,Resources Directorate,Home Office,5100058877,44.00
Home Office,NPIA - National Policing Improvement Agency,09/11/2011,FM Costs,Resources Directorate,Home Office,5100058877,0.88
Home Office,NPIA - National Policing Improvement Agency,28/11/2011,Land and Buildings maintenance,Resources Directorate,Ellis and Co,1900063822,"25,467.13"
Home Office,IPS - Identity & Passport Service,18/11/2011,Passport Stationery,Passport Operations,ADARE LTD,0000140620," 46,382.11 "
Home Office,IPS - Identity & Passport Service,24/11/2011,Passport Stationery,Passport Operations,ADARE LTD,0000140839," 108,614.41 "
Home Office,IPS - Identity & Passport Service,15/11/2011,Rates,Finance & Corporate Services,Newport County Borough Council,0000140516," 54,572.00 "
Home Office,IPS - Identity & Passport Service,18/11/2011,Contracted Staff,Finance & Corporate Services and Organisational Transformation,Capita Resourcing Ltd,0000140628," 38,977.30 "
Home Office,IPS - Identity & Passport Service,24/11/2011,Contracted Staff,Finance & Corporate Services and Organisational Transformation,Capita Resourcing Ltd,0000140851," 38,171.34 "
Home Office,IPS - Identity & Passport Service,24/11/2011,Software & Licenses,Finance & Corporate Services,Capscan Ltd,0000140852," 44,677.81 "
Home Office,IPS - Identity & Passport Service,15/11/2011,General Travel,Various areas of IPS,Carlson-Wagonlit Travel,0000140597," 54,053.73 "
Home Office,IPS - Identity & Passport Service,18/11/2011,General Travel,Various areas of IPS,Carlson-Wagonlit Travel,0000140715," 49,488.04 "
Home Office,IPS - Identity & Passport Service,24/11/2011,General Travel,Various areas of IPS,Carlson-Wagonlit Travel,0000140944," 49,086.50 "
Home Office,IPS - Identity & Passport Service,01/11/2011,General Travel,Various areas of IPS,Carlson-Wagonlit Travel,0000140394," 27,181.87 "
Home Office,IPS - Identity & Passport Service,18/11/2011,General Travel,Various areas of IPS,Carlson-Wagonlit Travel,0000140716," 42,101.93 "
Home Office,IPS - Identity & Passport Service,24/11/2011,General Travel,Various areas of IPS,Carlson-Wagonlit Travel,0000140945," 51,276.65 "
Home Office,IPS - Identity & Passport Service,24/11/2011,Rates,Finance & Corporate Services,CITY OF WESTMINSTER,0000140947," 246,690.00 "
Home Office,IPS - Identity & Passport Service,24/11/2011,Accommodation,Finance & Corporate Services,COLLIERS CRE CLIENTS ACCOUNT,0000140949," 116,941.80 "
Home Office,IPS - Identity & Passport Service,18/11/2011,IT Development/Service Charges,Various areas of IPS,CSC COMPUTER SCIENCES LTD,0000140725," 3,181,878.11 "
Home Office,IPS - Identity & Passport Service,22/11/2011,IT Development/Service Charges,Various areas of IPS,CSC COMPUTER SCIENCES LTD,0000140823," 296,927.22 "
Home Office,IPS - Identity & Passport Service,24/11/2011,IT Development/Service Charges,Various areas of IPS,CSC COMPUTER SCIENCES LTD,0000140957," 443,940.50 "
Home Office,IPS - Identity & Passport Service,18/11/2011,Passport Printing,Passport Operations,De La Rue International Ltd,0000140727," 3,041,991.10 "
Home Office,IPS - Identity & Passport Service,22/11/2011,Passport Printing,Passport Operations,De La Rue International Ltd,0000140825," 591,539.77 "
Home Office,IPS - Identity & Passport Service,11/11/2011,PASS,Passport Operations,Equifax Plc,0000140485," 138,964.31 "
Home Office,IPS - Identity & Passport Service,24/11/2011,Consultancy & Professional Ser,Organisational Transformation,ERNST & YOUNG LLP,0000140960," 148,431.78 "
Home Office,IPS - Identity & Passport Service,25/11/2011,Other Government Departments,Passport Operations,Foreign & Commonwealth Office,0000035955," 54,147.56 "
Home Office,IPS - Identity & Passport Service,18/11/2011,Occupational Health Management,HR & Organisational Development,Health Management Ltd,0000140730," 36,916.44 "
Home Office,IPS - Identity & Passport Service,25/11/2011,Other Government Departments,Finance & Corporate Services,Home Office,0000141070," 238,958.20 "
Home Office,IPS - Identity & Passport Service,18/11/2011,Other Government Departments,Finance & Corporate Servives and HR & Organisational Development,Home Office,0000140732," 894,415.41 "
Home Office,IPS - Identity & Passport Service,24/11/2011,Other Government Departments,Finance & Corporate Services and Organisational Transformation,Home Office,0000140978," 410,253.24 "
Home Office,IPS - Identity & Passport Service,01/11/2011,Accommodation,Finance & Corporate Services,J.H.T. Oakleigh Limited,0000140404," 25,485.02 "
Home Office,IPS - Identity & Passport Service,11/11/2011,Accommodation,Finance & Corporate Services,J.H.T. Oakleigh Limited,0000140493," 99,226.96 "
Home Office,IPS - Identity & Passport Service,24/11/2011,Market Research,Corporate Strategy,Jigsaw Research Limited,0000140982," 34,200.00 "
Home Office,IPS - Identity & Passport Service,01/11/2011,Contact Centre,Passport Operations,MM TELEPERFORMANCE,0000140409," 663,383.58 "
Home Office,IPS - Identity & Passport Service,24/11/2011,Contact Centre,Passport Operations,MM TELEPERFORMANCE,0000140984," 680,621.48 "
Home Office,IPS - Identity & Passport Service,18/11/2011,Consultancy & Professional Ser,Organisational Transformation,PA Consulting Group,0000140740," 138,537.00 "
Home Office,IPS - Identity & Passport Service,24/11/2011,Consultancy & Professional Ser,Organisational Transformation,PA Consulting Group,0000140989," 167,613.00 "
Home Office,IPS - Identity & Passport Service,24/11/2011,Rates,Finance & Corporate Services,ROCHDALE METRO BOROUGH COUNCIL,0000140994,"33,774.00"
Home Office,IPS - Identity & Passport Service,11/11/2011,IT Admin & Hosting Support,Civil Registrations,Siemens Business Services Ltd,0000140509,"79,677.10"
Home Office,IPS - Identity & Passport Service,24/11/2011,IT Admin & Hosting Support,Civil Registrations,Siemens Business Services Ltd,0000141003,"79,677.10"
Home Office,IPS - Identity & Passport Service,04/11/2011,Guarding,Finance & Corporate Services,ATOS,0000140441,"342,982.66"
Home Office,IPS - Identity & Passport Service,11/11/2011,TRAINING,Passport Operations,SML Training & Consultancy Ltd,0000140510,"37,792.80"
Home Office,IPS - Identity & Passport Service,01/11/2011,Passports - Secure Mail,Passport Operations,SECURE MAIL SERVICES LIMITED,0000140415,"578,688.98"
Home Office,IPS - Identity & Passport Service,15/11/2011,Passports - Secure Mail,Passport Operations,SECURE MAIL SERVICES LIMITED,0000140614,"508,926.87"
Home Office,IPS - Identity & Passport Service,24/11/2011,Passports - Secure Mail,Passport Operations,SECURE MAIL SERVICES LIMITED,0000141007,"396,662.40"
Home Office,IPS - Identity & Passport Service,25/11/2011,Passports - Secure Mail,Passport Operations,SECURE MAIL SERVICES LIMITED,0000141074,"449,136.43"
Home Office,IPS - Identity & Passport Service,01/11/2011,Consultancy & Professional Ser,Civil Registrations,Steria Limited,0000140416,"79,914.00"
Home Office,IPS - Identity & Passport Service,15/11/2011,Passport Processing,Passport Operations,Steria Limited,0000140615,"964,477.46"
Home Office,IPS - Identity & Passport Service,18/11/2011,Passport Processing,Passport Operations,Steria Limited,0000140752,"936,719.04"
Home Office,IPS - Identity & Passport Service,18/11/2011,IT Development,Passport Operations,Thales,0000140753,"234,668.88"
Home Office,IPS - Identity & Passport Service,24/11/2011,Other Government Departments,HR & Organisational Development,The Treasury Solicitor,0000141013,"41,105.40"
,,,,,`,,
